Workbook

Sheet Előirá (hidden)
C1: FEJEZET | D1: (Több tétel) | F1: Surján Laci által küldött 01.31-i táblázat alapján
D3: Oszlopcímkék
D4: B | F4: K
C5: Sorcímkék | D5: Összeg / EREDETI_ELOIRANYZAT | E5: Összeg / AKTUALIS_ELOIRANYZAT | F5: Összeg / EREDETI_ELOIRANYZAT | G5: Összeg / AKTUALIS_ELOIRANYZAT | I5: Összeg / EREDETI_ELOIRANYZAT | J5: Összeg / AKTUALIS_ELOIRANYZAT | L5: 66/15/00/00/00 | M5: 366010
C6: 1099 | D6: 233903800000 | E6: 234550517400 | F6: -206037500000 | G6: -206684217400 | L6: 66/16/00/00/00 | M6: 366020
A7: 362215 | B7: =H7 -> 362215 | C7: 62/01/00/00/00 | F7: -49466400000 | G7: -49466400000 | H7: =VLOOKUP(C7,L:M,2,FALSE) -> 362215 | I7: =(D7+F7) -> -49466400000 | J7: =(E7+G7) -> -49466400000 | L7: 66/18/00/00/00 | M7: 366040
A8: 362225 | B8: =H8 -> 362225 | C8: 62/02/00/00/00 | F8: -65159200000 | G8: -65159200000 | H8: 362225 | I8: =(D8+F8) -> -65159200000 | J8: =(E8+G8) -> -65159200000 | L8: 66/01/00/00/00 | M8: 366210
A9: 362230 | B9: 362230 | C9: 62/03/00/00/00 | F9: -21177800000 | G9: -21177800000 | H9: 362230 | I9: -21177800000 | J9: -21177800000 | L9: 66/02/00/00/00 | M9: 366220
A10: 362240 | B10: =H10 -> 362240 | C10: 62/04/00/00/00 | F10: -2514300000 | G10: -2514300000 | H10: 362240 | I10: -2514300000 | J10: -2514300000 | L10: 66/03/00/00/00 | M10: 366230
A11: 362235 | B11: 362235 | C11: 62/09/00/00/00 | F11: -5629200000 | G11: -5629200000 | H11: 362235 | I11: -5629200000 | J11: -5629200000 | L11: 66/04/00/00/00 | M11: 366240
A12: 362010 | B12: 362010 | C12: 62/19/00/00/00 | D12: 91800000000 | E12: 91800000000 | H12: 362010 | I12: 91800000000 | J12: 91800000000 | L12: 66/05/00/00/00 | M12: 366250
A13: 362020 | B13: 362020 | C13: 62/20/00/00/00 | D13: 1000000000 | E13: 1000000000 | H13: 362020 | I13: 1000000000 | J13: 1000000000 | L13: 66/06/00/00/00 | M13: 366260
A14: 362030 | B14: 362030 | C14: 62/23/00/00/00 | D14: 38546600000 | E14: 38546600000 | H14: 362030 | I14: 38546600000 | J14: 38546600000 | L14: 66/07/00/00/00 | M14: 366270
A15: 365010 | B15: 365010 | C15: 65/02/03/00/00 | D15: 33830800000 | E15: 34477517400 | H15: 365010 | I15: 33830800000 | J15: 34477517400 | L15: 66/09/00/00/00 | M15: 366300
A16: 365215 | B16: 365215 | C16: 65/04/00/00/00 | F16: -25000000000 | G16: -26550000000 | H16: 365215 | I16: -25000000000 | J16: -26550000000 | L16: 62/19/00/00/00 | M16: 362010
A17: 365225 | B17: 365225 | C17: 65/05/00/00/00 | F17: -2283700000 | G17: -2931192400 | H17: 365225 | I17: -2283700000 | J17: -2931192400 | L17: 62/20/00/00/00 | M17: 362020
A18: 365270 | B18: 365270 | C18: 65/06/00/00/00 | F18: -1050000000 | G18: -1050000000 | H18: 365270 | I18: -1050000000 | J18: -1050000000 | L18: 62/23/00/00/00 | M18: 362030
A19: 365300 | B19: 365300 | C19: 65/08/00/00/00 | F19: -246600000 | G19: -246600000 | H19: 365300 | I19: -246600000 | J19: -246600000 | L19: 62/01/00/00/00 | M19: 362215
A20: 365320 | B20: 365320 | C20: 65/09/00/00/00 | F20: -5250500000 | G20: -3699725000 | H20: 365320 | I20: -5250500000 | J20: -3699725000 | L20: 62/02/00/00/00 | M20: 362225
A21: 366210 | B21: 366210 | C21: 66/01/00/00/00 | F21: -3152400000 | G21: -3152400000 | H21: 366210 | I21: -3152400000 | J21: -3152400000 | L21: 62/03/00/00/00 | M21: 362230
A22: 366220 | B22: 366220 | C22: 66/02/00/00/00 | F22: -1382900000 | G22: -1382900000 | H22: 366220 | I22: -1382900000 | J22: -1382900000 | L22: 62/09/00/00/00 | M22: 362235
A23: 366230 | B23: 366230 | C23: 66/03/00/00/00 | F23: -6034500000 | G23: -6034500000 | H23: 366230 | I23: -6034500000 | J23: -6034500000 | L23: 62/04/00/00/00 | M23: 362240
A24: 366240 | B24: 366240 | C24: 66/04/00/00/00 | F24: -66800000 | G24: -66800000 | H24: 366240 | I24: -66800000 | J24: -66800000 | L24: 67/06/00/00/00 | M24: 367010
A25: 366250 | B25: 366250 | C25: 66/05/00/00/00 | F25: -6151300000 | G25: -6151300000 | H25: 366250 | I25: -6151300000 | J25: -6151300000 | L25: 67/07/00/00/00 | M25: 367020
A26: 366260 | B26: 366260 | C26: 66/06/00/00/00 | F26: -1231600000 | G26: -1231600000 | H26: 366260 | I26: -1231600000 | J26: -1231600000 | L26: 67/09/00/00/00 | M26: 367040
A27: 366270 | B27: 366270 | C27: 66/07/00/00/00 | F27: -83500000 | G27: -83500000 | H27: 366270 | I27: -83500000 | J27: -83500000 | L27: 67/01/00/00/00 | M27: 367200
A28: 366300 | B28: 366300 | C28: 66/09/00/00/00 | F28: -54500000 | G28: -54500000 | H28: 366300 | I28: -54500000 | J28: -54500000 | L28: 67/02/00/00/00 | M28: 367300
A29: 366010 | B29: 366010 | C29: 66/15/00/00/00 | D29: 27017400000 | E29: 27017400000 | H29: 366010 | I29: 27017400000 | J29: 27017400000 | L29: 67/04/00/00/00 | M29: 367310
A30: 366020 | B30: 366020 | C30: 66/16/00/00/00 | D30: 7100000 | E30: 7100000 | H30: 366020 | I30: 7100000 | J30: 7100000 | L30: 47/04/08/00/00 | M30: 363010
A31: 366040 | B31: 366040 | C31: 66/18/00/00/00 | D31: 27801900000 | E31: 27801900000 | H31: 366040 | I31: 27801900000 | J31: 27801900000 | L31: 47/04/09/00/00 | M31: 363020
A32: 367200 | B32: 367200 | C32: 67/01/00/00/00 | F32: -8712100000 | G32: -8712100000 | H32: 367200 | I32: -8712100000 | J32: -8712100000 | L32: 47/04/10/00/00 | M32: 363030
A33: 367300 | B33: 367300 | C33: 67/02/00/00/00 | F33: -1145200000 | G33: -1145200000 | H33: 367300 | I33: -1145200000 | J33: -1145200000 | L33: 47/04/11/00/00 | M33: 363040
A34: 367310 | B34: 367310 | C34: 67/04/00/00/00 | F34: -245000000 | G34: -245000000 | H34: 367310 | I34: -245000000 | J34: -245000000 | L34: 47/04/12/00/00 | M34: 363050
A35: 367010 | B35: 367010 | C35: 67/06/00/00/00 | D35: 300000000 | E35: 300000000 | H35: 367010 | I35: 300000000 | J35: 300000000 | L35: 47/04/36/00/00 | M35: 363055
A36: 367020 | B36: 367020 | C36: 67/07/00/00/00 | D36: 12700000000 | E36: 12700000000 | H36: 367020 | I36: 12700000000 | J36: 12700000000 | L36: 47/04/01/00/00 | M36: 363211
A37: 367040 | B37: 367040 | C37: 67/09/00/00/00 | D37: 900000000 | E37: 900000000 | H37: 367040 | I37: 900000000 | J37: 900000000 | L37: 47/04/02/00/00 | M37: 363220
A38: 363211 | B38: 363211 | C38: 47/04/01/00/00 | F38: -21000000000 | G38: -14500000000 | H38: 363211 | I38: =(D38+F38) -> -21000000000 | J38: =(E38+G38) -> -14500000000 | L38: 47/04/03/00/00 | M38: 363230
A39: 363220 | B39: 363220 | C39: 47/04/02/00/00 | F39: -34654500000 | G39: -34654500000 | H39: 363220 | I39: -34654500000 | J39: -34654500000 | L39: 47/04/04/00/00 | M39: 363240
A40: 363230 | B40: =H40 -> 363230 | C40: 47/04/03/00/00 | F40: -105000000000 | G40: -105000000000 | H40: 363230 | I40: -105000000000 | J40: -105000000000 | L40: 47/04/05/00/00 | M40: 363250
A41: 363240 | B41: 363240 | C41: 47/04/04/00/00 | F41: -4000000000 | G41: -4000000000 | H41: 363240 | I41: -4000000000 | J41: -4000000000 | L41: 47/04/06/00/00 | M41: 363260
A42: 363250 | B42: 363250 | C42: 47/04/05/00/00 | F42: -1200000000 | G42: -1200000000 | H42: 363250 | I42: -1200000000 | J42: -1200000000 | L42: 47/04/07/00/00 | M42: 363270
A43: 363260 | B43: 363260 | C43: 47/04/06/00/00 | F43: -120000000000 | G43: -120000000000 | H43: 363260 | I43: -120000000000 | J43: -120000000000 | L43: 47/04/15/00/00 | M43: 363300
A44: 363220 | B44: 363270 | C44: 47/04/07/00/00 | F44: -85000000000 | G44: -85000000000 | H44: 363270 | I44: -85000000000 | J44: -85000000000 | L44: 65/02/03/00/00 | M44: 365010
B45: 363010 | C45: 47/04/08/00/00 | D45: 80000000000 | E45: 80000000000 | H45: 363010 | I45: 80000000000 | J45: 80000000000 | L45: 65/03/00/00/00 | M45: 365020
B46: 363020 | C46: 47/04/09/00/00 | D46: 3000000000 | E46: 3000000000 | H46: 363020 | I46: 3000000000 | J46: 3000000000 | L46: 65/04/00/00/00 | M46: 365215
B47: 363030 | C47: 47/04/10/00/00 | D47: 68700000000 | E47: 68700000000 | H47: 363030 | I47: 68700000000 | J47: 68700000000 | L47: 65/05/00/00/00 | M47: 365225
B48: 363040 | C48: 47/04/11/00/00 | D48: 400000000 | E48: 400000000 | H48: 363040 | I48: 400000000 | J48: 400000000 | L48: 65/06/00/00/00 | M48: 365270
B49: 363050 | C49: 47/04/12/00/00 | D49: 267500000000 | E49: 267500000000 | H49: 363050 | I49: 267500000000 | J49: 267500000000 | L49: 65/07/00/00/00 | M49: 365280
B50: 363300 | C50: 47/04/15/00/00 | F50: -1000000000 | G50: -1000000000 | H50: 363300 | I50: -1000000000 | J50: -1000000000 | L50: 65/08/00/00/00 | M50: 365300
B51: 363055 | C51: 47/04/36/00/00 | D51: 49800000000 | E51: 49800000000 | H51: 363055 | I51: 49800000000 | J51: 49800000000 | L51: 65/09/00/00/00 | M51: 365320

Sheet zászlók
C2: Kérem, válasszon nyelvet: | J2: Please, choose language:
C10: Ha a nyelv kiválasztása nem működik, próbálkozzon | J10: Please try to reduce the security level if you
C11: a lap biztonsági szintjének csökkentésével. | J11: have any problem with changing the language.
A20: 1

Sheet NFA-mérleg
B1: Magyar Államkincstár | J1: 12. Szám
C2: Nemzeti Foglalkoztatási Alap költségvetésének előzetes teljesítése | J2: J/a./NFA melléklet
J3: Millió Ft
A4: Hungarian State Treasury | J4: No. 12
C5: Preliminary Balance of National Employment Fund's Budget | J5: Appendix J/a./ NEF
J6: Million HUF
C7: 2024. | F7: 2025.
B8: Bevételek | C8: előzetes teljesítés | D8: teljesítés I-XII. hó | E8: teljesítés %-a* | F8: törvényi előirányzat | G8: törvénnyel módosított előirányzat | H8: módosított előirányzat | I8: teljesítés I-XII. hó | J8: teljesítés %-a*
A9: Revenues | C9: preliminary facts | D9: facts January-December | E9: facts in the % of the appropriation | F9: appropriation | G9: appropriation | H9: appropriation | I9: facts January-December | J9: facts in the % of the appropriation
A10: Revenues of Social Renewal Operational Programme (TÁMOP) measures | B10: Előfinanszírozott uniós programok kiadásainak visszatérülése | C10: 11246.17299 | D10: 11246.17299 | E10: 100 | F10: 70000 | G10: 70000 | H10: 70000 | I10: 19002.8693 | J10: 27.14695614
A11: Other incomes | B11: Egyéb bevétel | C11: 12917.29977 | D11: 12917.29977 | E11: 100 | F11: 4000 | G11: 4000 | H11: 4950 | I11: 6014.350056 | J11: 121.5020213
A12: Redemption of wage guarantee subsidies | B12: Bérgarancia támogatás törlesztése | C12: 261.883032 | D12: 261.883032 | E12: 100 | F12: 400 | G12: 400 | H12: 1750 | I12: 2216.743512 | J12: 126.6710578
A13: Health insurance and labour market contribution entitled for Economy Protection Employment Fund | B13: Társadalombiztosítási járulék NFA-t megillető része | C13: 400685.4249 | D13: 400685.4249 | E13: 100 | F13: 432500 | G13: 432500 | H13: 432500 | I13: 435949.3008 | J13: 100.7975262
A14: Subtotal | B14: Költségvetési bevételek | C14: 425110.7806 | D14: 425110.7806 | E14: 100 | F14: 506900 | G14: 506900 | H14: 509200 | I14: 463183.2637 | J14: 90.96293474
A15: Financial income | B15: Finanszírozási bevételek | C15: 0 | D15: 0 | E15: - | F15: 0 | G15: 0 | H15: 0 | I15: 0 | J15: -
A16: Income of special settlements | B16: Sajátos elszámolások bevétele | C16: 150.945441 | D16: 150.945441 | E16: 100 | F16: 0 | G16: 0 | H16: 0 | I16: 279.785804 | J16: -
A17: In total | B17: Bevételek összesen | C17: 425261.7261 | D17: 425261.7261 | E17: 100 | F17: 506900 | G17: 506900 | H17: 509200 | I17: 463463.0495 | J17: 91.01788089
J18: Millió Ft
J19: Million HUF
C20: 2024. | F20: 2025.
B21: Kiadások | C21: előzetes teljesítés | D21: teljesítés I-XII. hó | E21: teljesítés %-a* | F21: törvényi előirányzat | G21: törvénnyel módosított előirányzat | H21: módosított előirányzat | I21: teljesítés I-XII. hó | J21: teljesítés %-a*
A22: Expenditures | C22: preliminary facts | D22: facts January-December | E22: facts in the % of the appropriation | F22: appropriation | G22: appropriation | H22: appropriation | I22: facts January-December | J22: facts in the % of the appropriation
A23: Active subsidies | B23: Foglalkoztatási támogatások | C23: 22395.52745 | D23: 22395.52745 | E23: 100 | F23: 23567.1 | G23: 23567.1 | H23: 25767.1 | I23: 24703.98494 | J23: 95.87413773
A24: Subsidies to vocational training and adult education | B24: Szakképzési támogatások | C24: 53672.41824 | D24: 53672.41824 | E24: 100 | F24: 63000 | G24: 63000 | H24: 63000 | I24: 62999.029 | J24: 99.99845873
A25: Passive expenditures | B25: Passzív kiadások, álláskeresési támogatások | C25: 176857.5451 | D25: 176857.5451 | E25: 100 | F25: 197000 | G25: 197000 | H25: 197000 | I25: 196433.6202 | J25: 99.71249754
A26: Payment of wage guarantee subsidies | B26: Bérgarancia kifizetések | C26: 9029.843858 | D26: 9029.843858 | E26: 100 | F26: 3500 | G26: 3500 | H26: 3500 | I26: 29284.04272 | J26: 836.686935
A27: Expenditures on operation purposes | B27: Működtetési célú kifizetések | C27: 1184.766346 | D27: 1184.766346 | E27: 100 | F27: 1300 | G27: 1300 | H27: 1600 | I27: 1550.330382 | J27: 96.89564888
A28: Start - working program | B28: Start-munkaprogram | C28: 123117.7814 | D28: 123117.7814 | E28: 100 | F28: 140800 | G28: 140800 | H28: 140800 | I28: 134362.2078 | J28: 95.42770441
A29: EU pre-financing and co-financing | B29: EU-s elő és társfinanszírozás | C29: 35483.29623 | D29: 35483.29623 | E29: 100 | F29: 83000 | G29: 83000 | H29: 82700 | I29: 78275.11399 | J29: 94.64947278
A30: Crisis subsidies | B30: Válsághelyzeti támogatás | C30: 283.517042 | D30: 283.517042 | E30: 100 | F30: 200 | G30: 200 | H30: 300 | I30: 238.734439 | J30: 79.57814633
A31: Subtotal | B31: Költségvetési kiadások | C31: 422024.6956 | D31: 422024.6956 | E31: 100 | F31: 512367.1 | G31: 512367.1 | H31: 514667.1 | I31: 527847.0634 | J31: 102.5608716
A32: Expenditure of special settlements | B32: Sajátos elszámolások kiadása | C32: 0 | D32: 0 | E32: - | F32: 0 | G32: 0 | H32: 0 | I32: 0 | J32: -
A33: In total | B33: Kiadások összesen | C33: 422024.6956 | D33: 422024.6956 | E33: 100 | F33: 512367.1 | G33: 512367.1 | H33: 514667.1 | I33: 527847.0634 | J33: 102.5608716
A35: Opening balance | B35: NFA számláinak nyitóegyenlege | C35: 326977.0592 | F35: 330214.0896 | G35: 330214.0896 | H35: 330214.0896
A36: Total revenues | B36: Bevételek összesen | C36: 425261.7261 | D36: 425261.7261 | E36: 100 | F36: 506900 | G36: 506900 | H36: 509200 | I36: 463463.0495 | J36: 91.01788089
A37: Total expenditures | B37: Kiadások összesen | C37: 422024.6956 | D37: 422024.6956 | E37: 100 | F37: 512367.1 | G37: 512367.1 | H37: 514667.1 | I37: 527847.0634 | J37: 102.5608716
A38: Net balance without credit | B38: NFA számláinak egyenlegváltozása | C38: 3237.030439 | D38: 3237.030439 | E38: 100 | F38: -5467.1 | G38: -5467.1 | H38: -5467.1 | I38: -64384.01396 | J38: -
A39: Closing balance | B39: NFA számláinak záróegyenlege | C39: 330214.0896 | D39: 330214.0896 | E39: - | F39: 324746.9896 | G39: 324746.9896 | H39: 324746.9896 | I39: 265830.0757 | J39: -
A41: * % of facts, preliminary facts of previous year=100, appropriation of current year (as in the law) =100 | B41: * a teljesítés %-a az előző évnél előzetes teljesítés=100, a tárgyévnél a módosított előirányzat=100

Sheet NFA-havi
B1: Magyar Államkincstár | S1: 12. Szám
I2: A Nemzeti Foglalkoztatási Alap költségvetésének előzetes teljesítése | S2: J/b./NFA melléklet
S3: Millió Ft
A4: Hungarian State Treasury | S4: No. 12
H5: Preliminary Balance of National Employment Fund's Budget | S5: Appendix J/b./ NEF
S6: Million HUF
K7: 2025. | U7: 2025.
B8: Bevételek | C8: törvényi előirányzat | D8: törvénnyel módosított előirányzat | E8: módosított előirányzat | F8: I.hó | G8: II.hó | H8: III.hó | I8: IV.hó | J8: V.hó | K8: VI.hó | L8: VII.hó | M8: VIII.hó | N8: IX.hó | O8: X. hó | P8: XI.hó | Q8: XII. hó | R8: teljesítés I-XII. hó | S8: teljesítés %-a | T8: I.n.év | U8: II.n.év | V8: III.n.év | W8: IV.n.év
A9: Revenues | C9: appropriation | D9: appropriation | E9: appropriation | F9: January | G9: February | H9: March | I9: April | J9: May | K9: June | L9: July | M9: August | N9: September | O9: October | P9: November | Q9: December | R9: facts January-December | S9: facts in the % of the appropriation | T9: 1st quarter | U9: 2nd quarter | V9: 3nd quarter | W9: 4th quarter
A10: Revenues of Social Renewal Operational Programme (TÁMOP) measures | B10: Előfinanszírozott uniós programok kiadásainak visszatérülése | C10: 70000 | D10: 70000 | E10: 70000 | F10: 0 | G10: 0 | H10: 404.959683 | I10: 0 | J10: 0 | K10: 365.066048 | L10: 1499.302373 | M10: 11650.12795 | N10: 2071.70388 | O10: 1273.091076 | P10: 75.257861 | Q10: 1663.360429 | R10: 19002.8693 | S10: 27.14695614 | T10: 404.959683 | U10: 365.066048 | V10: 15221.1342 | W10: 3011.709366
A11: Other incomes | B11: Egyéb bevétel | C11: 4000 | D11: 4000 | E11: 4950 | F11: 138.952975 | G11: 377.718414 | H11: 320.196393 | I11: 268.721027 | J11: 664.706375 | K11: 885.827653 | L11: 301.489324 | M11: 1403.143961 | N11: 197.875195 | O11: 432.477726 | P11: 759.863503 | Q11: 263.37751 | R11: 6014.350056 | S11: 121.5020213 | T11: 836.867782 | U11: 1819.255055 | V11: 1902.50848 | W11: 1455.718739
A12: Redemption of wage guarantee subsidies | B12: Bérgarancia támogatás törlesztése | C12: 400 | D12: 400 | E12: 1750 | F12: 330.621963 | G12: 927.261856 | H12: 118.919739 | I12: 272.775666 | J12: 7.824527 | K12: 8.970166 | L12: 1.607144 | M12: 82.406346 | N12: 22.192381 | O12: 32.755406 | P12: 388.480134 | Q12: 22.928184 | R12: 2216.743512 | S12: 126.6710578 | T12: 1376.803558 | U12: 289.570359 | V12: 106.205871 | W12: 444.163724
A13: Health insurance and labour market contribution entitled for Economy Protection Employment Fund | B13: Társadalombiztosítási járulék NFA-t megillető része | C13: 432500 | D13: 432500 | E13: 432500 | F13: 37542.2771 | G13: 34368.91784 | H13: 33858.58779 | I13: 36695.89491 | J13: 37295.72825 | K13: 36454.44835 | L13: 37043.78124 | M13: 36066.39377 | N13: 35346.80014 | O13: 36502.24109 | P13: 35717.6283 | Q13: 39056.60203 | R13: 435949.3008 | S13: 100.7975262 | T13: 105769.7827 | U13: 110446.0715 | V13: 108456.9751 | W13: 111276.4714
A14: Subtotal | B14: Költségvetési bevételek | C14: 506900 | D14: 506900 | E14: 509200 | F14: 38011.85204 | G14: 35673.89811 | H14: 34702.6636 | I14: 37237.39161 | J14: 37968.25915 | K14: 37714.31222 | L14: 38846.18008 | M14: 49202.07202 | N14: 37638.5716 | O14: 38240.5653 | P14: 36941.2298 | Q14: 41006.26815 | R14: 463183.2637 | S14: 90.96293474 | T14: 108388.4138 | U14: 112919.963 | V14: 125686.8237 | W14: 116188.0633
A15: Financial incomes | B15: Finanszírozási bevételek | C15: 0 | D15: 0 | E15: 0 | F15: 0 | G15: 0 | H15: 0 | I15: 0 | J15: 0 | K15: 0 | L15: 0 | M15: 0 | N15: 0 | O15: 0 | P15: 0 | Q15: 0 | R15: 0 | S15: - | T15: 0 | U15: 0 | V15: 0 | W15: 0
A16: Income of special settlements | B16: Sajátos elszámolások bevétele | C16: 0 | D16: 0 | E16: 0 | F16: 111.593684 | G16: 3.237821 | H16: 292.17645 | I16: -217.761269 | J16: 30.089908 | K16: -147.577496 | L16: -4.124666 | M16: 23.994837 | N16: 44.851194 | O16: -52.01652 | P16: 321.706962 | Q16: -126.385101 | R16: 279.785804 | S16: - | T16: 407.007955 | U16: -335.248857 | V16: 64.721365 | W16: 143.305341
A17: In total | B17: Bevételek összesen | C17: 506900 | D17: 506900 | E17: 509200 | F17: 38123.44573 | G17: 35677.13593 | H17: 34994.84005 | I17: 37019.63034 | J17: 37998.34906 | K17: 37566.73472 | L17: 38842.05541 | M17: 49226.06686 | N17: 37683.42279 | O17: 38188.54878 | P17: 37262.93676 | Q17: 40879.88305 | R17: 463463.0495 | S17: 91.01788089 | T17: 108795.4217 | U17: 112584.7141 | V17: 125751.5451 | W17: 116331.3686
S18: Millió Ft
S19: Million HUF
K20: 2025. | U20: 2025.
B21: Kiadások | C21: törvényi előirányzat | D21: törvénnyel módosított előirányzat | E21: módosított előirányzat | F21: I.hó | G21: II.hó | H21: III.hó | I21: IV.hó | J21: V.hó | K21: VI.hó | L21: VII.hó | M21: VIII.hó | N21: IX.hó | O21: X. hó | P21: XI.hó | Q21: XII. hó | R21: teljesítés I-XII. hó | S21: teljesítés %-a | T21: I.n.év | U21: II.n.év | V21: III.n.év | W21: IV.n.év
A22: Expenditures | C22: appropriation | D22: appropriation | E22: appropriation | F22: January | G22: February | H22: March | I22: April | J22: May | K22: June | L22: July | M22: August | N22: September | O22: October | P22: November | Q22: December | R22: facts January-December | S22: facts in the % of the appropriation | T22: 1st quarter | U22: 2nd quarter | V22: 3nd quarter | W22: 4th quarter
A23: Subsidies to employment and training | B23: Foglalkoztatási támogatások | C23: 23567.1 | D23: 23567.1 | E23: 25767.1 | F23: 9952.702215 | G23: 131.274916 | H23: 167.245544 | I23: 87.626872 | J23: 206.278572 | K23: 235.045185 | L23: 362.85763 | M23: 5915.282775 | N23: 2740.892629 | O23: 353.215343 | P23: 574.602553 | Q23: 3976.960709 | R23: 24703.98494 | S23: 95.87413773 | T23: 10251.22268 | U23: 528.950629 | V23: 9019.033034 | W23: 4904.778605
A24: Subsidies to vocational training and adult education | B24: Szakképzési támogatások | C24: 63000 | D24: 63000 | E24: 63000 | F24: 3965.06892 | G24: 593.690173 | H24: 8100.127424 | I24: 3670.252 | J24: 2818.516 | K24: 8168.653 | L24: 0.215 | M24: 9995.10265 | N24: 181.258721 | O24: 7869.469168 | P24: 7135.789406 | Q24: 10500.88654 | R24: 62999.029 | S24: 99.99845873 | T24: 12658.88652 | U24: 14657.421 | V24: 10176.57637 | W24: 25506.14511
A25: Passive expenditures and unemployment benefit | B25: Passzív kiadások, álláskeresési támogatások | C25: 197000 | D25: 197000 | E25: 197000 | F25: 7610.575191 | G25: 13832.16831 | H25: 15180.09407 | I25: 16502.77409 | J25: 16573.23912 | K25: 16356.44951 | L25: 15938.52063 | M25: 17031.35549 | N25: 17273.2459 | O25: 16617.93294 | P25: 16901.39966 | Q25: 26615.86525 | R25: 196433.6202 | S25: 99.71249754 | T25: 36622.83757 | U25: 49432.46272 | V25: 50243.12202 | W25: 60135.19784
A26: Payment of wage guarantee subsidies | B26: Bérgarancia kifizetések | C26: 3500 | D26: 3500 | E26: 3500 | F26: 2420.135733 | G26: 2077.74067 | H26: 2349.91072 | I26: 2141.530153 | J26: 2066.656668 | K26: 1927.258093 | L26: 8258.441403 | M26: 4183.616411 | N26: 626.139839 | O26: 425.929543 | P26: 1297.391733 | Q26: 1509.291758 | R26: 29284.04272 | S26: 836.686935 | T26: 6847.787123 | U26: 6135.444914 | V26: 13068.19765 | W26: 3232.613034
A27: Expenditures on operation purposes | B27: Működtetési célú kifizetések | C27: 1300 | D27: 1300 | E27: 1600 | F27: 86.291771 | G27: 110.874531 | H27: 115.014607 | I27: 139.440803 | J27: 127.213499 | K27: 125.125624 | L27: 126.871746 | M27: 125.152337 | N27: 131.017329 | O27: 127.246906 | P27: 131.226902 | Q27: 204.854327 | R27: 1550.330382 | S27: 96.89564888 | T27: 312.180909 | U27: 391.779926 | V27: 383.041412 | W27: 463.328135
A28: Start-work programme | B28: Start-munkaprogram | C28: 140800 | D28: 140800 | E28: 140800 | F28: 6862.400604 | G28: 7394.677702 | H28: 25854.41389 | I28: 10233.03644 | J28: 10759.45427 | K28: 10958.92145 | L28: 9991.560986 | M28: 10347.76534 | N28: 9658.412727 | O28: 8271.105261 | P28: 12938.84721 | Q28: 11091.61194 | R28: 134362.2078 | S28: 95.42770441 | T28: 40111.4922 | U28: 31951.41216 | V28: 29997.73905 | W28: 32301.56441
A29: EU pre-financing and co-financing | B29: EU-s elő és társfinanszírozás | C29: 83000 | D29: 83000 | E29: 82700 | F29: 3154.629306 | G29: 4221.277756 | H29: 4682.512882 | I29: 5032.698899 | J29: 4978.021404 | K29: 4148.364797 | L29: 5403.640489 | M29: 4180.861493 | N29: 4063.27357 | O29: 26330.55293 | P29: 5540.684452 | Q29: 6538.596006 | R29: 78275.11399 | S29: 94.64947278 | T29: 12058.41994 | U29: 14159.0851 | V29: 13647.77555 | W29: 38409.83339
A30: Crisis subsidies | B30: Válsághelyzeti támogatás | C30: 200 | D30: 200 | E30: 300 | F30: 12.28768 | G30: 20.960326 | H30: 19.752764 | I30: 19.406336 | J30: 20.344391 | K30: 19.377097 | L30: 20.383655 | M30: 19.587506 | N30: 19.961254 | O30: 20.141098 | P30: 17.88922 | Q30: 28.643112 | R30: 238.734439 | S30: 79.57814633 | T30: 53.00077 | U30: 59.127824 | V30: 59.932415 | W30: 66.67343
A31: Subtotal | B31: Költségvetési kiadások | C31: 512367.1 | D31: 512367.1 | E31: 514667.1 | F31: 34064.09142 | G31: 28382.66438 | H31: 56469.0719 | I31: 37826.76558 | J31: 37549.72393 | K31: 41939.19476 | L31: 40102.49154 | M31: 51798.72401 | N31: 34694.20197 | O31: 60015.59319 | P31: 44537.83114 | Q31: 60466.70963 | R31: 527847.0634 | S31: 102.5608716 | T31: 118915.8277 | U31: 117315.6843 | V31: 126595.4175 | W31: 165020.134
A32: Expenditure of special settlements | B32: Sajátos elszámolások kiadása | C32: 0 | D32: 0 | E32: 0 | F32: 0 | G32: 0 | H32: 0 | I32: 0 | J32: 0 | K32: 0 | L32: 0 | M32: 0.005724 | N32: -0.005724 | O32: 0 | P32: 0 | Q32: 0 | R32: 0 | S32: - | T32: 0 | U32: 0 | V32: 0 | W32: 0
A33: In total | B33: Kiadások összesen | C33: 512367.1 | D33: 512367.1 | E33: 514667.1 | F33: 34064.09142 | G33: 28382.66438 | H33: 56469.0719 | I33: 37826.76558 | J33: 37549.72393 | K33: 41939.19476 | L33: 40102.49154 | M33: 51798.72973 | N33: 34694.19625 | O33: 60015.59319 | P33: 44537.83114 | Q33: 60466.70963 | R33: 527847.0634 | S33: 102.5608716 | T33: 118915.8277 | U33: 117315.6843 | V33: 126595.4175 | W33: 165020.134
A35: Total revenues | B35: Bevételek összesen | C35: 506900 | D35: 506900 | E35: 509200 | F35: 38123.44573 | G35: 35677.13593 | H35: 34994.84005 | I35: 37019.63034 | J35: 37998.34906 | K35: 37566.73472 | L35: 38842.05541 | M35: 49226.06686 | N35: 37683.42279 | O35: 38188.54878 | P35: 37262.93676 | Q35: 40879.88305 | R35: 463463.0495 | S35: 91.01788089 | T35: 108795.4217 | U35: 112584.7141 | V35: 125751.5451 | W35: 116331.3686
A36: Total expenditures | B36: Kiadások összesen | C36: 512367.1 | D36: 512367.1 | E36: 514667.1 | F36: 34064.09142 | G36: 28382.66438 | H36: 56469.0719 | I36: 37826.76558 | J36: 37549.72393 | K36: 41939.19476 | L36: 40102.49154 | M36: 51798.72973 | N36: 34694.19625 | O36: 60015.59319 | P36: 44537.83114 | Q36: 60466.70963 | R36: 527847.0634 | S36: 102.5608716 | T36: 118915.8277 | U36: 117315.6843 | V36: 126595.4175 | W36: 165020.134
A37: Changes in the balance | B37: Egyenlegváltozás | C37: -5467.1 | D37: -5467.1 | E37: -5467.1 | F37: 4059.354306 | G37: 7294.471552 | H37: -21474.23185 | I37: -807.135246 | J37: 448.62513 | K37: -4372.460039 | L37: -1260.436124 | M37: -2572.662873 | N37: 2989.226548 | O37: -21827.04441 | P37: -7274.894377 | Q37: -19586.82658 | R37: -64384.01396 | S37: - | T37: -10120.40599 | U37: -4730.970155 | V37: -843.872449 | W37: -48688.76537

Sheet NFA-teljarány
B1: Magyar Államkincstár | S1: 12. Szám
H2: A Nemzeti Foglalkoztatási Alap költségvetésének előzetes teljesítése az előirányzat százalékában | S2: J/b2./NFA melléklet
S3: %-ban
A4: Hungarian State Treasury | S4: No. 12
H5: Preliminary Balance of National Employment Fund's Budget in per cent of approval | S5: Appendix J/b2./NEF
S6: per cent
H7: 2025. | O7: kumulált | R7: 2025.
B8: Bevételek | C8: I. hó | D8: II.hó | E8: III.hó | F8: IV.hó | G8: V.hó | H8: VI.hó | I8: VII.hó | J8: VIII.hó | K8: IX.hó | L8: X. hó | M8: XI.hó | N8: XII.hó | O8: teljesítés %-a | P8: I.n.év | Q8: II.n.év | R8: III.n.év | S8: IV.n.év
A9: Revenues | C9: January | D9: February | E9: March | F9: April | G9: May | H9: June | I9: July | J9: August | K9: September | L9: October | M9: November | N9: December | O9: facts in the % of the appropriation | P9: 1st quarter | Q9: 2nd quarter | R9: 3nd quarter | S9: 4th quarter
A10: Revenues of Social Renewal Operational Programme (TÁMOP) measures | B10: Előfinanszírozott uniós programok kiadásainak visszatérülése | C10: 0 | D10: 0 | E10: 0.5785138329 | F10: 0 | G10: 0 | H10: 0.5215229257 | I10: 2.141860533 | J10: 16.64303992 | K10: 2.959576971 | L10: 1.818701537 | M10: 0.10751123 | N10: 2.376229184 | O10: 27.14695614 | P10: 0.5785138329 | Q10: 0.5215229257 | R10: 21.74447743 | S10: 4.302441951
A11: Other incomes | B11: Egyéb bevétel | C11: 2.807130808 | D11: 7.63067503 | E11: 6.468614 | F11: 5.428707616 | G11: 13.42841162 | H11: 17.89550814 | I11: 6.090693414 | J11: 28.34634265 | K11: 3.997478687 | L11: 8.736923758 | M11: 15.35077784 | N11: 5.320757778 | O11: 121.5020213 | P11: 16.90641984 | Q11: 36.75262737 | R11: 38.43451475 | S11: 29.40845937
A12: Redemption of wage guarantee subsidies | B12: Bérgarancia támogatás törlesztése | C12: 18.8926836 | D12: 52.98639177 | E12: 6.795413657 | F12: 15.58718091 | G12: 0.4471158286 | H12: 0.5125809143 | I12: 0.0918368 | J12: 4.708934057 | K12: 1.268136057 | L12: 1.871737486 | M12: 22.1988648 | N12: 1.310181943 | O12: 126.6710578 | P12: 78.67448903 | Q12: 16.54687766 | R12: 6.068906914 | S12: 25.38078423
A13: Health insurance and labour market contribution entitled for Economy Protection Employment Fund | B13: Társadalombiztosítási járulék NFA-t megillető része | C13: 8.680295284 | D13: 7.9465706 | E13: 7.828575211 | F13: 8.48459998 | G13: 8.623289768 | H13: 8.428774185 | I13: 8.565036124 | J13: 8.339050582 | K13: 8.172670554 | L13: 8.43982453 | M13: 8.258411168 | N13: 9.030428215 | O13: 100.7975262 | P13: 24.45544109 | Q13: 25.53666393 | R13: 25.07675726 | S13: 25.72866391
A14: Subtotal | B14: Költségvetési bevételek | C14: 7.465014148 | D14: 7.005871585 | E14: 6.81513425 | F14: 7.312920583 | G14: 7.456453093 | H14: 7.406581347 | I14: 7.628864902 | J14: 9.662622156 | K14: 7.391706913 | L14: 7.509930342 | M14: 7.254758406 | N14: 8.053077013 | O14: 90.96293474 | P14: 21.28601998 | Q14: 22.17595502 | R14: 24.68319397 | S14: 22.81776576
A15: Financial incomes | B15: Finanszírozási bevételek
A16: Income of special settlements | B16: Sajátos elszámolások bevétele
A17: In total | B17: Bevételek összesen | C17: 7.48692964 | D17: 7.00650745 | E17: 6.872513757 | F17: 7.270155212 | G17: 7.462362344 | H17: 7.37759912 | I17: 7.628054873 | J17: 9.667334418 | K17: 7.400515081 | L17: 7.499715 | M17: 7.317937306 | N17: 8.028256687 | O17: 91.01788089 | P17: 21.36595085 | Q17: 22.11011668 | R17: 24.69590437 | S17: 22.84590899
S18: %-ban
S19: per cent
H20: 2025. | O20: kumulált | R20: 2025.
A21: Expenditures | B21: Kiadások | C21: I. hó | D21: II.hó | E21: III.hó | F21: IV.hó | G21: V.hó | H21: VI.hó | I21: VII.hó | J21: VIII.hó | K21: IX.hó | L21: X. hó | M21: XI.hó | N21: XII.hó | O21: teljesítés %-a | P21: I.n.év | Q21: II.n.év | R21: III.n.év | S21: IV.n.év
A22: Expenditures | C22: January | D22: February | E22: March | F22: April | G22: May | H22: June | I22: July | J22: August | K22: September | L22: October | M22: November | N22: December | O22: facts in the % of the appropriation | P22: 1st quarter | Q22: 2nd quarter | R22: 3nd quarter | S22: 4th quarter
A23: Subsidies to employment and training | B23: Foglalkoztatási támogatások | C23: 38.62562033 | D23: 0.5094671733 | E23: 0.6490662279 | F23: 0.3400726974 | G23: 0.8005502055 | H23: 0.9121910692 | I23: 1.408220677 | J23: 22.95672689 | K23: 10.63717931 | L23: 1.370799752 | M23: 2.229985342 | N23: 15.43425806 | O23: 95.87413773 | P23: 39.78415373 | Q23: 2.052813972 | R23: 35.00212687 | S23: 19.03504316
A24: Subsidies to vocational training and adult education | B24: Szakképzési támogatások | C24: 6.29376019 | D24: 0.942365354 | E24: 12.85734512 | F24: 5.825796825 | G24: 4.473834921 | H24: 12.96611587 | I24: 0.0003412698413 | J24: 15.8652423 | K24: 0.2877122556 | L24: 12.4912209 | M24: 11.32664985 | N24: 16.66807387 | O24: 99.99845873 | P24: 20.09347066 | Q24: 23.26574762 | R24: 16.15329583 | S24: 40.48594462
A25: Passive expenditures and unemployment benefit | B25: Passzív kiadások, álláskeresési támogatások | C25: 3.863236138 | D25: 7.021405232 | E25: 7.705631507 | F25: 8.377042683 | G25: 8.412811736 | H25: 8.302766251 | I25: 8.090619608 | J25: 8.645358119 | K25: 8.768145127 | L25: 8.435498952 | M25: 8.579390691 | N25: 13.5105915 | O25: 99.71249754 | P25: 18.59027288 | Q25: 25.09262067 | R25: 25.50412285 | S25: 30.52548114
A26: Payment of wage guarantee subsidies | B26: Bérgarancia kifizetések | C26: 69.14673523 | D26: 59.36401914 | E26: 67.14030629 | F26: 61.1865758 | G26: 59.04733337 | H26: 55.06451694 | I26: 235.9554687 | J26: 119.5318975 | K26: 17.88970969 | L26: 12.16941551 | M26: 37.06833523 | N26: 43.12262166 | O26: 836.686935 | P26: 195.6510607 | Q26: 175.2984261 | R26: 373.3770758 | S26: 92.3603724
A27: Expenditures on operation purposes | B27: Működtetési célú kifizetések | C27: 5.393235687 | D27: 6.929658188 | E27: 7.188412937 | F27: 8.715050188 | G27: 7.950843687 | H27: 7.8203515 | I27: 7.929484125 | J27: 7.822021062 | K27: 8.188583062 | L27: 7.952931625 | M27: 8.201681375 | N27: 12.80339544 | O27: 96.89564888 | P27: 19.51130681 | Q27: 24.48624537 | R27: 23.94008825 | S27: 28.95800844
A28: Start-work programme | B28: Start-munkaprogram | C28: 4.873864065 | D28: 5.251901777 | E28: 18.36250987 | F28: 7.267781559 | G28: 7.641657866 | H28: 7.783324893 | I28: 7.096279109 | J28: 7.349265156 | K28: 6.85966813 | L28: 5.874364532 | M28: 9.189522168 | N28: 7.877565295 | O28: 95.42770441 | P28: 28.48827571 | Q28: 22.69276432 | R28: 21.30521239 | S28: 22.94145199
A29: EU pre-financing and co-financing | B29: EU-s elő és társfinanszírozás | C29: 3.814545715 | D29: 5.104326186 | E29: 5.662047016 | F29: 6.085488391 | G29: 6.019372919 | H29: 5.016160577 | I29: 6.534027193 | J29: 5.055455252 | K29: 4.913269129 | L29: 31.83863716 | M29: 6.699739362 | N29: 7.906403877 | O29: 94.64947278 | P29: 14.58091892 | Q29: 17.12102189 | R29: 16.50275157 | S29: 46.4447804
A30: Crisis subsidies | B30: Válsághelyzeti támogatás | C30: 4.095893333 | D30: 6.986775333 | E30: 6.584254667 | F30: 6.468778667 | G30: 6.781463667 | H30: 6.459032333 | I30: 6.794551667 | J30: 6.529168667 | K30: 6.653751333 | L30: 6.713699333 | M30: 5.963073333 | N30: 9.547704 | O30: 79.57814633 | P30: 17.66692333 | Q30: 19.70927467 | R30: 19.97747167 | S30: 22.22447667
A31: Subtotal | B31: Költségvetési kiadások | C31: 6.61866504 | D31: 5.514761752 | E31: 10.97196069 | F31: 7.349753964 | G31: 7.295924672 | H31: 8.148800411 | I31: 7.791928324 | J31: 10.06451044 | K31: 6.741095743 | L31: 11.66105103 | M31: 8.653716381 | N31: 11.74870312 | O31: 102.5608716 | P31: 23.10538748 | Q31: 22.79447905 | R31: 24.59753451 | S31: 32.06347053
A32: Expenditure of special settlements | B32: Sajátos elszámolások kiadása
A33: In total | B33: Kiadások összesen | C33: 6.61866504 | D33: 5.514761752 | E33: 10.97196069 | F33: 7.349753964 | G33: 7.295924672 | H33: 8.148800411 | I33: 7.791928324 | J33: 10.06451155 | K33: 6.741094631 | L33: 11.66105103 | M33: 8.653716381 | N33: 11.74870312 | O33: 102.5608716 | P33: 23.10538748 | Q33: 22.79447905 | R33: 24.59753451 | S33: 32.06347053
A35: Total revenues | B35: Bevételek összesen | C35: 7.48692964 | D35: 7.00650745 | E35: 6.872513757 | F35: 7.270155212 | G35: 7.462362344 | H35: 7.37759912 | I35: 7.628054873 | J35: 9.667334418 | K35: 7.400515081 | L35: 7.499715 | M35: 7.317937306 | N35: 8.028256687 | O35: 91.01788089 | P35: 21.36595085 | Q35: 22.11011668 | R35: 24.69590437 | S35: 22.84590899
A36: Total expenditures | B36: Kiadások összesen | C36: 6.61866504 | D36: 5.514761752 | E36: 10.97196069 | F36: 7.349753964 | G36: 7.295924672 | H36: 8.148800411 | I36: 7.791928324 | J36: 10.06451155 | K36: 6.741094631 | L36: 11.66105103 | M36: 8.653716381 | N36: 11.74870312 | O36: 102.5608716 | P36: 23.10538748 | Q36: 22.79447905 | R36: 24.59753451 | S36: 32.06347053

Sheet KNPA-mérleg
B1: Magyar Államkincstár | J1: 12. Szám
F2: A Központi Nukleáris Pénzügyi Alap költségvetésének előzetes teljesítése | J2: J/a./KNPA melléklet
J3: Millió Ft
A4: Hungarian State Treasury | J4: No. 12
C5: Preliminary Balance of Central Nuclear Fund's Budget | J5: Appendix J/a./ KNPA
J6: Million HUF
D7: 2024. | F7: 2025.
B8: Bevételek | C8: előzetes teljesítés | D8: teljesítés I-XII. hó | E8: teljesítés %-a* | F8: törvényi előirányzat | G8: törvénnyel módosított előirányzat | H8: módosított előirányzat | I8: teljesítés I-XII. hó | J8: teljesítés %-a*
A9: Revenues | C9: preliminary facts | D9: facts January-December | E9: % of facts * | F9: appropriation | G9: appropriation | H9: appropriation | I9: facts January-December | J9: facts in the % of the appropriation
A10: Payments from nuclear institutions: Nuclear Power-station in Paks | B10: Nukleáris létesítmények befizetései | C10: 32934.2 | D10: 32934.2 | E10: 100 | F10: 34188.1 | G10: 34188.1 | H10: 34188.1 | I10: 34188.1 | J10: 100
A11: Final and temporary placement of radioactive waste material | B11: Radioaktív hulladékok végleges, eseti elhelyezése | C11: 2.98954 | D11: 2.98954 | E11: 100 | F11: 3.1 | G11: 3.1 | H11: 3.1 | I11: 4.890091 | J11: 157.744871
A12: Budgetary subsidy | B12: Költségvetési támogatás | C12: 109103.2422 | D12: 109103.2422 | E12: 100 | F12: 41802 | G12: 41802 | H12: 41802 | I12: 42627.10962 | J12: 101.973852
A13: Other incomes | B13: Egyéb bevételek | C13: 7718.954965 | D13: 7718.954965 | E13: 100 | F13: 0 | G13: 0 | H13: 346.7 | I13: 8355.404407 | J13: 2409.981081
A14: Subtotal | B14: Költségvetési bevételek | C14: 149759.3867 | D14: 149759.3867 | E14: 100 | F14: 75993.2 | G14: 75993.2 | H14: 76339.9 | I14: 85175.50411 | J14: 111.5740316
A15: Financial incomes | B15: Finanszírozási bevételek | C15: 0 | D15: 0 | E15: - | F15: 0 | G15: 0 | H15: 0 | I15: 0 | J15: -
A16: Income of special settlements | B16: Sajátos elszámolások bevétele | C16: 0 | D16: 0 | E16: - | F16: 0 | G16: 0 | H16: 0 | I16: 0 | J16: -
A17: In total | B17: Bevételek összesen | C17: 149759.3867 | D17: 149759.3867 | E17: 100 | F17: 75993.2 | G17: 75993.2 | H17: 76339.9 | I17: 85175.50411 | J17: 111.5740316
J18: Millió Ft
J19: Million HUF
D20: 2024. | F20: 2025.
B21: Kiadások | C21: előzetes teljesítés | D21: teljesítés I-XII. hó | E21: teljesítés %-a* | F21: törvényi előirányzat | G21: törvénnyel módosított előirányzat | H21: módosított előirányzat | I21: teljesítés I-XII. hó | J21: teljesítés %-a*
A22: Expenditures | C22: preliminary facts | D22: facts January-December | E22: % of facts * | F22: appropriation | G22: appropriation | H22: appropriation | I22: facts January-December | J22: facts in the % of the appropriation
A23: Development and investment expenditures | B23: Fejlesztési, beruházási célú kiadások | C23: 17463.3 | D23: 17463.3 | E23: 100 | F23: 14472.9 | G23: 14472.9 | H23: 14472.9 | I23: 14472.9 | J23: 100
A24: Money transfers | B24: Átadott pénzeszközök | C24: 10505.8 | D24: 10505.8 | E24: 100 | F24: 11298.7 | G24: 11298.7 | H24: 11645.4 | I24: 11645.4 | J24: 100
A25: Closing of the nuclear fuel cycle | B25: Nukleáris üzemanyag-ciklus lezárása | C25: 23.5 | D25: 23.5 | E25: 100
A26: Subtotal | B26: Költségvetési kiadások | C26: 27992.6 | D26: 27992.6 | E26: 100 | F26: 25771.6 | G26: 25771.6 | H26: 26118.3 | I26: 26118.3 | J26: 100
A27: Expenditure of special settlements | B27: Sajátos elszámolások kiadása | C27: 0 | D27: 0 | E27: - | F27: 0 | G27: 0 | H27: 0 | I27: 0 | J27: -
A28: In total | B28: Kiadások összesen | C28: 27992.6 | D28: 27992.6 | E28: 100 | F28: 25771.6 | G28: 25771.6 | H28: 26118.3 | I28: 26118.3 | J28: 100
A30: Opening balance | B30: KNPA számlájának nyitóegyenlege | C30: 571578.5629 | F30: 693345.3496 | G30: 693345.3496 | H30: 693345.3496
A31: Total revenues | B31: Bevételek összesen | C31: 149759.3867 | D31: 149759.3867 | E31: 100 | F31: 75993.2 | G31: 75993.2 | H31: 76339.9 | I31: 85175.50411 | J31: 111.5740316
A32: Total expenditures | B32: Kiadások összesen | C32: 27992.6 | D32: 27992.6 | E32: 100 | F32: 25771.6 | G32: 25771.6 | H32: 26118.3 | I32: 26118.3 | J32: 100
A33: Net balance without credit | B33: KNPA számlájának egyenlegváltozása | C33: 121766.7867 | D33: 121766.7867 | E33: 100 | F33: 50221.6 | G33: 50221.6 | H33: 50221.6 | I33: 59057.20411 | J33: 117.593235
A34: Closing balance | B34: KNPA számlájának záróegyenlege | C34: 693345.3496 | D34: 693345.3496 | E34: - | F34: 743566.9496 | G34: 743566.9496 | H34: 743566.9496 | I34: 752402.5537 | J34: -
B36: * a teljesítés %-a az előző évnél előzetes teljesítés=100, a tárgyévnél a módosított előirányzat=100
A45: * % of facts, preliminary facts of previous year=100, appropriation of current year (as in the law) =100

Sheet KNPA-havi
B1: Magyar Államkincstár | S1: 12. Szám
H2: A Központi Nukleáris Pénzügyi Alap költségvetésének előzetes teljesítése | S2: J/b./KNPA melléklet
S3: Millió Ft
A4: Hungarian State Treasury | S4: No. 12
H5: Preliminary Balance of Central Nuclear Fund's Budget | S5: Appendix J/b./ KNPA
S6: Million HUF
K7: 2025. | U7: 2025.
B8: Bevételek | C8: törvényi előirányzat | D8: törvénnyel módosított előirányzat | E8: módosított előirányzat | F8: I.hó | G8: II.hó | H8: III.hó | I8: IV.hó | J8: V.hó | K8: VI.hó | L8: VII.hó | M8: VIII.hó | N8: IX.hó | O8: X. hó | P8: XI.hó | Q8: XII. hó | R8: teljesítés I-XII. hó | S8: teljesítés %-a | T8: I.n.év | U8: II.n.év | V8: III.n.év | W8: IV.n.év
A9: Revenues | C9: appropriation | D9: appropriation | E9: appropriation | F9: January | G9: February | H9: March | I9: April | J9: May | K9: June | L9: July | M9: August | N9: September | O9: October | P9: November | Q9: December | R9: facts January-December | S9: facts in the % of the appropriation | T9: 1st quarter | U9: 2nd quarter | V9: 3nd quarter | W9: 4th quarter
A10: Payments from nuclear institutions: Nuclear Power-station in Paks | B10: Nukleáris létesítmények bef.: MVM Paksi Atomerőmű Zrt. | C10: 34188.1 | D10: 34188.1 | E10: 34188.1 | F10: 2832.341667 | G10: 2865.674999 | H10: 2849.008333 | I10: 2849.008333 | J10: 2849.008333 | K10: 2849.008333 | L10: 2849.008333 | M10: 2849.008333 | N10: 2849.008333 | O10: 2849.008333 | P10: 2849.008333 | Q10: 2849.008337 | R10: 34188.1 | S10: 100 | T10: 8547.024999 | U10: 8547.024999 | V10: 8547.024999 | W10: 8547.025003
A11: Final and temporary placement of radioactive waste material | B11: Radioaktív hulladékok végleges, eseti elhelyezése | C11: 3.1 | D11: 3.1 | E11: 3.1 | F11: 0.121315 | G11: 0.23142 | H11: 0.686555 | I11: 0 | J11: 0.063185 | K11: 0.02326 | L11: 2.075325 | M11: 0.215046 | N11: 0.871665 | O11: 0.18779 | P11: 0.110785 | Q11: 0.303745 | R11: 4.890091 | S11: 157.744871 | T11: 1.03929 | U11: 0.086445 | V11: 3.162036 | W11: 0.60232
A12: Budgetary subsidy | B12: Költségvetési támogatás | C12: 41802 | D12: 41802 | E12: 41802 | F12: 3552.259135 | G12: 3552.259134 | H12: 3552.259135 | I12: 3552.259134 | J12: 3552.259135 | K12: 3552.259134 | L12: 3552.259135 | M12: 3552.259134 | N12: 3552.259135 | O12: 3552.259134 | P12: 3552.259135 | Q12: 3552.259135 | R12: 42627.10962 | S12: 101.973852 | T12: 10656.7774 | U12: 10656.7774 | V12: 10656.7774 | W12: 10656.7774
A13: Other incomes | B13: Egyéb bevételek | C13: 0 | D13: 0 | E13: 346.7 | F13: 0 | G13: 0.361429 | H13: 0 | I13: 0 | J13: 0 | K13: 0.002299 | L13: 8355.040679 | M13: 0 | N13: 0 | O13: 0 | P13: 0 | Q13: 0 | R13: 8355.404407 | S13: 2409.981081 | T13: 0.361429 | U13: 0.002299 | V13: 8355.040679 | W13: 0
A14: Subtotal | B14: Költségvetési bevételek | C14: 75993.2 | D14: 75993.2 | E14: 76339.9 | F14: 6384.722117 | G14: 6418.526982 | H14: 6401.954023 | I14: 6401.267467 | J14: 6401.330653 | K14: 6401.293026 | L14: 14758.38347 | M14: 6401.482513 | N14: 6402.139133 | O14: 6401.455257 | P14: 6401.378253 | Q14: 6401.571217 | R14: 85175.50411 | S14: 111.5740316 | T14: 19205.20312 | U14: 19203.89115 | V14: 27562.00512 | W14: 19204.40473
A15: Financial incomes | B15: Finanszírozási bevételek | C15: 0 | D15: 0 | E15: 0 | F15: 0 | G15: 0 | H15: 0 | I15: 0 | J15: 0 | K15: 0 | L15: 0 | M15: 0 | N15: 0 | O15: 0 | P15: 0 | Q15: 0 | R15: 0 | S15: - | T15: 0 | U15: 0 | V15: 0 | W15: 0
A16: Income of special settlements | B16: Sajátos elszámolások bevétele | C16: 0 | D16: 0 | E16: 0 | F16: 0 | G16: 0.628995 | H16: -0.628995 | I16: 0 | J16: 0 | K16: 0 | L16: 0 | M16: 0 | N16: 0 | O16: 0 | P16: 0 | Q16: 0 | R16: 0 | S16: - | T16: 0 | U16: 0 | V16: 0 | W16: 0
A17: Total revenues | B17: Bevételek összesen | C17: 75993.2 | D17: 75993.2 | E17: 76339.9 | F17: 6384.722117 | G17: 6419.155977 | H17: 6401.325028 | I17: 6401.267467 | J17: 6401.330653 | K17: 6401.293026 | L17: 14758.38347 | M17: 6401.482513 | N17: 6402.139133 | O17: 6401.455257 | P17: 6401.378253 | Q17: 6401.571217 | R17: 85175.50411 | S17: 111.5740316 | T17: 19205.20312 | U17: 19203.89115 | V17: 27562.00512 | W17: 19204.40473
S18: Millió Ft
S19: Million HUF
K20: 2025. | U20: 2025.
B21: Kiadások | C21: törvényi előirányzat | D21: törvénnyel módosított előirányzat | E21: módosított előirányzat | F21: I.hó | G21: II.hó | H21: III.hó | I21: IV.hó | J21: V.hó | K21: VI.hó | L21: VII.hó | M21: VIII.hó | N21: IX.hó | O21: X. hó | P21: XI.hó | Q21: XII. hó | R21: teljesítés I-XII. hó | S21: teljesítés %-a | T21: I.n.év | U21: II.n.év | V21: III.n.év | W21: IV.n.év
A22: Expenditures | C22: appropriation | D22: appropriation | E22: appropriation | F22: January | G22: February | H22: March | I22: April | J22: May | K22: June | L22: July | M22: August | N22: September | O22: October | P22: November | Q22: December | R22: facts January-December | S22: facts in the % of the appropriation | T22: 1st quarter | U22: 2nd quarter | V22: 3nd quarter | W22: 4th quarter
A23: Development and investment expenditures | B23: Fejlesztési, beruházási célú kiadások | C23: 14472.9 | D23: 14472.9 | E23: 14472.9 | F23: 0 | G23: 0 | H23: 0 | I23: 0 | J23: 0 | K23: 0 | L23: 5976.789208 | M23: 0 | N23: 0 | O23: 8496.110792 | P23: 0 | Q23: 0 | R23: 14472.9 | S23: 100 | T23: 0 | U23: 0 | V23: 5976.789208 | W23: 8496.110792
A24: Investment and development of storage place for waste material of low and medium radioactivity | B24: - Kis- és közepes akt. radioaktívhull. tár. beruh., fejlesztése | C24: 4690.9 | D24: 4690.9 | E24: 4690.9 | F24: 0 | G24: 0 | H24: 0 | I24: 0 | J24: 0 | K24: 0 | L24: 2831.906936 | M24: 0 | N24: 0 | O24: 1858.993064 | P24: 0 | Q24: 0 | R24: 4690.9 | S24: 100 | T24: 0 | U24: 0 | V24: 2831.906936 | W24: 1858.993064
A25: Selection of location of high radioactivity waste material storage place | B25: - Nagy aktivitású radioaktívhull. tár. telephely kiválasztása | C25: 2742 | D25: 2742 | E25: 2742 | F25: 0 | G25: 0 | H25: 0 | I25: 0 | J25: 0 | K25: 0 | L25: 264.559921 | M25: 0 | N25: 0 | O25: 2477.440079 | P25: 0 | Q25: 0 | R25: 2742 | S25: 100 | T25: 0 | U25: 0 | V25: 264.559921 | W25: 2477.440079
A26: Enlargement and renovation of temporary storage place of dead cells | B26: - Kiégett Kazetták Átmeneti Tárolójának bőv., felújítása | C26: 6945.7 | D26: 6945.7 | E26: 6945.7 | F26: 0 | G26: 0 | H26: 0 | I26: 0 | J26: 0 | K26: 0 | L26: 2797.723284 | M26: 0 | N26: 0 | O26: 4147.976716 | P26: 9.094947018e-13 | Q26: 0 | R26: 6945.7 | S26: 100 | T26: 0 | U26: 0 | V26: 2797.723284 | W26: 4147.976716
A27: Preparation for decommissioning of nuclear facilities: PAKS NPP | B27: - Nukleáris létesítm. leszerelésének előkész.: Paksi Atomerőmű | C27: 94.3 | D27: 94.3 | E27: 94.3 | F27: 0 | G27: 0 | H27: 0 | I27: 0 | J27: 0 | K27: 0 | L27: 82.599067 | M27: 0 | N27: 0 | O27: 11.700933 | P27: 0 | Q27: 0 | R27: 94.3 | S27: 100 | T27: 0 | U27: 0 | V27: 82.599067 | W27: 11.700933
A28: Money transfers | B28: Átadott pénzeszközök | C28: 11298.7 | D28: 11298.7 | E28: 11645.4 | F28: 0 | G28: 0 | H28: 0 | I28: 1231.6 | J28: 4914.91224 | K28: 0 | L28: 2784.956 | M28: 0 | N28: 0 | O28: 2630.43176 | P28: 0 | Q28: 83.5 | R28: 11645.4 | S28: 100 | T28: 0 | U28: 6146.51224 | V28: 2784.956 | W28: 2713.93176
A29: Operation costs of waste material storages and RHK Kft. | B29: - RHK Kft. műk., radioaktívhull. tár. és a KKÁT üzem. kiadásai | C29: 9983.6 | D29: 9983.6 | E29: 10330.3 | F29: 0 | G29: 0 | H29: 0 | I29: 0 | J29: 4914.91224 | K29: 0 | L29: 2784.956 | M29: 0 | N29: 0 | O29: 2630.43176 | P29: 0 | Q29: 0 | R29: 10330.3 | S29: 100 | T29: 0 | U29: 4914.91224 | V29: 2784.956 | W29: 2630.43176
A30: Subsidy for information services and social controls | B30: - Ellenőrzési és információs c. önk. társulások támogatása | C30: 1231.6 | D30: 1231.6 | E30: 1231.6 | F30: 0 | G30: 0 | H30: 0 | I30: 1231.6 | J30: 0 | K30: 0 | L30: 0 | M30: 0 | N30: 0 | O30: 0 | P30: 0 | Q30: 0 | R30: 1231.6 | S30: 100 | T30: 0 | U30: 1231.6 | V30: 0 | W30: 0
A31: For operational purposes of the Fund Management | B31: - Alapkezelőnek működési célra | C31: 83.5 | D31: 83.5 | E31: 83.5 | F31: 0 | G31: 0 | H31: 0 | I31: 0 | J31: 0 | K31: 0 | L31: 0 | M31: 0 | N31: 0 | O31: 0 | P31: 0 | Q31: 83.5 | R31: 83.5 | S31: 100 | T31: 0 | U31: 0 | V31: 0 | W31: 83.5
A32: Subtotal | B32: Költségvetési kiadások | C32: 25771.6 | D32: 25771.6 | E32: 26118.3 | F32: 0 | G32: 0 | H32: 0 | I32: 1231.6 | J32: 4914.91224 | K32: 0 | L32: 8761.745208 | M32: 0 | N32: 0 | O32: 11126.54255 | P32: 0 | Q32: 83.5 | R32: 26118.3 | S32: 100 | T32: 0 | U32: 6146.51224 | V32: 8761.745208 | W32: 11210.04255
A33: Expenditure of special settlements | B33: Sajátos elszámolások kiadása | C33: 0 | D33: 0 | E33: 0 | F33: 0 | G33: 0 | H33: 0 | I33: 0 | J33: 0 | K33: 0 | L33: 0 | M33: 0 | N33: 0 | O33: 0 | P33: 0 | Q33: 0 | R33: 0 | S33: - | T33: 0 | U33: 0 | V33: 0 | W33: 0
A34: Total expenditures | B34: Kiadások összesen | C34: 25771.6 | D34: 25771.6 | E34: 26118.3 | F34: 0 | G34: 0 | H34: 0 | I34: 1231.6 | J34: 4914.91224 | K34: 0 | L34: 8761.745208 | M34: 0 | N34: 0 | O34: 11126.54255 | P34: 0 | Q34: 83.5 | R34: 26118.3 | S34: 100 | T34: 0 | U34: 6146.51224 | V34: 8761.745208 | W34: 11210.04255
A36: Total revenues | B36: Bevételek összesen | C36: 75993.2 | D36: 75993.2 | E36: 76339.9 | F36: 6384.722117 | G36: 6419.155977 | H36: 6401.325028 | I36: 6401.267467 | J36: 6401.330653 | K36: 6401.293026 | L36: 14758.38347 | M36: 6401.482513 | N36: 6402.139133 | O36: 6401.455257 | P36: 6401.378253 | Q36: 6401.571217 | R36: 85175.50411 | S36: 111.5740316 | T36: 19205.20312 | U36: 19203.89115 | V36: 27562.00512 | W36: 19204.40473
A37: Total expenditures | B37: Kiadások összesen | C37: 25771.6 | D37: 25771.6 | E37: 26118.3 | F37: 0 | G37: 0 | H37: 0 | I37: 1231.6 | J37: 4914.91224 | K37: 0 | L37: 8761.745208 | M37: 0 | N37: 0 | O37: 11126.54255 | P37: 0 | Q37: 83.5 | R37: 26118.3 | S37: 100 | T37: 0 | U37: 6146.51224 | V37: 8761.745208 | W37: 11210.04255
A38: Changes in the balance | B38: Egyenlegváltozás | C38: 50221.6 | D38: 50221.6 | E38: 50221.6 | F38: 6384.722117 | G38: 6419.155977 | H38: 6401.325028 | I38: 5169.667467 | J38: 1486.418413 | K38: 6401.293026 | L38: 5996.638264 | M38: 6401.482513 | N38: 6402.139133 | O38: -4725.087295 | P38: 6401.378253 | Q38: 6318.071217 | R38: 59057.20411 | S38: 117.593235 | T38: 19205.20312 | U38: 13057.37891 | V38: 18800.25991 | W38: 7994.362175

Sheet KNPA-teljarány
B1: Magyar Államkincstár | S1: 12. Szám
H2: A Központi Nukleáris Pénzügyi Alap költségvetésének előzetes teljesítése az előirányzat százalékában | S2: J/b2./KNPA melléklet
S3: %-ban
A4: Hungarian State Treasury | S4: No. 12
H5: Preliminary Balance of Central Nuclear Fund's Budget in per cent of approval | S5: Appendix J/b2./KNPA
S6: per cent
H7: 2025. | O7: kumulált | R7: 2025.
B8: Bevételek | C8: I. hó | D8: II.hó | E8: III.hó | F8: IV.hó | G8: V.hó | H8: VI.hó | I8: VII.hó | J8: VIII.hó | K8: IX.hó | L8: X. hó | M8: XI.hó | N8: XII.hó | O8: teljesítés %-a | P8: I.n.év | Q8: II.n.év | R8: III.n.év | S8: IV.n.év
A9: Revenues | C9: January | D9: February | E9: March | F9: April | G9: May | H9: June | I9: July | J9: August | K9: September | L9: October | M9: November | N9: December | O9: facts in the % of the appropriation | P9: 1st quarter | Q9: 2nd quarter | R9: 3nd quarter | S9: 4th quarter
A10: Payments from nuclear institutions: Nuclear Power-station in Paks | B10: Nukleáris létesítmények bef.: MVM Paksi Atomerőmű Zrt. | C10: 8.284583428 | D10: 8.382083237 | E10: 8.333333332 | F10: 8.333333332 | G10: 8.333333332 | H10: 8.333333332 | I10: 8.333333332 | J10: 8.333333332 | K10: 8.333333332 | L10: 8.333333332 | M10: 8.333333332 | N10: 8.333333344 | O10: 100 | P10: 25 | Q10: 25 | R10: 25 | S10: 25.00000001
A11: Final and temporary placement of radioactive waste material | B11: Radioaktív hulladékok végleges, eseti elhelyezése | C11: 3.913387097 | D11: 7.46516129 | E11: 22.14693548 | F11: 0 | G11: 2.038225806 | H11: 0.7503225806 | I11: 66.94596774 | J11: 6.936967742 | K11: 28.11822581 | L11: 6.057741935 | M11: 3.573709677 | N11: 9.798225806 | O11: 157.744871 | P11: 33.52548387 | Q11: 2.788548387 | R11: 102.0011613 | S11: 19.42967742
A12: Budgetary subsidy | B12: Költségvetési támogatás | C12: 8.497821001 | D12: 8.497820999 | E12: 8.497821001 | F12: 8.497820999 | G12: 8.497821001 | H12: 8.497820999 | I12: 8.497821001 | J12: 8.497820999 | K12: 8.497821001 | L12: 8.497820999 | M12: 8.497821001 | N12: 8.497821001 | O12: 101.973852 | P12: 25.493463 | Q12: 25.493463 | R12: 25.493463 | S12: 25.493463
A13: Other incomes | B13: Egyéb bevételek | C13: 0 | D13: 0.1042483415 | E13: 0 | F13: 0 | G13: 0 | H13: 0.0006631093164 | I13: 2409.876169 | J13: 0 | K13: 0 | L13: 0 | M13: 0 | N13: 0 | O13: 2409.981081 | P13: 0.1042483415 | Q13: 0.0006631093164 | R13: 2409.876169 | S13: 0
A14: Subtotal | B14: Költségvetési bevételek | C14: 8.363545298 | D14: 8.407827338 | E14: 8.386117906 | F14: 8.385218565 | G14: 8.385301334 | H14: 8.385252045 | I14: 19.33246372 | J14: 8.38550026 | K14: 8.386360387 | L14: 8.385464557 | M14: 8.385363687 | N14: 8.385616456 | O14: 111.5740316 | P14: 25.15749054 | Q14: 25.15577194 | R14: 36.10432437 | S14: 25.1564447
A15: Financial incomes | B15: Finanszírozási bevételek
A16: Income of special settlements | B16: Sajátos elszámolások bevétele
A17: Total revenues | B17: Bevételek összesen | C17: 8.363545298 | D17: 8.408651278 | E17: 8.385293966 | F17: 8.385218565 | G17: 8.385301334 | H17: 8.385252045 | I17: 19.33246372 | J17: 8.38550026 | K17: 8.386360387 | L17: 8.385464557 | M17: 8.385363687 | N17: 8.385616456 | O17: 111.5740316 | P17: 25.15749054 | Q17: 25.15577194 | R17: 36.10432437 | S17: 25.1564447
S18: %-ban
S19: per cent
H20: 2025. | O20: kumulált | R20: 2025.
B21: Kiadások | C21: I. hó | D21: II.hó | E21: III.hó | F21: IV.hó | G21: V.hó | H21: VI.hó | I21: VII.hó | J21: VIII.hó | K21: IX.hó | L21: X. hó | M21: XI.hó | N21: XII.hó | O21: teljesítés %-a | P21: I.n.év | Q21: II.n.év | R21: III.n.év | S21: IV.n.év
A22: Expenditures | C22: January | D22: February | E22: March | F22: April | G22: May | H22: June | I22: July | J22: August | K22: September | L22: October | M22: November | N22: December | O22: facts in the % of the appropriation | P22: 1st quarter | Q22: 2nd quarter | R22: 3nd quarter | S22: 4th quarter
A23: Development and investment expenditures | B23: Fejlesztési, beruházási célú kiadások | C23: 0 | D23: 0 | E23: 0 | F23: 0 | G23: 0 | H23: 0 | I23: 41.2964175 | J23: 0 | K23: 0 | L23: 58.7035825 | M23: 0 | N23: 0 | O23: 100 | P23: 0 | Q23: 0 | R23: 41.2964175 | S23: 58.7035825
A24: Investment and development of storage place for waste material of low and medium radioactivity | B24: - Kis- és közepes akt. radioaktívhull. tár. beruh., fejlesztése | C24: 0 | D24: 0 | E24: 0 | F24: 0 | G24: 0 | H24: 0 | I24: 60.3702261 | J24: 0 | K24: 0 | L24: 39.6297739 | M24: 0 | N24: 0 | O24: 100 | P24: 0 | Q24: 0 | R24: 60.3702261 | S24: 39.6297739
A25: Selection of location of high radioactivity waste material storage place | B25: - Nagy aktivitású radioaktívhull. tár. telephely kiválasztása | C25: 0 | D25: 0 | E25: 0 | F25: 0 | G25: 0 | H25: 0 | I25: 9.64842892 | J25: 0 | K25: 0 | L25: 90.35157108 | M25: 0 | N25: 0 | O25: 100 | P25: 0 | Q25: 0 | R25: 9.64842892 | S25: 90.35157108
A26: Enlargement and renovation of temporary storage place of dead cells | B26: - Kiégett Kazetták Átmeneti Tárolójának bőv., felújítása | C26: 0 | D26: 0 | E26: 0 | F26: 0 | G26: 0 | H26: 0 | I26: 40.27993268 | J26: 0 | K26: 0 | L26: 59.72006732 | M26: 1.309435625e-14 | N26: 0 | O26: 100 | P26: 0 | Q26: 0 | R26: 40.27993268 | S26: 59.72006732
A27: Preparation for decommissioning of nuclear facilities: PAKS NPP | B27: - Nukleáris létesítm. leszerelésének előkész.: Paksi Atomerőmű | C27: 0 | D27: 0 | E27: 0 | F27: 0 | G27: 0 | H27: 0 | I27: 87.59179958 | J27: 0 | K27: 0 | L27: 12.40820042 | M27: 0 | N27: 0 | O27: 100 | P27: 0 | Q27: 0 | R27: 87.59179958 | S27: 12.40820042
A28: Money transfers | B28: Átadott pénzeszközök | C28: 0 | D28: 0 | E28: 0 | F28: 10.57584969 | G28: 42.20475243 | H28: 0 | I28: 23.91464441 | J28: 0 | K28: 0 | L28: 22.58773215 | M28: 0 | N28: 0.7170213131 | O28: 100 | P28: 0 | Q28: 52.78060213 | R28: 23.91464441 | S28: 23.30475346
A29: Operation costs of waste material storages and RHK Kft. | B29: - RHK Kft. műk., radioaktívhull. tár. és a KKÁT üzem. kiad. | C29: 0 | D29: 0 | E29: 0 | F29: 0 | G29: 47.57763318 | H29: 0 | I29: 26.9591009 | J29: 0 | K29: 0 | L29: 25.46326593 | M29: 0 | N29: 0 | O29: 100 | P29: 0 | Q29: 47.57763318 | R29: 26.9591009 | S29: 25.46326593
A30: Subsidy for information services and social controls | B30: - Ellenőrzési és információs c. önk. társulások támogatása | C30: 0 | D30: 0 | E30: 0 | F30: 100 | G30: 0 | H30: 0 | I30: 0 | J30: 0 | K30: 0 | L30: 0 | M30: 0 | N30: 0 | O30: 100 | P30: 0 | Q30: 100 | R30: 0 | S30: 0
A31: For operational purposes of the Fund Management | B31: - Alapkezelőnek működési célra | C31: 0 | D31: 0 | E31: 0 | F31: 0 | G31: 0 | H31: 0 | I31: 0 | J31: 0 | K31: 0 | L31: 0 | M31: 0 | N31: 100 | O31: 100 | P31: 0 | Q31: 0 | R31: 0 | S31: 100
A32: Subtotal | B32: Költségvetési kiadások | C32: 0 | D32: 0 | E32: 0 | F32: 4.715467699 | G32: 18.81788723 | H32: 0 | I32: 33.54638398 | J32: 0 | K32: 0 | L32: 42.60056187 | M32: 0 | N32: 0.3196992147 | O32: 100 | P32: 0 | Q32: 23.53335493 | R32: 33.54638398 | S32: 42.92026109
A33: Expenditure of special settlements | B33: Sajátos elszámolások kiadása
A34: Total expenditures | B34: Kiadások összesen | C34: 0 | D34: 0 | E34: 0 | F34: 4.715467699 | G34: 18.81788723 | H34: 0 | I34: 33.54638398 | J34: 0 | K34: 0 | L34: 42.60056187 | M34: 0 | N34: 0.3196992147 | O34: 100 | P34: 0 | Q34: 23.53335493 | R34: 33.54638398 | S34: 42.92026109
A36: Total revenues | B36: Bevételek összesen | C36: 8.363545298 | D36: 8.408651278 | E36: 8.385293966 | F36: 8.385218565 | G36: 8.385301334 | H36: 8.385252045 | I36: 19.33246372 | J36: 8.38550026 | K36: 8.386360387 | L36: 8.385464557 | M36: 8.385363687 | N36: 8.385616456 | O36: 111.5740316 | P36: 25.15749054 | Q36: 25.15577194 | R36: 36.10432437 | S36: 25.1564447
A37: Total expenditures | B37: Kiadások összesen | C37: 0 | D37: 0 | E37: 0 | F37: 4.715467699 | G37: 18.81788723 | H37: 0 | I37: 33.54638398 | J37: 0 | K37: 0 | L37: 42.60056187 | M37: 0 | N37: 0.3196992147 | O37: 100 | P37: 0 | Q37: 23.53335493 | R37: 33.54638398 | S37: 42.92026109

Sheet NKFIA-mérleg
B1: Magyar Államkincstár | J1: 12. Szám
F2: A Nemzeti Kutatási, Fejlesztési és Innovációs Alap költségvetésének előzetes teljesítése | J2: J/a./NKFIA melléklet
J3: Millió Ft
A4: Hungarian State Treasury | J4: No. 12
C5: Preliminary Balance of | J5: Appendix J/a./ KTIA
C6: National Research, Development and Innovation Fund's Budget | J6: Million HUF
D7: 2024. | H7: 2025.
B8: Bevételek | C8: előzetes teljesítés | D8: teljesítés I-XII. hó | E8: teljesítés %-a* | F8: törvényi előirányzat | G8: törvénnyel módosított előirányzat | H8: módosított előirányzat | I8: teljesítés I-XII. hó | J8: teljesítés %-a*
A9: Revenues | C9: preliminary facts | D9: facts January-December | E9: % of facts * | F9: appropriation | G9: appropriation | H9: appropriation | I9: facts January-December | J9: % of facts *
A10: Contribution for innovation | B10: Innovációs járulék | C10: 159936.9027 | D10: 159936.9027 | E10: 100 | F10: 172300 | G10: 172300 | H10: 172300 | I10: 171144.1139 | J10: 99.32914331
A11: Other revenues | B11: Egyéb bevételek | C11: 1400.9472 | D11: 1400.9472 | E11: 100 | F11: 1000 | G11: 1000 | H11: 3405.612468 | I11: 3535.856771 | J11: 103.8244018
A12: Subtotal | B12: Költségvetési bevételek | C12: 161337.8499 | D12: 161337.8499 | E12: 100 | F12: 173300 | G12: 173300 | H12: 175705.6125 | I12: 174679.9707 | J12: 99.41627262
A13: Financial income | B13: Finanszírozási bevételek | C13: 0 | D13: 0 | E13: - | F13: 0 | G13: 0 | H13: 22284.3 | I13: 0 | J13: 0
A14: Incomes of special settlements | B14: Sajátos elszámolások bevétele | C14: 116.216017 | D14: 116.216017 | E14: 100 | F14: 0 | G14: 0 | H14: 0 | I14: 106.513229 | J14: -
A15: Total revenues | B15: Bevételek összesen | C15: 161454.0659 | D15: 161454.0659 | E15: 100 | F15: 173300 | G15: 173300 | H15: 197989.9125 | I15: 174786.4839 | J15: 88.28049962
J16: Millió Ft
J17: Million HUF
D18: 2024. | H18: 2025.
B19: Kiadások | C19: előzetes teljesítés | D19: teljesítés I-XII. hó | E19: teljesítés %-a* | F19: törvényi előirányzat | G19: törvénnyel módosított előirányzat | H19: módosított előirányzat | I19: teljesítés I-XII. hó | J19: teljesítés %-a*
A20: Expenditures | C20: preliminary facts | D20: facts January-December | E20: % of facts * | F20: appropriation | G20: appropriation | H20: appropriation | I20: facts January-December | J20: % of facts *
A21: Cost of Research Fund | B21: Kutatási Alaprész | C21: 46489.91109 | D21: 46489.91109 | E21: 100 | F21: 40047.7 | G21: 40047.7 | H21: 41197.40728 | I21: 41197.40644 | J21: 99.99999797
A22: Cost of Innovation Fund | B22: Innovációs Alaprész | C22: 67528.84658 | D22: 67528.84658 | E22: 100 | F22: 52650.8 | G22: 52650.8 | H22: 74225.07386 | I22: 74221.41604 | J22: 99.995072
A23: Payments to the central budget | B23: Befizetés a központi költségvetésbe | C23: 27000 | D23: 27000 | E23: 100 | F23: 32192.2 | G23: 32192.2 | H23: 32192.2 | I23: 32192.2 | J23: 100
A24: Money transfers to fund management | B24: Alapkezelőnek átadott pénzeszköz | C24: 5696.175439 | D24: 5696.175439 | E24: 100 | F24: 6166.2 | G24: 6166.2 | H24: 6166.2 | I24: 6166.2 | J24: 100
A25: Cost of Missions | B25: Missziók Alaprész | C25: 8550.923011 | D25: 8550.923011 | E25: 100 | F25: 6070.5 | G25: 6070.5 | H25: 8036.431335 | I25: 8036.431335 | J25: 100
A26: Subtotal | B26: Költségvetési kiadások | C26: 155265.8561 | D26: 155265.8561 | E26: 100 | F26: 137127.4 | G26: 137127.4 | H26: 161817.3125 | I26: 161813.6538 | J26: 99.99773902
A27: Expenditures of special settlements | B27: Sajátos elszámolások kiadása | C27: 0 | D27: 0 | E27: - | F27: 0 | G27: 0 | H27: 0 | I27: 0 | J27: -
A28: Total expenditures | B28: Kiadások összesen | C28: 155265.8561 | D28: 155265.8561 | E28: 100 | F28: 137127.4 | G28: 137127.4 | H28: 161817.3125 | I28: 161813.6538 | J28: 99.99773902
A30: Opening balance | B30: NKFIA számlájának nyitóegyenlege | C30: 163413.1513 | F30: 169601.3611 | G30: 169601.3611 | H30: 169601.3611
A31: Total revenues | B31: Bevételek összesen | C31: 161454.0659 | D31: 161454.0659 | E31: 100 | F31: 173300 | G31: 173300 | H31: 197989.9125 | I31: 174786.4839 | J31: 88.28049962
A32: Total expenditures | B32: Kiadások összesen | C32: 155265.8561 | D32: 155265.8561 | E32: 100 | F32: 137127.4 | G32: 137127.4 | H32: 161817.3125 | I32: 161813.6538 | J32: 99.99773902
A33: Net balance | B33: NKFIA számlájának egyenlegváltozása | C33: 6188.209789 | D33: 6188.209789 | E33: 100 | F33: 36172.6 | G33: 36172.6 | H33: 36172.6 | I33: 12972.83011 | J33: 35.86369271
A34: Closing balance | B34: NKFIA számlájának záróegyenlege | C34: 169601.3611 | D34: 169601.3611 | E34: - | F34: 205773.9611 | G34: 205773.9611 | H34: 205773.9611 | I34: 182574.1912 | J34: -
A36: * % of facts, preliminary facts of previous year=100, appropriation of current year =100 | B36: * a teljesítés %-a az előző évnél előzetes teljesítés=100, a tárgyévnél a módosított előirányzat=100

Sheet NKFIA-havi
B1: Magyar Államkincstár | D1: elrejteni | S1: 12. Szám
H2: A Nemzeti Kutatási, Fejlesztési és Innovációs Alap költségvetésének előzetes teljesítése | S2: J/b./NKFIA melléklet
S3: Millió Ft
A4: Hungarian State Treasury | S4: No. 12
H5: Preliminary Balance of National Research, Development and Innovation Fund's Budget | S5: Appendix J/b./ KTIA
S6: Million HUF
K7: 2025. | U7: 2025.
B8: Bevételek | C8: törvényi előirányzat | D8: törvénnyel módosított előirányzat | E8: módosított előirányzat | F8: I.hó | G8: II.hó | H8: III.hó | I8: IV.hó | J8: V.hó | K8: VI.hó | L8: VII.hó | M8: VIII.hó | N8: IX.hó | O8: X. hó | P8: XI.hó | Q8: XII. hó | R8: teljesítés I-XII. hó | S8: teljesítés %-a | T8: I.n.év | U8: II.n.év | V8: III.n.év | W8: IV.n.év
A9: Revenues | C9: appropriation | D9: appropriation | E9: appropriation | F9: January | G9: February | H9: March | I9: April | J9: May | K9: June | L9: July | M9: August | N9: September | O9: October | P9: November | Q9: December | R9: facts January-December | S9: facts in the % of the appropriation | T9: 1st quarter | U9: 2nd quarter | V9: 3nd quarter | W9: 4th quarter
A10: Contribution for innovation | B10: Innovációs járulék | C10: 172300 | D10: 172300 | E10: 172300 | F10: 28923.89075 | G10: 4064.745149 | H10: 2700.369928 | I10: 30430.91933 | J10: 4682.959701 | K10: 29010.0184 | L10: 27240.41113 | M10: 2283.241703 | N10: 3228.176398 | O10: 31704.35572 | P10: 3385.240404 | Q10: 3489.785306 | R10: 171144.1139 | S10: 99.32914331 | T10: 35689.00583 | U10: 64123.89743 | V10: 32751.82923 | W10: 38579.38143
A11: Other incomes | B11: Egyéb bevételek | C11: 1000 | D11: 1000 | E11: 3405.612468 | F11: 196.713332 | G11: 152.32826 | H11: 230.205598 | I11: 33.064732 | J11: 49.702987 | K11: 122.927336 | L11: 144.112905 | M11: 23.297642 | N11: 210.562986 | O11: 1976.892027 | P11: 312.811231 | Q11: 83.237735 | R11: 3535.856771 | S11: 103.8244018 | T11: 579.24719 | U11: 205.695055 | V11: 377.973533 | W11: 2372.940993
A12: Subtotal | B12: Költségvetési bevételek | C12: 173300 | D12: 173300 | E12: 175705.6125 | F12: 29120.60408 | G12: 4217.073409 | H12: 2930.575526 | I12: 30463.98406 | J12: 4732.662688 | K12: 29132.94574 | L12: 27384.52404 | M12: 2306.539345 | N12: 3438.739384 | O12: 33681.24775 | P12: 3698.051635 | Q12: 3573.023041 | R12: 174679.9707 | S12: 99.41627262 | T12: 36268.25302 | U12: 64329.59249 | V12: 33129.80277 | W12: 40952.32242
A13: Financial income | B13: Finanszírozási bevételek | C13: 0 | D13: 0 | E13: 22284.3 | F13: 0 | G13: 0 | H13: 0 | I13: 0 | J13: 0 | K13: 0 | L13: 0 | M13: 0 | N13: 0 | O13: 0 | P13: 0 | Q13: 0 | R13: 0 | S13: 0 | T13: 0 | U13: 0 | V13: 0 | W13: 0
A14: Incomes of special settlements | B14: Sajátos elszámolások bevétele | C14: 0 | D14: 0 | E14: 0 | F14: 8.853238 | G14: -8.853238 | H14: 5.411026 | I14: -4.869652 | J14: 178.827518 | K14: -136.460924 | L14: -17.885931 | M14: 1.16132 | N14: 93.555022 | O14: -14.033413 | P14: 30.613065 | Q14: -29.804802 | R14: 106.513229 | S14: - | T14: 5.411026 | U14: 37.496942 | V14: 76.830411 | W14: -13.22515
A15: Total revenues | B15: Bevételek összesen | C15: 173300 | D15: 173300 | E15: 197989.9125 | F15: 29129.45732 | G15: 4208.220171 | H15: 2935.986552 | I15: 30459.11441 | J15: 4911.490206 | K15: 28996.48482 | L15: 27366.63811 | M15: 2307.700665 | N15: 3532.294406 | O15: 33667.21434 | P15: 3728.6647 | Q15: 3543.218239 | R15: 174786.4839 | S15: 88.28049962 | T15: 36273.66404 | U15: 64367.08943 | V15: 33206.63318 | W15: 40939.09728
S16: Millió Ft
S17: Million HUF
K18: 2025. | U18: 2025.
B19: Kiadások | C19: törvényi előirányzat | D19: törvénnyel módosított előirányzat | E19: módosított előirányzat | F19: I.hó | G19: II.hó | H19: III.hó | I19: IV.hó | J19: V.hó | K19: VI.hó | L19: VII.hó | M19: VIII.hó | N19: IX.hó | O19: X. hó | P19: XI.hó | Q19: XII. hó | R19: teljesítés I-XII. hó | S19: teljesítés %-a | T19: I.n.év | U19: II.n.év | V19: III.n.év | W19: IV.n.év
A20: Expenditures | C20: appropriation | D20: appropriation | E20: appropriation | F20: January | G20: February | H20: March | I20: April | J20: May | K20: June | L20: July | M20: August | N20: September | O20: October | P20: November | Q20: December | R20: facts January-December | S20: facts in the % of the appropriation | T20: 1st quarter | U20: 2nd quarter | V20: 3nd quarter | W20: 4th quarter
A21: Cost of Research Fund | B21: Kutatási Alaprész | C21: 40047.7 | D21: 40047.7 | E21: 41197.40728 | F21: 2575 | G21: 2994.313 | H21: 5507.19025 | I21: 2229.206705 | J21: 4491.652986 | K21: 2542.811395 | L21: 316.215 | M21: 2513.1912 | N21: 1295.084 | O21: 1153.288 | P21: 1387.307143 | Q21: 14192.14676 | R21: 41197.40644 | S21: 99.99999797 | T21: 11076.50325 | U21: 9263.671086 | V21: 4124.4902 | W21: 16732.7419
A22: Cost of Innovation Fund | B22: Innovációs Alaprész | C22: 52650.8 | D22: 52650.8 | E22: 74225.07386 | F22: 0 | G22: 5500.743949 | H22: 589.214884 | I22: 2802.460804 | J22: 1628.143727 | K22: 654.069278 | L22: 4861.099779 | M22: 1465.825485 | N22: 2224.994899 | O22: 12752.49623 | P22: 5544.816067 | Q22: 36197.55094 | R22: 74221.41604 | S22: 99.995072 | T22: 6089.958833 | U22: 5084.673809 | V22: 8551.920163 | W22: 54494.86324
A23: Payments to the central budget | B23: Befizetés a központi költségvetésbe | C23: 32192.2 | D23: 32192.2 | E23: 32192.2 | F23: 8048.05 | G23: 0 | H23: 0 | I23: 8048.05 | J23: 0 | K23: 0 | L23: 8048.05 | M23: 0 | N23: 0 | O23: 8048.05 | P23: 0 | Q23: 0 | R23: 32192.2 | S23: 100 | T23: 8048.05 | U23: 8048.05 | V23: 8048.05 | W23: 8048.05
A24: Money transfers to fund management | B24: Alapkezelőnek átadott pénzeszköz | C24: 6166.2 | D24: 6166.2 | E24: 6166.2 | F24: 0 | G24: 6166.2 | H24: 0 | I24: 0 | J24: 0 | K24: 0 | L24: 0 | M24: 0 | N24: 0 | O24: 0 | P24: 0 | Q24: 0 | R24: 6166.2 | S24: 100 | T24: 6166.2 | U24: 0 | V24: 0 | W24: 0
A25: Cost of Missions | B25: Missziók Alaprész | C25: 6070.5 | D25: 6070.5 | E25: 8036.431335 | F25: 0 | G25: 0 | H25: 0 | I25: 347.10041 | J25: 0 | K25: 892.3142 | L25: 3280.322293 | M25: 0 | N25: 0 | O25: 2664.446382 | P25: 852.24805 | Q25: 0 | R25: 8036.431335 | S25: 100 | T25: 0 | U25: 1239.41461 | V25: 3280.322293 | W25: 3516.694432
A26: Subtotal | B26: Költségvetési kiadások | C26: 137127.4 | D26: 137127.4 | E26: 161817.3125 | F26: 10623.05 | G26: 14661.25695 | H26: 6096.405134 | I26: 13426.81792 | J26: 6119.796713 | K26: 4089.194873 | L26: 16505.68707 | M26: 3979.016685 | N26: 3520.078899 | O26: 24618.28061 | P26: 7784.37126 | Q26: 50389.6977 | R26: 161813.6538 | S26: 99.99773902 | T26: 31380.71208 | U26: 23635.8095 | V26: 24004.78266 | W26: 82792.34957
A27: Expenditures of special arrangements | B27: Sajátos elszámolások kiadása | C27: 0 | D27: 0 | E27: 0 | F27: 0 | G27: 0 | H27: 0 | I27: 0 | J27: 0 | K27: 0 | L27: 0 | M27: 0 | N27: 0 | O27: 0 | P27: 0 | Q27: 0 | R27: 0 | S27: - | T27: 0 | U27: 0 | V27: 0 | W27: 0
A28: Total expenditures | B28: Kiadások összesen | C28: 137127.4 | D28: 137127.4 | E28: 161817.3125 | F28: 10623.05 | G28: 14661.25695 | H28: 6096.405134 | I28: 13426.81792 | J28: 6119.796713 | K28: 4089.194873 | L28: 16505.68707 | M28: 3979.016685 | N28: 3520.078899 | O28: 24618.28061 | P28: 7784.37126 | Q28: 50389.6977 | R28: 161813.6538 | S28: 99.99773902 | T28: 31380.71208 | U28: 23635.8095 | V28: 24004.78266 | W28: 82792.34957
A30: Total revenues | B30: Bevételek összesen | C30: 173300 | D30: 173300 | E30: 197989.9125 | F30: 29129.45732 | G30: 4208.220171 | H30: 2935.986552 | I30: 30459.11441 | J30: 4911.490206 | K30: 28996.48482 | L30: 27366.63811 | M30: 2307.700665 | N30: 3532.294406 | O30: 33667.21434 | P30: 3728.6647 | Q30: 3543.218239 | R30: 174786.4839 | S30: 88.28049962 | T30: 36273.66404 | U30: 64367.08943 | V30: 33206.63318 | W30: 40939.09728
A31: Total expenditures | B31: Kiadások összesen | C31: 137127.4 | D31: 137127.4 | E31: 161817.3125 | F31: 10623.05 | G31: 14661.25695 | H31: 6096.405134 | I31: 13426.81792 | J31: 6119.796713 | K31: 4089.194873 | L31: 16505.68707 | M31: 3979.016685 | N31: 3520.078899 | O31: 24618.28061 | P31: 7784.37126 | Q31: 50389.6977 | R31: 161813.6538 | S31: 99.99773902 | T31: 31380.71208 | U31: 23635.8095 | V31: 24004.78266 | W31: 82792.34957
A32: Net balance | B32: Egyenlegváltozás | C32: 36172.6 | D32: 36172.6 | E32: 36172.6 | F32: 18506.40732 | G32: -10453.03678 | H32: -3160.418582 | I32: 17032.29649 | J32: -1208.306507 | K32: 24907.28994 | L32: 10860.95103 | M32: -1671.31602 | N32: 12.215507 | O32: 9048.933723 | P32: -4055.70656 | Q32: -46846.47946 | R32: 12972.83011 | S32: 35.86369271 | T32: 4892.95196 | U32: 40731.27993 | V32: 9201.850522 | W32: -41853.2523

Sheet NKFIA-teljarány
B1: Magyar Államkincstár | S1: 12. Szám
H2: A Nemzeti Kutatási, Fejlesztési és Innovációs Alap költségvetésének előzetes teljesítése az előirányzat százalékában | S2: J/b2./NKFIA melléklet
S3: %-ban
A4: Hungarian State Treasury | S4: No. 12
H5: Preliminary Balance of National Research, Development and Innovation Fund's Budget in per cent of approval | S5: Appendix J/b2./KTIA
S6: per cent
H7: 2025. | O7: kumulált | R7: 2025.
B8: Bevételek | C8: I.hó | D8: II.hó | E8: III.hó | F8: IV.hó | G8: V.hó | H8: VI.hó | I8: VII.hó | J8: VIII.hó | K8: IX.hó | L8: X. hó | M8: XI.hó | N8: XII. hó | O8: teljesítés %-a | P8: I.n.év | Q8: II.n.év | R8: III.n.év | S8: IV.n.év
A9: Revenues | C9: January | D9: February | E9: March | F9: April | G9: May | H9: June | I9: July | J9: August | K9: September | L9: October | M9: November | N9: December | O9: facts in the % of the appropriation | P9: 1st quarter | Q9: 2nd quarter | R9: 3nd quarter | S9: 4th quarter
A10: Contribution for innovation | B10: Innovációs járulék | C10: 16.78693601 | D10: 2.359109198 | E10: 1.567248943 | F10: 17.66158986 | G10: 2.717910447 | H10: 16.83692304 | I10: 15.80987297 | J10: 1.32515479 | K10: 1.873578873 | L10: 18.40067076 | M10: 1.96473616 | N10: 2.02541225 | O10: 99.32914331 | P10: 20.71329415 | Q10: 37.21642335 | R10: 19.00860664 | S10: 22.39081917
A11: Other incomes | B11: Egyéb bevételek | C11: 5.776151393 | D11: 4.472859476 | E11: 6.759594645 | F11: 0.9708894453 | G11: 1.459443418 | H11: 3.609551502 | I11: 4.231629592 | J11: 0.6840955105 | K11: 6.182822854 | L11: 58.04806171 | M11: 9.185168129 | N11: 2.444134081 | O11: 103.8244018 | P11: 17.00860551 | Q11: 6.039884365 | R11: 11.09854796 | S11: 69.67736392
A12: Subtotal | B12: Költségvetési bevételek | C12: 16.57351958 | D12: 2.400078944 | E12: 1.667889537 | F12: 17.33808251 | G12: 2.693518221 | H12: 16.58054363 | I12: 15.58545777 | J12: 1.312729464 | K12: 1.957102756 | L12: 19.16913596 | M12: 2.104686118 | N12: 2.033528122 | O12: 99.41627262 | P12: 20.64148806 | Q12: 36.61214436 | R12: 18.85528999 | S12: 23.3073502
A13: Financial income | B13: Finanszírozási bevételek | C13: 0 | D13: 0 | E13: 0 | F13: 0 | G13: 0 | H13: 0 | I13: 0 | J13: 0 | K13: 0 | L13: 0 | M13: 0 | N13: 0 | O13: 0 | P13: 0 | Q13: 0 | R13: 0 | S13: 0
A14: Incomes of special settlements | B14: Sajátos elszámolások bevétele
A15: Total revenues | B15: Bevételek összesen | C15: 14.7125967 | D15: 2.125472009 | E15: 1.48289704 | F15: 15.38417489 | G15: 2.480676992 | H15: 14.64543544 | I15: 13.8222386 | J15: 1.165564769 | K15: 1.784077967 | L15: 17.00450994 | M15: 1.883259937 | N15: 1.789595336 | O15: 88.28049962 | P15: 18.32096575 | Q15: 32.51028733 | R15: 16.77188134 | S15: 20.67736521
S16: %-ban
S17: per cent
H18: 2025. | O18: kumulált | R18: 2025.
B19: Kiadások | C19: I.hó | D19: II.hó | E19: III.hó | F19: IV.hó | G19: V.hó | H19: VI.hó | I19: VII.hó | J19: VIII.hó | K19: IX.hó | L19: X. hó | M19: XI.hó | N19: XII. hó | O19: teljesítés %-a | P19: I.n.év | Q19: II.n.év | R19: III.n.év | S19: IV.n.év
A20: Expenditures | C20: January | D20: February | E20: March | F20: April | G20: May | H20: June | I20: July | J20: August | K20: September | L20: October | M20: November | N20: December | O20: facts in the % of the appropriation | P20: 1st quarter | Q20: 2nd quarter | R20: 3nd quarter | S20: 4th quarter
A21: Cost of Research Fund | B21: Kutatási Alaprész | C21: 6.250393338 | D21: 7.26820739 | E21: 13.36780786 | F21: 5.411036403 | G21: 10.90275647 | H21: 6.17226074 | I21: 0.7675604386 | J21: 6.100362538 | K21: 3.143605595 | L21: 2.799418886 | M21: 3.367462262 | N21: 34.44912605 | O21: 99.99999797 | P21: 26.88640859 | Q21: 22.48605361 | R21: 10.01152857 | S21: 40.6160072
A22: Cost of Innovation Fund | B22: Innovációs Alaprész | C22: 0 | D22: 7.410897239 | E22: 0.7938218898 | F22: 3.775625484 | G22: 2.193522542 | H22: 0.8811972074 | I22: 6.549134311 | J22: 1.974838702 | K22: 2.997632449 | L22: 17.18084681 | M22: 7.47027356 | N22: 48.76728181 | O22: 99.995072 | P22: 8.204719129 | Q22: 6.850345233 | R22: 11.52160546 | S22: 73.41840217
A23: Payments to the central budget | B23: Befizetés a központi költségvetésbe | C23: 25 | D23: 0 | E23: 0 | F23: 25 | G23: 0 | H23: 0 | I23: 25 | J23: 0 | K23: 0 | L23: 25 | M23: 0 | N23: 0 | O23: 100 | P23: 25 | Q23: 25 | R23: 25 | S23: 25
A24: Money transfers to fund management | B24: Alapkezelőnek átadott pénzeszköz | C24: 0 | D24: 100 | E24: 0 | F24: 0 | G24: 0 | H24: 0 | I24: 0 | J24: 0 | K24: 0 | L24: 0 | M24: 0 | N24: 0 | O24: 100 | P24: 100 | Q24: 0 | R24: 0 | S24: 0
A25: Cost of Missions | B25: Missziók Alaprész | C25: 0 | D25: 0 | E25: 0 | F25: 4.319086365 | G25: 0 | H25: 11.1033637 | I25: 40.81814622 | J25: 0 | K25: 0 | L25: 33.1545965 | M25: 10.60480721 | N25: 0 | O25: 100 | P25: 0 | Q25: 15.42245007 | R25: 40.81814622 | S25: 43.75940371
A26: Subtotal | B26: Költségvetési kiadások | C26: 6.564841449 | D26: 9.060376004 | E26: 3.767461615 | F26: 8.297516325 | G26: 3.781917163 | H26: 2.527044116 | I26: 10.2001985 | J26: 2.458956106 | K26: 2.175341343 | L26: 15.21362593 | M26: 4.810592353 | N26: 31.13986812 | O26: 99.99773902 | P26: 19.39267907 | Q26: 14.6064776 | R26: 14.83449594 | S26: 51.16408641
A27: Expenditures of special arrangements | B27: Sajátos elszámolások kiadása
A28: Total expenditures | B28: Kiadások összesen | C28: 6.564841449 | D28: 9.060376004 | E28: 3.767461615 | F28: 8.297516325 | G28: 3.781917163 | H28: 2.527044116 | I28: 10.2001985 | J28: 2.458956106 | K28: 2.175341343 | L28: 15.21362593 | M28: 4.810592353 | N28: 31.13986812 | O28: 99.99773902 | P28: 19.39267907 | Q28: 14.6064776 | R28: 14.83449594 | S28: 51.16408641
A30: Total revenues | B30: Bevételek összesen | C30: 14.7125967 | D30: 2.125472009 | E30: 1.48289704 | F30: 15.38417489 | G30: 2.480676992 | H30: 14.64543544 | I30: 13.8222386 | J30: 1.165564769 | K30: 1.784077967 | L30: 17.00450994 | M30: 1.883259937 | N30: 1.789595336 | O30: 88.28049962 | P30: 18.32096575 | Q30: 32.51028733 | R30: 16.77188134 | S30: 20.67736521
A31: Total expenditures | B31: Kiadások összesen | C31: 6.564841449 | D31: 9.060376004 | E31: 3.767461615 | F31: 8.297516325 | G31: 3.781917163 | H31: 2.527044116 | I31: 10.2001985 | J31: 2.458956106 | K31: 2.175341343 | L31: 15.21362593 | M31: 4.810592353 | N31: 31.13986812 | O31: 99.99773902 | P31: 19.39267907 | Q31: 14.6064776 | R31: 14.83449594 | S31: 51.16408641

Sheet NKA-mérleg
B1: Magyar Államkincstár | J1: 12. Szám
C2: Nemzeti Kulturális Alap költségvetésének előzetes teljesítése | J2: J/a./NKA melléklet
J3: Millió Ft
A4: Hungarian State Treasury | J4: No. 12
C5: Preliminary Balance of National Cultural Fund's Budget | J5: Appendix J/a./ NKA
J6: Million HUF
D7: 2024. | F7: 2025.
B8: Bevételek | C8: előzetes teljesítés | D8: teljesítés I-XII. hó | E8: teljesítés %-a* | F8: törvényi előirányzat | G8: törvénnyel módosított előirányzat | H8: módosított előirányzat | I8: teljesítés I-XII. hó | J8: teljesítés %-a *
A9: Revenues | C9: preliminary facts | D9: facts January-December | E9: % of facts * | F9: appropriation | G9: appropriation | H9: appropriation | I9: facts January-December | J9: % of facts *
A10: Other incomes | B10: Egyéb bevételek | C10: 744.00499 | D10: 744.00499 | E10: 100 | F10: 300 | G10: 300 | H10: 2145.891042 | I10: 2205.051548 | J10: 102.7569203
A11: Gamble tax entitled to NCF | B11: Játékadó NKA-t megillető része | C11: 15240.2301 | D11: 15240.2301 | E11: 100 | F11: 13900 | G11: 13900 | H11: 13900 | I11: 13146.7374 | J11: 94.5808446
A12: Payments required by the law on copyright | B12: Szerzői jogi törvény alapján a közös jogkez. származó befiz. | C12: 2929.782793 | D12: 2929.782793 | E12: 100 | F12: 2600 | G12: 2600 | H12: 3342.388729 | I12: 3342.388729 | J12: 100
A13: Subtotal | B13: Költségvetési bevételek | C13: 18914.01788 | D13: 18914.01788 | E13: 100 | F13: 16800 | G13: 16800 | H13: 19388.27977 | I13: 18694.17768 | J13: 96.41999134
A14: Financial income | B14: Finanszírozási bevételek | C14: 0 | D14: 0 | E14: - | F14: 0 | G14: 0 | H14: 11915.97656 | I14: 0 | J14: 0
A15: Incomes of special settlements | B15: Sajátos elszámolások bevétele | C15: 19.266304 | D15: 19.266304 | E15: 100 | F15: 0 | G15: 0 | H15: 0 | I15: 16.077463 | J15: -
A16: Total revenues | B16: Bevételek összesen | C16: 18933.28419 | D16: 18933.28419 | E16: 100 | F16: 16800 | G16: 16800 | H16: 31304.25633 | I16: 18710.25514 | J16: 59.76904527
J17: Millió Ft
J18: Million HUF
D19: 2024. | F19: 2025.
B20: Kiadások | C20: előzetes teljesítés | D20: teljesítés I-XII. hó | E20: teljesítés %-a* | F20: törvényi előirányzat | G20: törvénnyel módosított előirányzat | H20: módosított előirányzat | I20: teljesítés I-XII. hó | J20: teljesítés %-a *
A21: Expenditures | C21: preliminary facts | D21: facts January-December | E21: % of facts * | F21: appropriation | G21: appropriation | H21: appropriation | I21: facts January-December | J21: % of facts *
A22: Subsidy to the creation, care, spreading of national and universal values | B22: Alapból nyújtott támogatások | C22: 10207.43675 | D22: 10207.43675 | E22: 100 | F22: 7472.1 | G22: 7472.1 | H22: 21861.00429 | I22: 17513.74329 | J22: 80.11408378
A23: Operational expenditures | B23: Működési kiadások | C23: 1467.795206 | D23: 1467.795206 | E23: 100 | F23: 1470.2 | G23: 1470.2 | H23: 1585.552042 | I23: 1585.552042 | J23: 100
A24: Subsidies for central organisations with cultural purposes | B24: Kulturális célú kp. kv.-i szervek működési kiadásainak tám. | C24: 245 | D24: 245 | E24: 100 | F24: 205.2 | G24: 205.2 | H24: 205.2 | I24: 133.4 | J24: 65.00974659
A25: Subtotal | B25: Költségvetési kiadások | C25: 11920.23195 | D25: 11920.23195 | E25: 100 | F25: 9147.5 | G25: 9147.5 | H25: 23651.75633 | I25: 19232.69533 | J25: 81.31614018
A26: Incomes of special settlements | B26: Sajátos elszámolások kiadása | C26: 15.2 | D26: 15.2 | E26: 100 | F26: 0 | G26: 0 | H26: 0 | I26: 0.0068 | J26: -
A27: Total expenditures | B27: Kiadások összesen | C27: 11935.43195 | D27: 11935.43195 | E27: 100 | F27: 9147.5 | G27: 9147.5 | H27: 23651.75633 | I27: 19232.70213 | J27: 81.31616893
A29: Opening balance | B29: NKA számlájának nyitóegyenlege | C29: 8327.229235 | F29: 15325.08147 | G29: 15325.08147 | H29: 15325.08147
A30: Total revenues | B30: Bevételek összesen | C30: 18933.28419 | D30: 18933.28419 | E30: 100 | F30: 16800 | G30: 16800 | H30: 31304.25633 | I30: 18710.25514 | J30: 59.76904527
A31: Total expenditures | B31: Kiadások összesen | C31: 11935.43195 | D31: 11935.43195 | E31: 100 | F31: 9147.5 | G31: 9147.5 | H31: 23651.75633 | I31: 19232.70213 | J31: 81.31616893
A32: Net balance | B32: NKA számlájának egyenlegváltozása | C32: 6997.852234 | D32: 6997.852234 | E32: 100 | F32: 7652.5 | G32: 7652.5 | H32: 7652.5 | I32: -522.446994 | J32: -6.827141379
A33: Closing balance | B33: NKA számlájának záróegyenlege | C33: 15325.08147 | D33: 15325.08147 | E33: - | F33: 22977.58147 | G33: 22977.58147 | H33: 22977.58147 | I33: 14802.63448 | J33: -
A35: * % of facts, preliminary facts of previous year=100, appropriation of current year (as in the law) =100 | B35: * a teljesítés %-a az előző évnél előzetes teljesítés=100, a tárgyévnél a módosított előirányzat=100

Sheet NKA-havi
B1: Magyar Államkincstár | S1: 12. Szám
H2: A Nemzeti Kulturális Alap költségvetésének előzetes teljesítése | S2: J/b./NKA melléklet
S3: Millió Ft
A4: Hungarian State Treasury | S4: No. 12
F5: Preliminary Balance of National Cultural Fund's Budget | S5: Appendix J/b./ NKA
S6: Million HUF
K7: 2025. | U7: 2025.
B8: Bevételek | C8: törvényi előirányzat | D8: törvénnyel módosított előirányzat | E8: módosított előirányzat | F8: I.hó | G8: II.hó | H8: III.hó | I8: IV.hó | J8: V.hó | K8: VI.hó | L8: VII.hó | M8: VIII.hó | N8: IX.hó | O8: X. hó | P8: XI.hó | Q8: XII. hó | R8: teljesítés I-XII. hó | S8: teljesítés %-a | T8: I.n.év | U8: II.n.év | V8: III.n.év | W8: IV.n.év
A9: Revenues | C9: appropriation | D9: appropriation | E9: appropriation | F9: January | G9: February | H9: March | I9: April | J9: May | K9: June | L9: July | M9: August | N9: September | O9: October | P9: November | Q9: December | R9: facts January-December | S9: facts in the % of the appropriation | T9: 1st quarter | U9: 2nd quarter | V9: 3nd quarter | W9: 4th quarter
A10: Other incomes | B10: Egyéb bevételek | C10: 300 | D10: 300 | E10: 2145.891042 | F10: 2.323222 | G10: 13.556036 | H10: 15.869308 | I10: 104.381717 | J10: 1268.255947 | K10: 94.278369 | L10: 17.274384 | M10: 7.644805 | N10: 8.766897 | O10: 610.636912 | P10: 4.93128 | Q10: 57.132671 | R10: 2205.051548 | S10: 102.7569203 | T10: 31.748566 | U10: 1466.916033 | V10: 33.686086 | W10: 672.700863
A11: Gamble tax entitled to NCF | B11: Játékadó NKA-t megillető része | C11: 13900 | D11: 13900 | E11: 13900 | F11: 1041.7176 | G11: 1076.1444 | H11: 1180.2213 | I11: 1339.6383 | J11: 969.7698 | K11: 1233.108 | L11: 1060.65 | M11: 1112.0733 | N11: 1127.2869 | O11: 940.4271 | P11: 895.8204 | Q11: 1169.8803 | R11: 13146.7374 | S11: 94.5808446 | T11: 3298.0833 | U11: 3542.5161 | V11: 3300.0102 | W11: 3006.1278
A12: Payments required by the law on copyright | B12: Szerzői jogi törvény alapján a közös jogkez. származó befiz. | C12: 2600 | D12: 2600 | E12: 3342.388729 | F12: 0 | G12: 0 | H12: 0 | I12: 72.391071 | J12: 160 | K12: 502.694924 | L12: 2607.302734 | M12: 0 | N12: 0 | O12: 0 | P12: 0 | Q12: 0 | R12: 3342.388729 | S12: 100 | T12: 0 | U12: 735.085995 | V12: 2607.302734 | W12: 0
A13: Subtotal | B13: Költségvetési bevételek | C13: 16800 | D13: 16800 | E13: 19388.27977 | F13: 1044.040822 | G13: 1089.700436 | H13: 1196.090608 | I13: 1516.411088 | J13: 2398.025747 | K13: 1830.081293 | L13: 3685.227118 | M13: 1119.718105 | N13: 1136.053797 | O13: 1551.064012 | P13: 900.75168 | Q13: 1227.012971 | R13: 18694.17768 | S13: 96.41999134 | T13: 3329.831866 | U13: 5744.518128 | V13: 5940.99902 | W13: 3678.828663
A14: Financial income | B14: Finanszírozási bevételek | C14: 0 | D14: 0 | E14: 11915.97656 | F14: 0 | G14: 0 | H14: 0 | I14: 0 | J14: 0 | K14: 0 | L14: 0 | M14: 0 | N14: 0 | O14: 0 | P14: 0 | Q14: 0 | R14: 0 | S14: 0 | T14: 0 | U14: 0 | V14: 0 | W14: 0
A15: Incomes of special settlements | B15: Sajátos elszámolások bevétele | C15: 0 | D15: 0 | E15: 0 | F15: 2.902404 | G15: -2.902404 | H15: 0 | I15: 0.22414 | J15: 1.076499 | K15: 50.933248 | L15: -52.233887 | M15: 0.844254 | N15: 0.543316 | O15: -1.350516 | P15: 0.282946 | Q15: 15.757463 | R15: 16.077463 | S15: - | T15: 0 | U15: 52.233887 | V15: -50.846317 | W15: 14.689893
A16: Total revenues | B16: Bevételek összesen | C16: 16800 | D16: 16800 | E16: 31304.25633 | F16: 1046.943226 | G16: 1086.798032 | H16: 1196.090608 | I16: 1516.635228 | J16: 2399.102246 | K16: 1881.014541 | L16: 3632.993231 | M16: 1120.562359 | N16: 1136.597113 | O16: 1549.713496 | P16: 901.034626 | Q16: 1242.770434 | R16: 18710.25514 | S16: 59.76904527 | T16: 3329.831866 | U16: 5796.752015 | V16: 5890.152703 | W16: 3693.518556
S17: Millió Ft
S18: Million HUF
K19: 2025. | U19: 2025.
B20: Kiadások | C20: törvényi előirányzat | D20: törvénnyel módosított előirányzat | E20: módosított előirányzat | F20: I.hó | G20: II.hó | H20: III.hó | I20: IV.hó | J20: V.hó | K20: VI.hó | L20: VII.hó | M20: VIII.hó | N20: IX.hó | O20: X. hó | P20: XI.hó | Q20: XII. hó | R20: teljesítés I-XII. hó | S20: teljesítés %-a | T20: I.n.év | U20: II.n.év | V20: III.n.év | W20: IV.n.év
A21: Expenditures | C21: appropriation | D21: appropriation | E21: appropriation | F21: January | G21: February | H21: March | I21: April | J21: May | K21: June | L21: July | M21: August | N21: September | O21: October | P21: November | Q21: December | R21: facts January-December | S21: facts in the % of the appropriation | T21: 1st quarter | U21: 2nd quarter | V21: 3nd quarter | W21: 4th quarter
A22: Subsidy to the creation, care, spreading of national and universal values | B22: Alapból nyújtott támogatások | C22: 7472.1 | D22: 7472.1 | E22: 21861.00429 | F22: 0 | G22: 0 | H22: 800.033151 | I22: 605.505063 | J22: 717.40219 | K22: 445.705 | L22: 287.938 | M22: 408.252454 | N22: 687.396 | O22: 1105.60881 | P22: 7752.615391 | Q22: 4703.287233 | R22: 17513.74329 | S22: 80.11408378 | T22: 800.033151 | U22: 1768.612253 | V22: 1383.586454 | W22: 13561.51143
A23: Operational expenditures | B23: Működési kiadások | C23: 1470.2 | D23: 1470.2 | E23: 1585.552042 | F23: 3.074836 | G23: 243.3735 | H23: 121.6895 | I23: 122.180333 | J23: 122.059196 | K23: 122.115459 | L23: 121.951296 | M23: 121.865165 | N23: 236.395736 | O23: 122.061882 | P23: 122.368182 | Q23: 126.416957 | R23: 1585.552042 | S23: 100 | T23: 368.137836 | U23: 366.354988 | V23: 480.212197 | W23: 370.847021
A24: Subsidies for central organisations with cultural purposes | B24: Kulturális célú kp. kv.-i szervek működési kiadásainak tám. | C24: 205.2 | D24: 205.2 | E24: 205.2 | F24: 0 | G24: 0 | H24: 0 | I24: 0 | J24: 0 | K24: 0 | L24: 0 | M24: 0 | N24: 0 | O24: 0 | P24: 0 | Q24: 133.4 | R24: 133.4 | S24: 65.00974659 | T24: 0 | U24: 0 | V24: 0 | W24: 133.4
A25: Subtotal | B25: Költségvetési kiadások | C25: 9147.5 | D25: 9147.5 | E25: 23651.75633 | F25: 3.074836 | G25: 243.3735 | H25: 921.722651 | I25: 727.685396 | J25: 839.461386 | K25: 567.820459 | L25: 409.889296 | M25: 530.117619 | N25: 923.791736 | O25: 1227.670692 | P25: 7874.983573 | Q25: 4963.10419 | R25: 19232.69533 | S25: 81.31614018 | T25: 1168.170987 | U25: 2134.967241 | V25: 1863.798651 | W25: 14065.75846
A26: Expenditures of special settlements | B26: Sajátos elszámolások kiadása | C26: 0 | D26: 0 | E26: 0 | F26: 0 | G26: 0 | H26: 0 | I26: 0 | J26: 0 | K26: 0 | L26: 0 | M26: 0 | N26: 0 | O26: 0 | P26: 20 | Q26: -19.9932 | R26: 0.0068 | S26: - | T26: 0 | U26: 0 | V26: 0 | W26: 0.0068
A27: Total expenditures | B27: Kiadások összesen | C27: 9147.5 | D27: 9147.5 | E27: 23651.75633 | F27: 3.074836 | G27: 243.3735 | H27: 921.722651 | I27: 727.685396 | J27: 839.461386 | K27: 567.820459 | L27: 409.889296 | M27: 530.117619 | N27: 923.791736 | O27: 1227.670692 | P27: 7894.983573 | Q27: 4943.11099 | R27: 19232.70213 | S27: 81.31616893 | T27: 1168.170987 | U27: 2134.967241 | V27: 1863.798651 | W27: 14065.76526
A29: Total revenues | B29: Bevételek összesen | C29: 16800 | D29: 16800 | E29: 31304.25633 | F29: 1046.943226 | G29: 1086.798032 | H29: 1196.090608 | I29: 1516.635228 | J29: 2399.102246 | K29: 1881.014541 | L29: 3632.993231 | M29: 1120.562359 | N29: 1136.597113 | O29: 1549.713496 | P29: 901.034626 | Q29: 1242.770434 | R29: 18710.25514 | S29: 59.76904527 | T29: 3329.831866 | U29: 5796.752015 | V29: 5890.152703 | W29: 3693.518556
A30: Total expenditures | B30: Kiadások összesen | C30: 9147.5 | D30: 9147.5 | E30: 23651.75633 | F30: 3.074836 | G30: 243.3735 | H30: 921.722651 | I30: 727.685396 | J30: 839.461386 | K30: 567.820459 | L30: 409.889296 | M30: 530.117619 | N30: 923.791736 | O30: 1227.670692 | P30: 7894.983573 | Q30: 4943.11099 | R30: 19232.70213 | S30: 81.31616893 | T30: 1168.170987 | U30: 2134.967241 | V30: 1863.798651 | W30: 14065.76526
A31: Net balance | B31: Egyenlegváltozás | C31: 7652.5 | D31: 7652.5 | E31: 7652.5 | F31: 1043.86839 | G31: 843.424532 | H31: 274.367957 | I31: 788.949832 | J31: 1559.64086 | K31: 1313.194082 | L31: 3223.103935 | M31: 590.44474 | N31: 212.805377 | O31: 322.042804 | P31: -6993.948947 | Q31: -3700.340556 | R31: -522.446994 | S31: -6.827141379 | T31: 2161.660879 | U31: 3661.784774 | V31: 4026.354052 | W31: -10372.2467

Sheet NKA-teljarány
B1: Magyar Államkincstár | S1: 12. Szám
H2: A Nemzeti Kulturális Alap költségvetésének előzetes teljesítése az előirányzat százalékában | S2: J/b2./NKA melléklet
S3: %-ban
A4: Hungarian State Treasury | S4: No. 12
H5: Preliminary Balance of National Cultural Fund's Budget in per cent of approval | S5: Appendix J/b2./NKA
S6: per cent
H7: 2025. | O7: kumulált | R7: 2025.
B8: Bevételek | C8: I.hó | D8: II.hó | E8: III.hó | F8: IV.hó | G8: V.hó | H8: VI.hó | I8: VII.hó | J8: VIII.hó | K8: IX.hó | L8: X. hó | M8: XI.hó | N8: XII. hó | O8: teljesítés %-a | P8: I.n.év | Q8: II.n.év | R8: III.n.év | S8: IV.n.év
A9: Revenues | C9: January | D9: February | E9: March | F9: April | G9: May | H9: June | I9: July | J9: August | K9: September | L9: October | M9: November | N9: December | O9: facts in the % of the appropriation | P9: 1st quarter | Q9: 2nd quarter | R9: 3nd quarter | S9: 4th quarter
A10: Other incomes | B10: Egyéb bevételek | C10: 0.1082637447 | D10: 0.6317206109 | E10: 0.7395206788 | F10: 4.864259879 | G10: 59.10160032 | H10: 4.393436906 | I10: 0.8049981878 | J10: 0.3562531764 | K10: 0.4085434362 | L10: 28.45610052 | M10: 0.2298010432 | N10: 2.662421804 | O10: 102.7569203 | P10: 1.479505034 | Q10: 68.35929711 | R10: 1.5697948 | S10: 31.34832337
A11: Gamble tax entitled to NCF | B11: Játékadó NKA-t megillető része | C11: 7.494371223 | D11: 7.742046043 | E11: 8.490800719 | F11: 9.637685612 | G11: 6.976761151 | H11: 8.871280576 | I11: 7.63057554 | J11: 8.000527338 | K11: 8.109977698 | L11: 6.76566259 | M11: 6.444751079 | N11: 8.416405036 | O11: 94.5808446 | P11: 23.72721799 | Q11: 25.48572734 | R11: 23.74108058 | S11: 21.62681871
A12: Payments required by the law on copyright | B12: Szerzői jogi törvény alapján a közös jogkez. származó befiz. | C12: 0 | D12: 0 | E12: 0 | F12: 2.165848346 | G12: 4.786995558 | H12: 15.0399898 | I12: 78.00716629 | J12: 0 | K12: 0 | L12: 0 | M12: 0 | N12: 0 | O12: 100 | P12: 0 | Q12: 21.99283371 | R12: 78.00716629 | S12: 0
A13: Subtotal | B13: Költségvetési bevételek | C13: 5.384906935 | D13: 5.620408045 | E13: 6.169142503 | F13: 7.821277111 | G13: 12.36842967 | H13: 9.439111229 | I13: 19.00749918 | J13: 5.775231832 | K13: 5.859487332 | L13: 8.000008409 | M13: 4.645856624 | N13: 6.328632481 | O13: 96.41999134 | P13: 17.17445748 | Q13: 29.62881801 | R13: 30.64221834 | S13: 18.97449751
A14: Financial income | B14: Finanszírozási bevételek | C14: 0 | D14: 0 | E14: 0 | F14: 0 | G14: 0 | H14: 0 | I14: 0 | J14: 0 | K14: 0 | L14: 0 | M14: 0 | N14: 0 | O14: 0 | P14: 0 | Q14: 0 | R14: 0 | S14: 0
A15: Incomes of special settlements | B15: Sajátos elszámolások bevétele
A16: Total revenues | B16: Bevételek összesen | C16: 3.344411747 | D16: 3.471726082 | E16: 3.820856165 | F16: 4.844821138 | G16: 7.663821241 | H16: 6.008814013 | I16: 11.60542896 | J16: 3.579584665 | K16: 3.630806945 | L16: 4.950488137 | M16: 2.878313468 | N16: 3.969972712 | O16: 59.76904527 | P16: 10.63699399 | Q16: 18.51745639 | R16: 18.81582057 | S16: 11.79877432
S17: %-ban
S18: per cent
H19: 2025. | O19: kumulált | R19: 2025.
B20: Kiadások | C20: I.hó | D20: II.hó | E20: III.hó | F20: IV.hó | G20: V.hó | H20: VI.hó | I20: VII.hó | J20: VIII.hó | K20: IX.hó | L20: X. hó | M20: XI.hó | N20: XII. hó | O20: teljesítés %-a | P20: I.n.év | Q20: II.n.év | R20: III.n.év | S20: IV.n.év
A21: Expenditures | C21: January | D21: February | E21: March | F21: April | G21: May | H21: June | I21: July | J21: August | K21: September | L21: October | M21: November | N21: December | O21: facts in the % of the appropriation | P21: 1st quarter | Q21: 2nd quarter | R21: 3nd quarter | S21: 4th quarter
A22: Subsidy to the creation, care, spreading of national and universal values | B22: Alapból nyújtott támogatások | C22: 0 | D22: 0 | E22: 3.659635854 | F22: 2.769795271 | G22: 3.281652483 | H22: 2.038813012 | I22: 1.317130705 | J22: 1.867491761 | K22: 3.144393509 | L22: 5.057447477 | M22: 35.46321701 | N22: 21.5145067 | O22: 80.11408378 | P22: 3.659635854 | Q22: 8.090260765 | R22: 6.329015976 | S22: 62.03517118
A23: Operational expenditures | B23: Működési kiadások | C23: 0.1939284185 | D23: 15.34944887 | E23: 7.674897876 | F23: 7.705854476 | G23: 7.698214424 | H23: 7.701762904 | I23: 7.691409223 | J23: 7.685976983 | K23: 14.90936467 | L23: 7.698383829 | M23: 7.717702022 | N23: 7.973056302 | O23: 100 | P23: 23.21827517 | Q23: 23.1058318 | R23: 30.28675088 | S23: 23.38914215
A24: Subsidies for central organisations with cultural purposes | B24: Kulturális célú kp. kv.-i szervek működési kiadásainak tám. | C24: 0 | D24: 0 | E24: 0 | F24: 0 | G24: 0 | H24: 0 | I24: 0 | J24: 0 | K24: 0 | L24: 0 | M24: 0 | N24: 65.00974659 | O24: 65.00974659 | P24: 0 | Q24: 0 | R24: 0 | S24: 65.00974659
A25: Subtotal | B25: Költségvetési kiadások | C25: 0.01300045526 | D25: 1.028987009 | E25: 3.897057952 | F25: 3.076665368 | G25: 3.549256022 | H25: 2.400753885 | I25: 1.733018429 | J25: 2.241345681 | K25: 3.905806076 | L25: 5.190611111 | M25: 33.29555515 | N25: 20.98408304 | O25: 81.31614018 | P25: 4.939045416 | Q25: 9.026675275 | R25: 7.880170186 | S25: 59.4702493
A26: Expenditures of special settlements | B26: Sajátos elszámolások kiadása
A27: Total expenditures | B27: Kiadások összesen | C27: 0.01300045526 | D27: 1.028987009 | E27: 3.897057952 | F27: 3.076665368 | G27: 3.549256022 | H27: 2.400753885 | I27: 1.733018429 | J27: 2.241345681 | K27: 3.905806076 | L27: 5.190611111 | M27: 33.38011546 | N27: 20.89955148 | O27: 81.31616893 | P27: 4.939045416 | Q27: 9.026675275 | R27: 7.880170186 | S27: 59.47027805
A29: Total revenues | B29: Bevételek összesen | C29: 3.344411747 | D29: 3.471726082 | E29: 3.820856165 | F29: 4.844821138 | G29: 7.663821241 | H29: 6.008814013 | I29: 11.60542896 | J29: 3.579584665 | K29: 3.630806945 | L29: 4.950488137 | M29: 2.878313468 | N29: 3.969972712 | O29: 59.76904527 | P29: 10.63699399 | Q29: 18.51745639 | R29: 18.81582057 | S29: 11.79877432
A30: Total expenditures | B30: Kiadások összesen | C30: 0.01300045526 | D30: 1.028987009 | E30: 3.897057952 | F30: 3.076665368 | G30: 3.549256022 | H30: 2.400753885 | I30: 1.733018429 | J30: 2.241345681 | K30: 3.905806076 | L30: 5.190611111 | M30: 33.38011546 | N30: 20.89955148 | O30: 81.31616893 | P30: 4.939045416 | Q30: 9.026675275 | R30: 7.880170186 | S30: 59.47027805

Sheet BGA-mérleg
B1: Magyar Államkincstár | J1: 12. Szám
B2: A Bethlen Gábor Alap költségvetésének előzetes teljesítése | J2: J/a./BGA melléklet
J3: Millió Ft
A4: Hungarian State Treasury | J4: No. 12
C5: Preliminary Balance of Bethlen Gábor Fund's Budget | J5: Appendix J/a./ BGA
J6: Million HUF
D7: 2024. | H7: 2025.
B8: Bevételek | C8: előzetes teljesítés | D8: teljesítés I-XII. hó | E8: teljesítés %-a* | F8: törvényi előirányzat | G8: törvénnyel módosított előirányzat | H8: módosított előirányzat | I8: teljesítés I-XII. hó | J8: teljesítés %-a*
A9: Revenues | C9: appropriation | D9: facts January-December | E9: % of facts * | F9: appropriation | G9: appropriation | H9: appropriation | I9: facts January-December | J9: % of facts *
A10: Budgetary subsidy | B10: Költségvetési támogatás | C10: 97748.94466 | D10: 97748.94466 | E10: 100 | F10: 72767 | G10: 72767 | H10: 92588.81685 | I10: 92588.81685 | J10: 100
A11: Other income | B11: Egyéb bevétel | C11: 3316.516311 | D11: 3316.516311 | E11: 100 | F11: 0 | G11: 0 | H11: 3425.549785 | I11: 3426.061303 | J11: 100.0149324
A12: Subtotal | B12: Költségvetési bevételek | C12: 101065.461 | D12: 101065.461 | E12: 100 | F12: 72767 | G12: 72767 | H12: 96014.36663 | I12: 96014.87815 | J12: 100.0005328
A13: Financial incomes | B13: Finanszírozási bevételek | C13: 0 | D13: 0 | E13: - | F13: 0 | G13: 0 | H13: 20.88572 | I13: 0 | J13: 0
A14: Income of special settlements | B14: Sajátos elszámolások bevétele | C14: 1.114744 | D14: 1.114744 | E14: 100 | F14: 0 | G14: 0 | H14: 0 | I14: 15.004284 | J14: -
A15: Total incomes | B15: Bevételek összesen | C15: 101066.5757 | D15: 101066.5757 | E15: 100 | F15: 72767 | G15: 72767 | H15: 96035.25236 | I15: 96029.88244 | J15: 99.99440839
J16: Millió Ft
J17: Million HUF
D18: 2024. | H18: 2025.
B19: Kiadások | C19: előzetes teljesítés | D19: teljesítés I-XII. hó | E19: teljesítés %-a* | F19: törvényi előirányzat | G19: törvénnyel módosított előirányzat | H19: módosított előirányzat | I19: teljesítés I-XII. hó | J19: teljesítés %-a*
A20: Expenditures | C20: appropriation | D20: facts January-December | E20: % of facts * | F20: appropriation | G20: appropriation | H20: appropriation | I20: facts January-December | J20: % of facts *
A21: Grants for National Policy | B21: Nemzetpolitikai célú támogatások | C21: 89364.69101 | D21: 89364.69101 | E21: 100 | F21: 60504.2 | G21: 60504.2 | H21: 77234.04803 | I21: 76830.31997 | J21: 99.47726674
A22: Operational costs of the fund management | B22: Működtetési célú kifizetések | C22: 3919.948086 | D22: 3919.948086 | E22: 100 | F22: 2865.2 | G22: 2865.2 | H22: 5254.680995 | I22: 5245.75259 | J22: 99.83008664
A23: Subsidies to the Rákóczi Association | B23: Rákóczi Szövetség támogatása | C23: 2000 | D23: 2000 | E23: 100 | F23: 2000 | G23: 2000 | H23: 2600 | I23: 2600 | J23: 100
A24: Subsidies to Thematic Programs | B24: Tematikus programok támogatása | C24: 870.3 | D24: 870.3 | E24: 100 | F24: 728.9 | G24: 728.9 | H24: 728.9 | I24: 728.9 | J24: 100
A25: Subsidies to the programme of the 'Hungarians' House' | B25: Magyarság Háza program támogatása | C25: 214.6 | D25: 214.6 | E25: 100 | F25: 179.7 | G25: 179.7 | H25: 179.7 | I25: 179.7 | J25: 100
A26: Subsidies to the programme of the Without Borders | B26: Határtalanul! program támogatása | C26: 4681.226641 | D26: 4681.226641 | E26: 100 | F26: 6489 | G26: 6489 | H26: 10036.64234 | I26: 10012.25376 | J26: 99.75700457
A27: Other expenditures | B27: Egyéb kiadások | C27: 18.980955 | D27: 18.980955 | E27: 100 | F27: 0 | G27: 0 | H27: 1.28099 | I27: 1.28099 | J27: 100
A28: Subtotal | B28: Költségvetési kiadások | C28: 101069.7467 | D28: 101069.7467 | E28: 100 | F28: 72767 | G28: 72767 | H28: 96035.25236 | I28: 95598.20731 | J28: 99.54491186
A29: Expenditures of special settlements | B29: Sajátos elszámolások kiadása | C29: 6.76 | D29: 6.76 | E29: 100 | F29: 0 | G29: 0 | H29: 0 | I29: 250.328 | J29: -
A30: Total expenditures | B30: Kiadások összesen | C30: 101076.5067 | D30: 101076.5067 | E30: 100 | F30: 72767 | G30: 72767 | H30: 96035.25236 | I30: 95848.53531 | J30: 99.80557447
A32: Opening balance | B32: BGA számlájának nyitóegyenlege | C32: 31.832026 | F32: 21.90105 | G32: 21.90105 | H32: 21.90105
A33: Total revenues | B33: Bevételek összesen | C33: 101066.5757 | D33: 101066.5757 | E33: 100 | F33: 72767 | G33: 72767 | H33: 96035.25236 | I33: 96029.88244 | J33: 99.99440839
A34: Total expenditures | B34: Kiadások összesen | C34: 101076.5067 | D34: 101076.5067 | E34: 100 | F34: 72767 | G34: 72767 | H34: 96035.25236 | I34: 95848.53531 | J34: 99.80557447
A35: Net balance | B35: BGA számlájának egyenlegváltozása | C35: -9.930976 | D35: -9.930976 | E35: - | F35: 0 | G35: 0 | H35: 0 | I35: 181.347128 | J35: -
A36: Closing balance | B36: BGA számlájának záróegyenlege | C36: 21.90105 | D36: 21.90105 | E36: - | F36: 21.90105 | G36: 21.90105 | H36: 21.90105 | I36: 203.248178 | J36: -
A38: * % of facts, preliminary facts of previous year=100, appropriation of current year (as in the law) =100 | B38: * a teljesítés %-a az előző évnél előzetes teljesítés=100, a tárgyévnél a módosított előirányzat=100

Sheet BGA-havi
B1: Magyar Államkincstár | S1: 12. Szám
H2: A Bethlen Gábor Alap költségvetésének előzetes teljesítése | S2: J/b./BGA melléklet
S3: Millió Ft
A4: Hungarian State Treasury | S4: No. 12
H5: Preliminary Balance of Bethlen Gábor Fund's Budget | S5: Appendix J/b./ BGA
S6: Million HUF
K7: 2025. | U7: 2025.
B8: Bevételek | C8: törvényi előirányzat | D8: törvénnyel módosított előirányzat | E8: módosított előirányzat | F8: I.hó | G8: II.hó | H8: III.hó | I8: IV.hó | J8: V.hó | K8: VI.hó | L8: VII.hó | M8: VIII.hó | N8: IX.hó | O8: X. hó | P8: XI.hó | Q8: XII. hó | R8: teljesítés I-XII. hó | S8: teljesítés %-a | T8: I.n.év | U8: II.n.év | V8: III.n.év | W8: IV.n.év
A9: Revenues | C9: appropriation | D9: appropriation | E9: appropriation | F9: January | G9: February | H9: March | I9: April | J9: May | K9: June | L9: July | M9: August | N9: September | O9: October | P9: November | Q9: December | R9: facts January-December | S9: facts in the % of the appropriation | T9: 1st quarter | U9: 2nd quarter | V9: 3nd quarter | W9: 4th quarter
A10: Budgetary subsidy | B10: Költségvetési támogatás | C10: 72767 | D10: 72767 | E10: 92588.81685 | F10: 6063.916666 | G10: 10379.204 | H10: 6870.4 | I10: 13042.4 | J10: 6956.4445 | K10: 5000.909823 | L10: 937.294 | M10: 25743.12 | N10: 1485.596932 | O10: 2645.501 | P10: 3391.0657 | Q10: 10072.96423 | R10: 92588.81685 | S10: 100 | T10: 23313.52067 | U10: 24999.75432 | V10: 28166.01093 | W10: 16109.53093
A11: Other income | B11: Egyéb bevétel | C11: 0 | D11: 0 | E11: 3425.549785 | F11: 0.000106 | G11: 1.379222 | H11: -0.231119 | I11: 2364.525242 | J11: 0.501903 | K11: 0 | L11: 835.339177 | M11: 17.755981 | N11: 10.160353 | O11: 192.287529 | P11: 0.044407 | Q11: 4.298502 | R11: 3426.061303 | S11: 100.0149324 | T11: 1.148209 | U11: 2365.027145 | V11: 863.255511 | W11: 196.630438
A12: Subtotal | B12: Költségvetési bevételek | C12: 72767 | D12: 72767 | E12: 96014.36663 | F12: 6063.916772 | G12: 10380.58322 | H12: 6870.168881 | I12: 15406.92524 | J12: 6956.946403 | K12: 5000.909823 | L12: 1772.633177 | M12: 25760.87598 | N12: 1495.757285 | O12: 2837.788529 | P12: 3391.110107 | Q12: 10077.26273 | R12: 96014.87815 | S12: 100.0005328 | T12: 23314.66887 | U12: 27364.78147 | V12: 29029.26644 | W12: 16306.16137
A13: Financial incomes | B13: Finanszírozási bevételek | C13: 0 | D13: 0 | E13: 20.88572 | F13: 0 | G13: 0 | H13: 0 | I13: 0 | J13: 0 | K13: 0 | L13: 0 | M13: 0 | N13: 0 | O13: 0 | P13: 0 | Q13: 0 | R13: 0 | S13: 0 | T13: 0 | U13: 0 | V13: 0 | W13: 0
A14: Income of special settlements | B14: Sajátos elszámolások bevétele | C14: 0 | D14: 0 | E14: 0 | F14: 0.541415 | G14: 5.504182 | H14: 14.676163 | I14: -13.673189 | J14: 19.290844 | K14: 15.046007 | L14: -1.427081 | M14: -11.861017 | N14: 273.49094 | O14: -276.2762 | P14: -8.203365 | Q14: -2.104415 | R14: 15.004284 | S14: - | T14: 20.72176 | U14: 20.663662 | V14: 260.202842 | W14: -286.58398
A15: Total incomes | B15: Bevételek összesen | C15: 72767 | D15: 72767 | E15: 96035.25236 | F15: 6064.458187 | G15: 10386.0874 | H15: 6884.845044 | I15: 15393.25205 | J15: 6976.237247 | K15: 5015.95583 | L15: 1771.206096 | M15: 25749.01496 | N15: 1769.248225 | O15: 2561.512329 | P15: 3382.906742 | Q15: 10075.15832 | R15: 96029.88244 | S15: 99.99440839 | T15: 23335.39063 | U15: 27385.44513 | V15: 29289.46929 | W15: 16019.57739
S16: Millió Ft
S17: Million HUF
K18: 2025. | U18: 2025.
B19: Kiadások | C19: törvényi előirányzat | D19: törvénnyel módosított előirányzat | E19: módosított előirányzat | F19: I.hó | G19: II.hó | H19: III.hó | I19: IV.hó | J19: V.hó | K19: VI.hó | L19: VII.hó | M19: VIII.hó | N19: IX.hó | O19: X. hó | P19: XI.hó | Q19: XII. hó | R19: teljesítés I-XII. hó | S19: teljesítés %-a | T19: I.n.év | U19: II.n.év | V19: III.n.év | W19: IV.n.év
A20: Expenditures | C20: appropriation | D20: appropriation | E20: appropriation | F20: January | G20: February | H20: March | I20: April | J20: May | K20: June | L20: July | M20: August | N20: September | O20: October | P20: November | Q20: December | R20: facts January-December | S20: facts in the % of the appropriation | T20: 1st quarter | U20: 2nd quarter | V20: 3nd quarter | W20: 4th quarter
A21: Grants for National Policy | B21: Nemzetpolitikai célú támogatások | C21: 60504.2 | D21: 60504.2 | E21: 77234.04803 | F21: 0 | G21: 5762 | H21: 2511.2708 | I21: 12471.9 | J21: 7694.120354 | K21: 4602.309823 | L21: 4193.525066 | M21: 7732.555 | N21: 19344.58593 | O21: 1802.48023 | P21: 1452.01209 | Q21: 9263.560674 | R21: 76830.31997 | S21: 99.47726674 | T21: 8273.2708 | U21: 24768.33018 | V21: 31270.666 | W21: 12518.05299
A22: Operational costs of the fund management | B22: Működtetési célú kifizetések | C22: 2865.2 | D22: 2865.2 | E22: 5254.680995 | F22: 4.442104 | G22: 3593.947955 | H22: 207.034653 | I22: 5.225254 | J22: 12.29563 | K22: 667.124206 | L22: 45.18306 | M22: 5.256022 | N22: 27.071803 | O22: 490.721741 | P22: 1.386951 | Q22: 186.063211 | R22: 5245.75259 | S22: 99.83008664 | T22: 3805.424712 | U22: 684.64509 | V22: 77.510885 | W22: 678.171903
A23: Subsidies to the Rákóczi Association | B23: Rákóczi Szövetség támogatása | C23: 2000 | D23: 2000 | E23: 2600 | F23: 0 | G23: 0 | H23: 2000 | I23: 0 | J23: 0 | K23: 0 | L23: 0 | M23: 0 | N23: 600 | O23: 0 | P23: 0 | Q23: 0 | R23: 2600 | S23: 100 | T23: 2000 | U23: 0 | V23: 600 | W23: 0
A24: Subsidies to Thematic Programs | B24: Tematikus programok támogatása | C24: 728.9 | D24: 728.9 | E24: 728.9 | F24: 0 | G24: 0 | H24: 3 | I24: 1.5 | J24: 281 | K24: 308.8 | L24: 99.6 | M24: 17 | N24: 15 | O24: 0 | P24: 3 | Q24: 0 | R24: 728.9 | S24: 100 | T24: 3 | U24: 591.3 | V24: 131.6 | W24: 3
A25: Subsidies to the programme of the 'Hungarians' House' | B25: Magyarság Háza program támogatása | C25: 179.7 | D25: 179.7 | E25: 179.7 | F25: 0 | G25: 0 | H25: 0 | I25: 179.7 | J25: 0 | K25: 0 | L25: 0 | M25: 0 | N25: 0 | O25: 0 | P25: 0 | Q25: 0 | R25: 179.7 | S25: 100 | T25: 0 | U25: 179.7 | V25: 0 | W25: 0
A26: Subsidies to the programme of the Without Borders | B26: Határtalanul! program támogatása | C26: 6489 | D26: 6489 | E26: 10036.64234 | F26: 634.282324 | G26: 2560.461629 | H26: 2838.224487 | I26: 250.436753 | J26: 52.160639 | K26: 0 | L26: 56.9 | M26: 24.3012 | N26: -11.102982 | O26: 313.470894 | P26: 153.674511 | Q26: 3139.444305 | R26: 10012.25376 | S26: 99.75700457 | T26: 6032.96844 | U26: 302.597392 | V26: 70.098218 | W26: 3606.58971
A27: Other expenditures | B27: Egyéb kiadások | C27: 0 | D27: 0 | E27: 1.28099 | F27: 0 | G27: 0 | H27: 0 | I27: 0 | J27: 0 | K27: 1.28099 | L27: 0 | M27: 0 | N27: 0 | O27: 0 | P27: 0 | Q27: 0 | R27: 1.28099 | S27: 100 | T27: 0 | U27: 1.28099 | V27: 0 | W27: 0
A28: Subtotal | B28: Költségvetési kiadások | C28: 72767 | D28: 72767 | E28: 96035.25236 | F28: 638.724428 | G28: 11916.40958 | H28: 7559.52994 | I28: 12908.76201 | J28: 8039.576623 | K28: 5579.515019 | L28: 4395.208126 | M28: 7779.112222 | N28: 19975.55475 | O28: 2606.672865 | P28: 1610.073552 | Q28: 12589.06819 | R28: 95598.20731 | S28: 99.54491186 | T28: 20114.66395 | U28: 26527.85365 | V28: 32149.8751 | W28: 16805.81461
A29: Expenditure of special settlements | B29: Sajátos elszámolások kiadása | C29: 0 | D29: 0 | E29: 0 | F29: 0 | G29: 0 | H29: 0 | I29: 0 | J29: 0 | K29: -0.06 | L29: -0.0039 | M29: 0.0639 | N29: -2.910765 | O29: 18.789241 | P29: 2.321524 | Q29: 232.128 | R29: 250.328 | S29: - | T29: 0 | U29: -0.06 | V29: -2.850765 | W29: 253.238765
A30: Total expenditures | B30: Kiadások összesen | C30: 72767 | D30: 72767 | E30: 96035.25236 | F30: 638.724428 | G30: 11916.40958 | H30: 7559.52994 | I30: 12908.76201 | J30: 8039.576623 | K30: 5579.455019 | L30: 4395.204226 | M30: 7779.176122 | N30: 19972.64399 | O30: 2625.462106 | P30: 1612.395076 | Q30: 12821.19619 | R30: 95848.53531 | S30: 99.80557447 | T30: 20114.66395 | U30: 26527.79365 | V30: 32147.02434 | W30: 17059.05337
A32: Total revenues | B32: Bevételek összesen | C32: 72767 | D32: 72767 | E32: 96035.25236 | F32: 6064.458187 | G32: 10386.0874 | H32: 6884.845044 | I32: 15393.25205 | J32: 6976.237247 | K32: 5015.95583 | L32: 1771.206096 | M32: 25749.01496 | N32: 1769.248225 | O32: 2561.512329 | P32: 3382.906742 | Q32: 10075.15832 | R32: 96029.88244 | S32: 99.99440839 | T32: 23335.39063 | U32: 27385.44513 | V32: 29289.46929 | W32: 16019.57739
A33: Total expenditures | B33: Kiadások összesen | C33: 72767 | D33: 72767 | E33: 96035.25236 | F33: 638.724428 | G33: 11916.40958 | H33: 7559.52994 | I33: 12908.76201 | J33: 8039.576623 | K33: 5579.455019 | L33: 4395.204226 | M33: 7779.176122 | N33: 19972.64399 | O33: 2625.462106 | P33: 1612.395076 | Q33: 12821.19619 | R33: 95848.53531 | S33: 99.80557447 | T33: 20114.66395 | U33: 26527.79365 | V33: 32147.02434 | W33: 17059.05337
A34: Net balance | B34: Egyenlegváltozás | C34: 0 | D34: 0 | E34: 0 | F34: 5425.733759 | G34: -1530.32218 | H34: -674.684896 | I34: 2484.490046 | J34: -1063.339376 | K34: -563.499189 | L34: -2623.99813 | M34: 17969.83884 | N34: -18203.39576 | O34: -63.949777 | P34: 1770.511666 | Q34: -2746.037874 | R34: 181.347128 | S34: - | T34: 3220.726683 | U34: 857.651481 | V34: -2857.555051 | W34: -1039.475985

Sheet BGA-teljarány
B1: Magyar Államkincstár | S1: 12. Szám
H2: A Bethlen Gábor Alap költségvetésének előzetes teljesítése az előirányzat százalékában | S2: J/b2./BGA melléklet
S3: %-ban
A4: Hungarian State Treasury | S4: No. 12
F5: Preliminary Balance of Bethlen Gábor Fund's Budget in per cent of approval | S5: Appendix J/b2./BGA
S6: per cent
H7: 2025. | O7: kumulált | R7: 2025.
B8: Bevételek | C8: I.hó | D8: II.hó | E8: III.hó | F8: IV.hó | G8: V.hó | H8: VI.hó | I8: VII.hó | J8: VIII.hó | K8: IX.hó | L8: X. hó | M8: XI.hó | N8: XII. hó | O8: teljesítés %-a | P8: I.n.év | Q8: II.n.év | R8: III.n.év | S8: IV.n.év
A9: Revenues | C9: January | D9: February | E9: March | F9: April | G9: May | H9: June | I9: July | J9: August | K9: September | L9: October | M9: November | N9: December | O9: facts in the % of the appropriation | P9: 1st quarter | Q9: 2nd quarter | R9: 3nd quarter | S9: 4th quarter
A10: Budgetary subsidy | B10: Költségvetési támogatás | C10: 6.549297067 | D10: 11.20999744 | E10: 7.420334587 | F10: 14.08636641 | G10: 7.513266436 | H10: 5.401202859 | I10: 1.0123188 | J10: 27.80370338 | K10: 1.604510115 | L10: 2.857257593 | M10: 3.662500306 | N10: 10.879245 | O10: 100 | P10: 25.17962909 | Q10: 27.00083571 | R10: 30.4205323 | S10: 17.3990029
A11: Other income | B11: Egyéb bevétel | C11: 3.094393795e-06 | D11: 0.04026279244 | E11: -0.006746916977 | F11: 69.02615318 | G11: 0.01465175027 | H11: 0 | I11: 24.38555062 | J11: 0.5183395984 | K11: 0.2966050309 | L11: 5.613333365 | M11: 0.001296346653 | N11: 0.1254835653 | O11: 100.0149324 | P11: 0.03351896986 | Q11: 69.04080493 | R11: 25.20049525 | S11: 5.740113276
A12: Subtotal | B12: Költségvetési bevételek | C12: 6.315634821 | D12: 10.81148956 | E12: 7.155355101 | F12: 16.04647907 | G12: 7.245734828 | H12: 5.208501601 | I12: 1.846216602 | J12: 26.8302306 | K12: 1.55784737 | L12: 2.955587407 | M12: 3.531877807 | N12: 10.49557799 | O12: 100.0005328 | P12: 24.28247948 | Q12: 28.50071549 | R12: 30.23429458 | S12: 16.9830432
A13: Financial incomes | B13: Finanszírozási bevételek | C13: 0 | D13: 0 | E13: 0 | F13: 0 | G13: 0 | H13: 0 | I13: 0 | J13: 0 | K13: 0 | L13: 0 | M13: 0 | N13: 0 | O13: 0 | P13: 0 | Q13: 0 | R13: 0 | S13: 0
A14: Income of special settlements | B14: Sajátos elszámolások bevétele
A15: Total income | B15: Bevételek összesen | C15: 6.314825065 | D15: 10.8148697 | E15: 7.169081015 | F15: 16.0287516 | G15: 7.26424628 | H15: 5.223036028 | I15: 1.84432909 | J15: 26.81204488 | K15: 1.84229039 | L15: 2.667262558 | M15: 3.52256766 | N15: 10.49110412 | O15: 99.99440839 | P15: 24.29877578 | Q15: 28.51603391 | R15: 30.49866436 | S15: 16.68093434
S16: %-ban
S17: per cent
H18: 2025. | O18: kumulált | R18: 2025.
B19: Kiadások | C19: I.hó | D19: II.hó | E19: III.hó | F19: IV.hó | G19: V.hó | H19: VI.hó | I19: VII.hó | J19: VIII.hó | K19: IX.hó | L19: X. hó | M19: XI.hó | N19: XII. hó | O19: teljesítés %-a | P19: I.n.év | Q19: II.n.év | R19: III.n.év | S19: IV.n.év
A20: Expenditures | C20: January | D20: February | E20: March | F20: April | G20: May | H20: June | I20: July | J20: August | K20: September | L20: October | M20: November | N20: December | O20: facts in the % of the appropriation | P20: 1st quarter | Q20: 2nd quarter | R20: 3nd quarter | S20: 4th quarter
A21: Grants for National Policy | B21: Nemzetpolitikai célú támogatások | C21: 0 | D21: 7.460440243 | E21: 3.251507417 | F21: 16.14818894 | G21: 9.962083499 | H21: 5.958913123 | I21: 5.429632621 | J21: 10.01184736 | K21: 25.04670728 | L21: 2.333789664 | M21: 1.88001552 | N21: 11.99414107 | O21: 99.47726674 | P21: 10.71194766 | Q21: 32.06918556 | R21: 40.48818727 | S21: 16.20794625
A22: Operational costs of the fund management | B22: Működtetési célú kifizetések | C22: 0.08453613082 | D22: 68.39516915 | E22: 3.940004221 | F22: 0.09943998513 | G22: 0.233993843 | H22: 12.69580792 | I22: 0.8598630448 | J22: 0.1000255202 | K22: 0.5151940342 | L22: 9.338754179 | M22: 0.0263945804 | N22: 3.540904028 | O22: 99.83008664 | P22: 72.41970951 | Q22: 13.02924175 | R22: 1.475082599 | S22: 12.90605279
A23: Subsidies to the Rákóczi Association | B23: Rákóczi Szövetség támogatása | C23: 0 | D23: 0 | E23: 76.92307692 | F23: 0 | G23: 0 | H23: 0 | I23: 0 | J23: 0 | K23: 23.07692308 | L23: 0 | M23: 0 | N23: 0 | O23: 100 | P23: 76.92307692 | Q23: 0 | R23: 23.07692308 | S23: 0
A24: Subsidies to Thematic Programs | B24: Tematikus programok támogatása | C24: 0 | D24: 0 | E24: 0.4115790918 | F24: 0.2057895459 | G24: 38.5512416 | H24: 42.36520785 | I24: 13.66442585 | J24: 2.33228152 | K24: 2.057895459 | L24: 0 | M24: 0.4115790918 | N24: 0 | O24: 100 | P24: 0.4115790918 | Q24: 81.12223899 | R24: 18.05460283 | S24: 0.4115790918
A25: Subsidies to the programme of the 'Hungarians' House' | B25: Magyarság Háza program támogatása | C25: 0 | D25: 0 | E25: 0 | F25: 100 | G25: 0 | H25: 0 | I25: 0 | J25: 0 | K25: 0 | L25: 0 | M25: 0 | N25: 0 | O25: 100 | P25: 0 | Q25: 100 | R25: 0 | S25: 0
A26: Subsidies to the programme of the Without Borders | B26: Határtalanul! program támogatása | C26: 6.319666502 | D26: 25.51113751 | E26: 28.27862536 | F26: 2.495224443 | G26: 0.5197020799 | H26: 0 | I26: 0.5669226626 | J26: 0.242124798 | K26: -0.110624466 | L26: 3.123264567 | M26: 1.531134674 | N26: 31.27982644 | O26: 99.75700457 | P26: 60.10942937 | Q26: 3.014926523 | R26: 0.6984229946 | S26: 35.93422568
A27: Other expenditures | B27: Egyéb kiadások | C27: 0 | D27: 0 | E27: 0 | F27: 0 | G27: 0 | H27: 100 | I27: 0 | J27: 0 | K27: 0 | L27: 0 | M27: 0 | N27: 0 | O27: 100 | P27: 0 | Q27: 100 | R27: 0 | S27: 0
A28: Subtotal | B28: Költségvetési kiadások | C28: 0.6650937154 | D28: 12.40837015 | E28: 7.871619801 | F28: 13.44169114 | G28: 8.371484872 | H28: 5.80986136 | I28: 4.576661193 | J28: 8.100267382 | K28: 20.80023144 | L28: 2.714287515 | M28: 1.676544303 | N28: 13.10879899 | O28: 99.54491186 | P28: 20.94508366 | Q28: 27.62303737 | R28: 33.47716001 | S28: 17.49963081
A29: Expenditure of special settlements | B29: Sajátos elszámolások kiadása
A30: Total expenditures | B30: Kiadások összesen | C30: 0.6650937154 | D30: 12.40837015 | E30: 7.871619801 | F30: 13.44169114 | G30: 8.371484872 | H30: 5.809798883 | I30: 4.576657132 | J30: 8.10033392 | K30: 20.79720051 | L30: 2.733852457 | M30: 1.678961669 | N30: 13.35051023 | O30: 99.80557447 | P30: 20.94508366 | Q30: 27.6229749 | R30: 33.47419156 | S30: 17.76332436
A32: Total revenues | B32: Bevételek összesen | C32: 6.314825065 | D32: 10.8148697 | E32: 7.169081015 | F32: 16.0287516 | G32: 7.26424628 | H32: 5.223036028 | I32: 1.84432909 | J32: 26.81204488 | K32: 1.84229039 | L32: 2.667262558 | M32: 3.52256766 | N32: 10.49110412 | O32: 99.99440839 | P32: 24.29877578 | Q32: 28.51603391 | R32: 30.49866436 | S32: 16.68093434
A33: Total expenditures | B33: Kiadások összesen | C33: 0.6650937154 | D33: 12.40837015 | E33: 7.871619801 | F33: 13.44169114 | G33: 8.371484872 | H33: 5.809798883 | I33: 4.576657132 | J33: 8.10033392 | K33: 20.79720051 | L33: 2.733852457 | M33: 1.678961669 | N33: 13.35051023 | O33: 99.80557447 | P33: 20.94508366 | Q33: 27.6229749 | R33: 33.47419156 | S33: 17.76332436

Sheet ábra-NFA
B1: Nemzeti Foglalkoztatási Alap
B2: National Employment Fund
D7: teljesítés %-a* | H7: =+CONCATENATE("teljesítés ",#REF!) ->  | I7: =+D7 -> teljesítés %-a*
D17: =+IF(zászlók!$A$20=1,"Adat jellege:","type of data") -> Adat jellege:
A29: 1 | B29: 8 | E29: 1 | H29: 11
B30: =IF(zászlók!$A$20=1,'NFA-havi'!$B10,'NFA-havi'!$A10) -> Előfinanszírozott uniós programok kiadásainak visszatérülése | E30: =IF(zászlók!$A$20=1,"havi teljesítés (millió Ft)","monthly facts (Million HUF)") -> havi teljesítés (millió Ft) | H30: =IF(zászlók!$A$20=1,'NFA-havi'!$B23,'NFA-havi'!$A23) -> Foglalkoztatási támogatások
B31: =IF(zászlók!$A$20=1,'NFA-havi'!$B11,'NFA-havi'!$A11) -> Egyéb bevétel | E31: =IF(zászlók!$A$20=1,"teljesítési arány (%)","rate of facts (%)") -> teljesítési arány (%) | H31: =IF(zászlók!$A$20=1,'NFA-havi'!$B24,'NFA-havi'!$A24) -> Szakképzési támogatások
B32: =IF(zászlók!$A$20=1,'NFA-havi'!$B12,'NFA-havi'!$A12) -> Bérgarancia támogatás törlesztése | H32: =IF(zászlók!$A$20=1,'NFA-havi'!$B25,'NFA-havi'!$A25) -> Passzív kiadások, álláskeresési támogatások
B33: =IF(zászlók!$A$20=1,'NFA-havi'!$B13,'NFA-havi'!$A13) -> Társadalombiztosítási járulék NFA-t megillető része | H33: =IF(zászlók!$A$20=1,'NFA-havi'!$B26,'NFA-havi'!$A26) -> Bérgarancia kifizetések
B34: =IF(zászlók!$A$20=1,'NFA-havi'!$B14,'NFA-havi'!$A14) -> Költségvetési bevételek | H34: =IF(zászlók!$A$20=1,'NFA-havi'!$B27,'NFA-havi'!$A27) -> Működtetési célú kifizetések
B35: =IF(zászlók!$A$20=1,'NFA-havi'!$B15,'NFA-havi'!$A15) -> Finanszírozási bevételek | H35: =IF(zászlók!$A$20=1,'NFA-havi'!$B28,'NFA-havi'!$A28) -> Start-munkaprogram
B36: =IF(zászlók!$A$20=1,'NFA-havi'!$B16,'NFA-havi'!$A16) -> Sajátos elszámolások bevétele | H36: =IF(zászlók!$A$20=1,'NFA-havi'!$B29,'NFA-havi'!$A29) -> EU-s elő és társfinanszírozás
B37: =IF(zászlók!$A$20=1,'NFA-havi'!$B17,'NFA-havi'!$A17) -> Bevételek összesen | H37: =IF(zászlók!$A$20=1,'NFA-havi'!$B30,'NFA-havi'!$A30) -> Válsághelyzeti támogatás
H38: =IF(zászlók!$A$20=1,'NFA-havi'!$B31,'NFA-havi'!$A31) -> Költségvetési kiadások
H39: =IF(zászlók!$A$20=1,'NFA-havi'!$B32,'NFA-havi'!$A32) -> Sajátos elszámolások kiadása
H40: =IF(zászlók!$A$20=1,'NFA-havi'!$B33,'NFA-havi'!$A33) -> Kiadások összesen
C68: 25. jan. | D68: febr. | E68: márc. | F68: ápr. | G68: máj. | H68: jún. | I68: júl. | J68: aug. | K68: szept. | L68: okt. | M68: nov. | N68: dec.
C69: 25. Jan | D69: Febr | E69: March | F69: April | G69: May | H69: June | I69: July | J69: August | K69: Sept | L69: Oct | M69: Nov | N69: Dec
C70: =+IF(zászlók!$A$20=1,C68,C69) -> 25. jan. | D70: =+IF(zászlók!$A$20=1,D68,D69) -> febr. | E70: =+IF(zászlók!$A$20=1,E68,E69) -> márc. | F70: =+IF(zászlók!$A$20=1,F68,F69) -> ápr. | G70: =+IF(zászlók!$A$20=1,G68,G69) -> máj. | H70: =+IF(zászlók!$A$20=1,H68,H69) -> jún. | I70: =+IF(zászlók!$A$20=1,I68,I69) -> júl. | J70: =+IF(zászlók!$A$20=1,J68,J69) -> aug. | K70: =+IF(zászlók!$A$20=1,K68,K69) -> szept. | L70: =+IF(zászlók!$A$20=1,L68,L69) -> okt. | M70: =+IF(zászlók!$A$20=1,M68,M69) -> nov. | N70: =+IF(zászlók!$A$20=1,N68,N69) -> dec.
B71: =+INDEX($B$77:$B$78,$E$29,1) -> havi teljesítés (millió Ft) | C71: =+INDEX($C$77:$N$78,$E$29,C73) -> 38123.44573 | D71: 35677.13593 | E71: 34994.84005 | F71: 37019.63034 | G71: 37998.34906 | H71: 37566.73472 | I71: 38842.05541 | J71: 49226.06686 | K71: 37683.42279 | L71: 38188.54878 | M71: 37262.93676 | N71: 40879.88305
B72: =+INDEX($B$82:$B$83,$E$29,1) -> havi teljesítés (millió Ft) | C72: =+INDEX($C$82:$N$83,$E$29,C74) -> 34064.09142 | D72: 28382.66438 | E72: 56469.0719 | F72: 37826.76558 | G72: 37549.72393 | H72: 41939.19476 | I72: 40102.49154 | J72: 51798.72973 | K72: 34694.19625 | L72: 60015.59319 | M72: 44537.83114 | N72: 60466.70963
C73: 1 | D73: 2 | E73: 3 | F73: 4 | G73: 5 | H73: 6 | I73: 7 | J73: 8 | K73: 9 | L73: 10 | M73: 11 | N73: 12
B75: bevételek
B77: =IF(zászlók!$A$20=1,"havi teljesítés (millió Ft)","monthly facts (Million HUF)") -> havi teljesítés (millió Ft) | C77: =+INDEX('NFA-havi'!$F$10:$Q$17,$B$29,C$73) -> 38123.44573 | D77: =+INDEX('NFA-havi'!$F$10:$Q$17,$B$29,D$73) -> 35677.13593 | E77: =+INDEX('NFA-havi'!$F$10:$Q$17,$B$29,E$73) -> 34994.84005 | F77: =+INDEX('NFA-havi'!$F$10:$Q$17,$B$29,F$73) -> 37019.63034 | G77: =+INDEX('NFA-havi'!$F$10:$Q$17,$B$29,G$73) -> 37998.34906 | H77: =+INDEX('NFA-havi'!$F$10:$Q$17,$B$29,H$73) -> 37566.73472 | I77: =+INDEX('NFA-havi'!$F$10:$Q$17,$B$29,I$73) -> 38842.05541 | J77: =+INDEX('NFA-havi'!$F$10:$Q$17,$B$29,J$73) -> 49226.06686 | K77: =+INDEX('NFA-havi'!$F$10:$Q$17,$B$29,K$73) -> 37683.42279 | L77: =+INDEX('NFA-havi'!$F$10:$Q$17,$B$29,L$73) -> 38188.54878 | M77: =+INDEX('NFA-havi'!$F$10:$Q$17,$B$29,M$73) -> 37262.93676 | N77: =+INDEX('NFA-havi'!$F$10:$Q$17,$B$29,N$73) -> 40879.88305
B78: =IF(zászlók!$A$20=1,"teljesítési arány (%)","rate of facts (%)") -> teljesítési arány (%) | C78: =+INDEX('NFA-teljarány'!$C$10:$N$17,$B$29,C$73) -> 7.48692964 | D78: =+INDEX('NFA-teljarány'!$C$10:$N$17,$B$29,D$73) -> 7.00650745 | E78: =+INDEX('NFA-teljarány'!$C$10:$N$17,$B$29,E$73) -> 6.872513757 | F78: =+INDEX('NFA-teljarány'!$C$10:$N$17,$B$29,F$73) -> 7.270155212 | G78: =+INDEX('NFA-teljarány'!$C$10:$N$17,$B$29,G$73) -> 7.462362344 | H78: =+INDEX('NFA-teljarány'!$C$10:$N$17,$B$29,H$73) -> 7.37759912 | I78: =+INDEX('NFA-teljarány'!$C$10:$N$17,$B$29,I$73) -> 7.628054873 | J78: =+INDEX('NFA-teljarány'!$C$10:$N$17,$B$29,J$73) -> 9.667334418 | K78: =+INDEX('NFA-teljarány'!$C$10:$N$17,$B$29,K$73) -> 7.400515081 | L78: =+INDEX('NFA-teljarány'!$C$10:$N$17,$B$29,L$73) -> 7.499715 | M78: =+INDEX('NFA-teljarány'!$C$10:$N$17,$B$29,M$73) -> 7.317937306 | N78: =+INDEX('NFA-teljarány'!$C$10:$N$17,$B$29,N$73) -> 8.028256687
B80: kiadások
B82: =IF(zászlók!$A$20=1,"havi teljesítés (millió Ft)","monthly facts (Million HUF)") -> havi teljesítés (millió Ft) | C82: =+INDEX('NFA-havi'!$F$23:$Q$33,$H$29,C$73) -> 34064.09142 | D82: =+INDEX('NFA-havi'!$F$23:$Q$33,$H$29,D$73) -> 28382.66438 | E82: =+INDEX('NFA-havi'!$F$23:$Q$33,$H$29,E$73) -> 56469.0719 | F82: =+INDEX('NFA-havi'!$F$23:$Q$33,$H$29,F$73) -> 37826.76558 | G82: =+INDEX('NFA-havi'!$F$23:$Q$33,$H$29,G$73) -> 37549.72393 | H82: =+INDEX('NFA-havi'!$F$23:$Q$33,$H$29,H$73) -> 41939.19476 | I82: =+INDEX('NFA-havi'!$F$23:$Q$33,$H$29,I$73) -> 40102.49154 | J82: =+INDEX('NFA-havi'!$F$23:$Q$33,$H$29,J$73) -> 51798.72973 | K82: =+INDEX('NFA-havi'!$F$23:$Q$33,$H$29,K$73) -> 34694.19625 | L82: =+INDEX('NFA-havi'!$F$23:$Q$33,$H$29,L$73) -> 60015.59319 | M82: =+INDEX('NFA-havi'!$F$23:$Q$33,$H$29,M$73) -> 44537.83114 | N82: =+INDEX('NFA-havi'!$F$23:$Q$33,$H$29,N$73) -> 60466.70963
B83: =IF(zászlók!$A$20=1,"teljesítési arány (%)","rate of facts (%)") -> teljesítési arány (%) | C83: =+INDEX('NFA-teljarány'!$C$23:$N$36,$H$29,C$73) -> 6.61866504 | D83: =+INDEX('NFA-teljarány'!$C$23:$N$36,$H$29,D$73) -> 5.514761752 | E83: =+INDEX('NFA-teljarány'!$C$23:$N$36,$H$29,E$73) -> 10.97196069 | F83: =+INDEX('NFA-teljarány'!$C$23:$N$36,$H$29,F$73) -> 7.349753964 | G83: =+INDEX('NFA-teljarány'!$C$23:$N$36,$H$29,G$73) -> 7.295924672 | H83: =+INDEX('NFA-teljarány'!$C$23:$N$36,$H$29,H$73) -> 8.148800411 | I83: =+INDEX('NFA-teljarány'!$C$23:$N$36,$H$29,I$73) -> 7.791928324 | J83: =+INDEX('NFA-teljarány'!$C$23:$N$36,$H$29,J$73) -> 10.06451155 | K83: =+INDEX('NFA-teljarány'!$C$23:$N$36,$H$29,K$73) -> 6.741094631 | L83: =+INDEX('NFA-teljarány'!$C$23:$N$36,$H$29,L$73) -> 11.66105103 | M83: =+INDEX('NFA-teljarány'!$C$23:$N$36,$H$29,M$73) -> 8.653716381 | N83: =+INDEX('NFA-teljarány'!$C$23:$N$36,$H$29,N$73) -> 11.74870312

Sheet ábra-KNPA
B1: Központi Nukleáris Pénzügyi Alap
B2: Central Nuclear Fund
D7: teljesítés %-a* | H7: =+CONCATENATE("teljesítés ",#REF!) ->  | I7: =+D7 -> teljesítés %-a*
D17: =+IF(zászlók!$A$20=1,"Adat jellege:","type of data") -> Adat jellege:
B29: 8 | E29: 1 | H29: 12
B30: =+IF(zászlók!$A$20=1,'KNPA-havi'!$B10,'KNPA-havi'!$A10) -> Nukleáris létesítmények bef.: MVM Paksi Atomerőmű Zrt. | E30: =IF(zászlók!$A$20=1,"havi teljesítés (millió Ft)","monthly facts (Million HUF)") -> havi teljesítés (millió Ft) | H30: =+IF(zászlók!$A$20=1,'KNPA-havi'!$B23,'KNPA-havi'!$A23) -> Fejlesztési, beruházási célú kiadások
B31: =+IF(zászlók!$A$20=1,'KNPA-havi'!$B11,'KNPA-havi'!$A11) -> Radioaktív hulladékok végleges, eseti elhelyezése | E31: =IF(zászlók!$A$20=1,"teljesítési arány (%)","rate of facts (%)") -> teljesítési arány (%) | H31: =+IF(zászlók!$A$20=1,'KNPA-havi'!$B24,'KNPA-havi'!$A24) -> - Kis- és közepes akt. radioaktívhull. tár. beruh., fejlesztése
B32: =+IF(zászlók!$A$20=1,'KNPA-havi'!$B12,'KNPA-havi'!$A12) -> Költségvetési támogatás | H32: =+IF(zászlók!$A$20=1,'KNPA-havi'!$B25,'KNPA-havi'!$A25) -> - Nagy aktivitású radioaktívhull. tár. telephely kiválasztása
B33: =+IF(zászlók!$A$20=1,'KNPA-havi'!$B13,'KNPA-havi'!$A13) -> Egyéb bevételek | H33: =+IF(zászlók!$A$20=1,'KNPA-havi'!$B26,'KNPA-havi'!$A26) -> - Kiégett Kazetták Átmeneti Tárolójának bőv., felújítása
B34: =+IF(zászlók!$A$20=1,'KNPA-havi'!$B14,'KNPA-havi'!$A14) -> Költségvetési bevételek | H34: =+IF(zászlók!$A$20=1,'KNPA-havi'!$B27,'KNPA-havi'!$A27) -> - Nukleáris létesítm. leszerelésének előkész.: Paksi Atomerőmű
B35: =+IF(zászlók!$A$20=1,'KNPA-havi'!$B15,'KNPA-havi'!$A15) -> Finanszírozási bevételek | H35: =+IF(zászlók!$A$20=1,'KNPA-havi'!$B28,'KNPA-havi'!$A28) -> Átadott pénzeszközök
B36: =+IF(zászlók!$A$20=1,'KNPA-havi'!$B16,'KNPA-havi'!$A16) -> Sajátos elszámolások bevétele | H36: =+IF(zászlók!$A$20=1,'KNPA-havi'!$B29,'KNPA-havi'!$A29) -> - RHK Kft. műk., radioaktívhull. tár. és a KKÁT üzem. kiadásai
B37: =+IF(zászlók!$A$20=1,'KNPA-havi'!$B17,'KNPA-havi'!$A17) -> Bevételek összesen | H37: =+IF(zászlók!$A$20=1,'KNPA-havi'!$B30,'KNPA-havi'!$A30) -> - Ellenőrzési és információs c. önk. társulások támogatása
H38: =+IF(zászlók!$A$20=1,'KNPA-havi'!$B31,'KNPA-havi'!$A31) -> - Alapkezelőnek működési célra
H39: =+IF(zászlók!$A$20=1,'KNPA-havi'!$B32,'KNPA-havi'!$A32) -> Költségvetési kiadások
H40: =+IF(zászlók!$A$20=1,'KNPA-havi'!$B33,'KNPA-havi'!$A33) -> Sajátos elszámolások kiadása
H41: =+IF(zászlók!$A$20=1,'KNPA-havi'!$B34,'KNPA-havi'!$A34) -> Kiadások összesen
C65: 25. jan. | D65: febr. | E65: márc. | F65: ápr. | G65: máj. | H65: jún. | I65: júl. | J65: aug. | K65: szept. | L65: okt. | M65: nov. | N65: dec.
C66: 25. Jan | D66: Febr | E66: March | F66: April | G66: May | H66: June | I66: July | J66: August | K66: Sept | L66: Oct | M66: Nov | N66: Dec
C67: =+IF(zászlók!$A$20=1,C65,C66) -> 25. jan. | D67: =+IF(zászlók!$A$20=1,D65,D66) -> febr. | E67: =+IF(zászlók!$A$20=1,E65,E66) -> márc. | F67: =+IF(zászlók!$A$20=1,F65,F66) -> ápr. | G67: =+IF(zászlók!$A$20=1,G65,G66) -> máj. | H67: =+IF(zászlók!$A$20=1,H65,H66) -> jún. | I67: =+IF(zászlók!$A$20=1,I65,I66) -> júl. | J67: =+IF(zászlók!$A$20=1,J65,J66) -> aug. | K67: =+IF(zászlók!$A$20=1,K65,K66) -> szept. | L67: =+IF(zászlók!$A$20=1,L65,L66) -> okt. | M67: =+IF(zászlók!$A$20=1,M65,M66) -> nov. | N67: =+IF(zászlók!$A$20=1,N65,N66) -> dec.
B68: =+INDEX($B$74:$B$75,$E$29,1) -> havi teljesítés (millió Ft) | C68: =+INDEX($C$74:$N$75,$E$29,C$70) -> 1917-06-23T17:19:50.909 | D68: 1917-07-28T03:44:36.413 | E68: 1917-07-10T07:48:02.419 | F68: 1917-07-10T06:25:09.149 | G68: 1917-07-10T07:56:08.419 | H68: 1917-07-10T07:01:57.446 | I68: 1940-05-27T09:12:11.981 | J68: 1917-07-10T11:34:49.123 | K68: 1917-07-11T03:20:21.091 | L68: 1917-07-10T10:55:34.205 | M68: 1917-07-10T09:04:41.059 | N68: 1917-07-10T13:42:33.149
B69: =+INDEX($B$79:$B$80,$E$29,1) -> havi teljesítés (millió Ft) | C69: =+INDEX($C$79:$N$80,$E$29,C70) -> 00:00:00 | D69: 00:00:00 | E69: 00:00:00 | F69: 1903-05-15T14:24:00 | G69: 1913-06-14T21:53:37.536 | H69: 00:00:00 | I69: 1923-12-26T17:53:05.971 | J69: 00:00:00 | K69: 00:00:00 | L69: 1930-06-17T13:01:16.493 | M69: 00:00:00 | N69: 1900-03-23T12:00:00
C70: 1900-01-01 | D70: 1900-01-02 | E70: 1900-01-03 | F70: 1900-01-04 | G70: 1900-01-05 | H70: 1900-01-06 | I70: 1900-01-07 | J70: 1900-01-08 | K70: 1900-01-09 | L70: 1900-01-10 | M70: 1900-01-11 | N70: 1900-01-12
B72: bevételek
B74: =IF(zászlók!$A$20=1,"havi teljesítés (millió Ft)","monthly facts (Million HUF)") -> havi teljesítés (millió Ft) | C74: =+INDEX('KNPA-havi'!$F$10:$Q$17,$B$29,C$70) -> 1917-06-23T17:19:50.909 | D74: =+INDEX('KNPA-havi'!$F$10:$Q$17,$B$29,D$70) -> 1917-07-28T03:44:36.413 | E74: =+INDEX('KNPA-havi'!$F$10:$Q$17,$B$29,E$70) -> 1917-07-10T07:48:02.419 | F74: =+INDEX('KNPA-havi'!$F$10:$Q$17,$B$29,F$70) -> 1917-07-10T06:25:09.149 | G74: =+INDEX('KNPA-havi'!$F$10:$Q$17,$B$29,G$70) -> 1917-07-10T07:56:08.419 | H74: =+INDEX('KNPA-havi'!$F$10:$Q$17,$B$29,H$70) -> 1917-07-10T07:01:57.446 | I74: =+INDEX('KNPA-havi'!$F$10:$Q$17,$B$29,I$70) -> 1940-05-27T09:12:11.981 | J74: =+INDEX('KNPA-havi'!$F$10:$Q$17,$B$29,J$70) -> 1917-07-10T11:34:49.123 | K74: =+INDEX('KNPA-havi'!$F$10:$Q$17,$B$29,K$70) -> 1917-07-11T03:20:21.091 | L74: =+INDEX('KNPA-havi'!$F$10:$Q$17,$B$29,L$70) -> 1917-07-10T10:55:34.205 | M74: =+INDEX('KNPA-havi'!$F$10:$Q$17,$B$29,M$70) -> 1917-07-10T09:04:41.059 | N74: =+INDEX('KNPA-havi'!$F$10:$Q$17,$B$29,N$70) -> 1917-07-10T13:42:33.149 | O74: =+INDEX('KNPA-havi'!$F$10:$Q$17,$B$29,O$70) -> 6401.455257
B75: =IF(zászlók!$A$20=1,"teljesítési arány (%)","rate of facts (%)") -> teljesítési arány (%) | C75: =+INDEX('KNPA-teljarány'!$C$10:$N$17,$B$29,C$70) -> 1900-01-08T08:43:30.314 | D75: =+INDEX('KNPA-teljarány'!$C$10:$N$17,$B$29,D$70) -> 1900-01-08T09:48:27.470 | E75: =+INDEX('KNPA-teljarány'!$C$10:$N$17,$B$29,E$70) -> 1900-01-08T09:14:49.399 | F75: =+INDEX('KNPA-teljarány'!$C$10:$N$17,$B$29,F$70) -> 1900-01-08T09:14:42.884 | G75: =+INDEX('KNPA-teljarány'!$C$10:$N$17,$B$29,G$70) -> 1900-01-08T09:14:50.035 | H75: =+INDEX('KNPA-teljarány'!$C$10:$N$17,$B$29,H$70) -> 1900-01-08T09:14:45.777 | I75: =+INDEX('KNPA-teljarány'!$C$10:$N$17,$B$29,I$70) -> 1900-01-19T07:58:44.865 | J75: =+INDEX('KNPA-teljarány'!$C$10:$N$17,$B$29,J$70) -> 1900-01-08T09:15:07.222 | K75: =+INDEX('KNPA-teljarány'!$C$10:$N$17,$B$29,K$70) -> 1900-01-08T09:16:21.537 | L75: =+INDEX('KNPA-teljarány'!$C$10:$N$17,$B$29,L$70) -> 1900-01-08T09:15:04.138 | M75: =+INDEX('KNPA-teljarány'!$C$10:$N$17,$B$29,M$70) -> 1900-01-08T09:14:55.423 | N75: =+INDEX('KNPA-teljarány'!$C$10:$N$17,$B$29,N$70) -> 1900-01-08T09:15:17.262
B77: kiadások
B79: =IF(zászlók!$A$20=1,"havi teljesítés (millió Ft)","monthly facts (Million HUF)") -> havi teljesítés (millió Ft) | C79: =+INDEX('KNPA-havi'!$F$23:$Q$34,$H$29,C$70) -> 0 | D79: =+INDEX('KNPA-havi'!$F$23:$Q$34,$H$29,D$70) -> 0 | E79: =+INDEX('KNPA-havi'!$F$23:$Q$34,$H$29,E$70) -> 0 | F79: =+INDEX('KNPA-havi'!$F$23:$Q$34,$H$29,F$70) -> 1231.6 | G79: =+INDEX('KNPA-havi'!$F$23:$Q$34,$H$29,G$70) -> 4914.91224 | H79: =+INDEX('KNPA-havi'!$F$23:$Q$34,$H$29,H$70) -> 0 | I79: =+INDEX('KNPA-havi'!$F$23:$Q$34,$H$29,I$70) -> 8761.745208 | J79: =+INDEX('KNPA-havi'!$F$23:$Q$34,$H$29,J$70) -> 0 | K79: =+INDEX('KNPA-havi'!$F$23:$Q$34,$H$29,K$70) -> 0 | L79: =+INDEX('KNPA-havi'!$F$23:$Q$34,$H$29,L$70) -> 11126.54255 | M79: =+INDEX('KNPA-havi'!$F$23:$Q$34,$H$29,M$70) -> 0 | N79: =+INDEX('KNPA-havi'!$F$23:$Q$34,$H$29,N$70) -> 83.5 | O79: =+INDEX('KNPA-havi'!$F$23:$Q$34,$H$29,O$70) -> 11126.54255
B80: =IF(zászlók!$A$20=1,"teljesítési arány (%)","rate of facts (%)") -> teljesítési arány (%) | C80: =+INDEX('KNPA-teljarány'!$C$23:$N$34,$H$29,C$70) -> 0 | D80: =+INDEX('KNPA-teljarány'!$C$23:$N$34,$H$29,D$70) -> 0 | E80: =+INDEX('KNPA-teljarány'!$C$23:$N$34,$H$29,E$70) -> 0 | F80: =+INDEX('KNPA-teljarány'!$C$23:$N$34,$H$29,F$70) -> 4.715467699 | G80: =+INDEX('KNPA-teljarány'!$C$23:$N$34,$H$29,G$70) -> 18.81788723 | H80: =+INDEX('KNPA-teljarány'!$C$23:$N$34,$H$29,H$70) -> 0 | I80: =+INDEX('KNPA-teljarány'!$C$23:$N$34,$H$29,I$70) -> 33.54638398 | J80: =+INDEX('KNPA-teljarány'!$C$23:$N$34,$H$29,J$70) -> 0 | K80: =+INDEX('KNPA-teljarány'!$C$23:$N$34,$H$29,K$70) -> 0 | L80: =+INDEX('KNPA-teljarány'!$C$23:$N$34,$H$29,L$70) -> 42.60056187 | M80: =+INDEX('KNPA-teljarány'!$C$23:$N$34,$H$29,M$70) -> 0 | N80: =+INDEX('KNPA-teljarány'!$C$23:$N$34,$H$29,N$70) -> 0.3196992147

Sheet ábra-NKFIA
B1: Nemzeti Kutatási, Fejlesztési és Innovációs Alap
B2: National Research, Development and Innovation Fund
D7: teljesítés %-a* | H7: =+CONCATENATE("teljesítés ",#REF!) ->  | I7: =+D7 -> teljesítés %-a*
D17: =+IF(zászlók!$A$20=1,"Adat jellege:","type of data") -> Adat jellege:
B29: 6 | E29: 1 | H29: 8
B30: =+IF(zászlók!$A$20=1,'NKFIA-havi'!$B10,'NKFIA-havi'!$A10) -> Innovációs járulék | E30: =IF(zászlók!$A$20=1,"havi teljesítés (millió Ft)","monthly facts (Million HUF)") -> havi teljesítés (millió Ft) | H30: =+IF(zászlók!$A$20=1,'NKFIA-havi'!$B21,'NKFIA-havi'!$A21) -> Kutatási Alaprész
B31: =+IF(zászlók!$A$20=1,'NKFIA-havi'!$B11,'NKFIA-havi'!$A11) -> Egyéb bevételek | E31: =IF(zászlók!$A$20=1,"teljesítési arány (%)","rate of facts (%)") -> teljesítési arány (%) | H31: =+IF(zászlók!$A$20=1,'NKFIA-havi'!$B22,'NKFIA-havi'!$A22) -> Innovációs Alaprész
B32: =+IF(zászlók!$A$20=1,'NKFIA-havi'!$B12,'NKFIA-havi'!$A12) -> Költségvetési bevételek | H32: =+IF(zászlók!$A$20=1,'NKFIA-havi'!$B23,'NKFIA-havi'!$A23) -> Befizetés a központi költségvetésbe
B33: =+IF(zászlók!$A$20=1,'NKFIA-havi'!$B13,'NKFIA-havi'!$A13) -> Finanszírozási bevételek | H33: =+IF(zászlók!$A$20=1,'NKFIA-havi'!$B24,'NKFIA-havi'!$A24) -> Alapkezelőnek átadott pénzeszköz
B34: =+IF(zászlók!$A$20=1,'NKFIA-havi'!$B14,'NKFIA-havi'!$A14) -> Sajátos elszámolások bevétele | H34: =+IF(zászlók!$A$20=1,'NKFIA-havi'!$B25,'NKFIA-havi'!$A25) -> Missziók Alaprész
B35: =+IF(zászlók!$A$20=1,'NKFIA-havi'!$B15,'NKFIA-havi'!$A15) -> Bevételek összesen | H35: =+IF(zászlók!$A$20=1,'NKFIA-havi'!$B26,'NKFIA-havi'!$A26) -> Költségvetési kiadások
H36: =+IF(zászlók!$A$20=1,'NKFIA-havi'!$B27,'NKFIA-havi'!$A27) -> Sajátos elszámolások kiadása
H37: =+IF(zászlók!$A$20=1,'NKFIA-havi'!$B28,'NKFIA-havi'!$A28) -> Kiadások összesen
C65: 25. jan. | D65: febr. | E65: márc. | F65: ápr. | G65: máj. | H65: jún. | I65: júl. | J65: aug. | K65: szept. | L65: okt. | M65: nov. | N65: dec.
C66: 25. Jan | D66: Febr | E66: March | F66: April | G66: May | H66: June | I66: July | J66: August | K66: Sept | L66: Oct | M66: Nov | N66: Dec
C67: =+IF(zászlók!$A$20=1,C65,C66) -> 25. jan. | D67: =+IF(zászlók!$A$20=1,D65,D66) -> febr. | E67: =+IF(zászlók!$A$20=1,E65,E66) -> márc. | F67: =+IF(zászlók!$A$20=1,F65,F66) -> ápr. | G67: =+IF(zászlók!$A$20=1,G65,G66) -> máj. | H67: =+IF(zászlók!$A$20=1,H65,H66) -> jún. | I67: =+IF(zászlók!$A$20=1,I65,I66) -> júl. | J67: =+IF(zászlók!$A$20=1,J65,J66) -> aug. | K67: =+IF(zászlók!$A$20=1,K65,K66) -> szept. | L67: =+IF(zászlók!$A$20=1,L65,L66) -> okt. | M67: =+IF(zászlók!$A$20=1,M65,M66) -> nov. | N67: =+IF(zászlók!$A$20=1,N65,N66) -> dec.
B68: =+INDEX($B$74:$B$75,$E$29,1) -> havi teljesítés (millió Ft) | C68: =+INDEX($C$74:$N$75,$E$29,C$70) -> 1979-10-01T10:58:32.448 | D68: 1911-07-09T05:17:02.774 | E68: 1908-01-13T23:40:38.093 | F68: 1983-05-23T02:44:44.851 | G68: 1913-06-11T11:45:53.798 | H68: 1979-05-21T11:38:08.189 | I68: 1974-12-03T15:18:52.445 | J68: 1906-04-25T16:48:57.456 | K68: 1909-09-01T07:03:56.678 | L68: 1992-03-04T05:08:38.630 | M68: 1910-03-16T15:57:10.080 | N68: 1909-09-12T05:14:15.850
B69: =+INDEX($B$79:$B$80,$E$29,1) -> havi teljesítés (millió Ft) | C69: =+INDEX($C$79:$N$80,$E$29,C70) -> 1929-01-30T01:12:00 | D69: 1940-02-20T06:10:00.394 | E69: 1916-09-08T09:43:23.578 | F69: 1936-10-03T19:37:48.202 | G69: 1916-10-01T19:07:16.003 | H69: 1911-03-12T04:40:37.027 | I69: 1945-03-09T16:29:23.021 | J69: 1910-11-22T00:24:01.584 | K69: 1909-08-20T01:53:36.874 | L69: 1967-05-26T06:44:04.963 | M69: 1921-04-23T08:54:36.864 | N69: 2037-12-15T16:44:41.366
C70: 1900-01-01 | D70: 1900-01-02 | E70: 1900-01-03 | F70: 1900-01-04 | G70: 1900-01-05 | H70: 1900-01-06 | I70: 1900-01-07 | J70: 1900-01-08 | K70: 1900-01-09 | L70: 1900-01-10 | M70: 1900-01-11 | N70: 1900-01-12
B72: bevételek
B74: =IF(zászlók!$A$20=1,"havi teljesítés (millió Ft)","monthly facts (Million HUF)") -> havi teljesítés (millió Ft) | C74: =+INDEX('NKFIA-havi'!$F$10:$Q$15,$B$29,C$70) -> 29129.45732 | D74: =+INDEX('NKFIA-havi'!$F$10:$Q$15,$B$29,D$70) -> 4208.220171 | E74: =+INDEX('NKFIA-havi'!$F$10:$Q$15,$B$29,E$70) -> 2935.986552 | F74: =+INDEX('NKFIA-havi'!$F$10:$Q$15,$B$29,F$70) -> 30459.11441 | G74: =+INDEX('NKFIA-havi'!$F$10:$Q$15,$B$29,G$70) -> 4911.490206 | H74: =+INDEX('NKFIA-havi'!$F$10:$Q$15,$B$29,H$70) -> 28996.48482 | I74: =+INDEX('NKFIA-havi'!$F$10:$Q$15,$B$29,I$70) -> 27366.63811 | J74: =+INDEX('NKFIA-havi'!$F$10:$Q$15,$B$29,J$70) -> 2307.700665 | K74: =+INDEX('NKFIA-havi'!$F$10:$Q$15,$B$29,K$70) -> 3532.294406 | L74: =+INDEX('NKFIA-havi'!$F$10:$Q$15,$B$29,L$70) -> 33667.21434 | M74: =+INDEX('NKFIA-havi'!$F$10:$Q$15,$B$29,M$70) -> 3728.6647 | N74: =+INDEX('NKFIA-havi'!$F$10:$Q$15,$B$29,N$70) -> 3543.218239 | O74: 0
B75: =IF(zászlók!$A$20=1,"teljesítési arány (%)","rate of facts (%)") -> teljesítési arány (%) | C75: =+INDEX('NKFIA-teljarány'!$C$10:$N$15,$B$29,C$70) -> 14.7125967 | D75: =+INDEX('NKFIA-teljarány'!$C$10:$N$15,$B$29,D$70) -> 2.125472009 | E75: =+INDEX('NKFIA-teljarány'!$C$10:$N$15,$B$29,E$70) -> 1.48289704 | F75: =+INDEX('NKFIA-teljarány'!$C$10:$N$15,$B$29,F$70) -> 15.38417489 | G75: =+INDEX('NKFIA-teljarány'!$C$10:$N$15,$B$29,G$70) -> 2.480676992 | H75: =+INDEX('NKFIA-teljarány'!$C$10:$N$15,$B$29,H$70) -> 14.64543544 | I75: =+INDEX('NKFIA-teljarány'!$C$10:$N$15,$B$29,I$70) -> 13.8222386 | J75: =+INDEX('NKFIA-teljarány'!$C$10:$N$15,$B$29,J$70) -> 1.165564769 | K75: =+INDEX('NKFIA-teljarány'!$C$10:$N$15,$B$29,K$70) -> 1.784077967 | L75: =+INDEX('NKFIA-teljarány'!$C$10:$N$15,$B$29,L$70) -> 17.00450994 | M75: =+INDEX('NKFIA-teljarány'!$C$10:$N$15,$B$29,M$70) -> 1.883259937 | N75: =+INDEX('NKFIA-teljarány'!$C$10:$N$15,$B$29,N$70) -> 1.789595336
B77: kiadások
B79: =IF(zászlók!$A$20=1,"havi teljesítés (millió Ft)","monthly facts (Million HUF)") -> havi teljesítés (millió Ft) | C79: =+INDEX('NKFIA-havi'!$F$21:$Q$28,$H$29,C$70) -> 10623.05 | D79: =+INDEX('NKFIA-havi'!$F$21:$Q$28,$H$29,D$70) -> 14661.25695 | E79: =+INDEX('NKFIA-havi'!$F$21:$Q$28,$H$29,E$70) -> 6096.405134 | F79: =+INDEX('NKFIA-havi'!$F$21:$Q$28,$H$29,F$70) -> 13426.81792 | G79: =+INDEX('NKFIA-havi'!$F$21:$Q$28,$H$29,G$70) -> 6119.796713 | H79: =+INDEX('NKFIA-havi'!$F$21:$Q$28,$H$29,H$70) -> 4089.194873 | I79: =+INDEX('NKFIA-havi'!$F$21:$Q$28,$H$29,I$70) -> 16505.68707 | J79: =+INDEX('NKFIA-havi'!$F$21:$Q$28,$H$29,J$70) -> 3979.016685 | K79: =+INDEX('NKFIA-havi'!$F$21:$Q$28,$H$29,K$70) -> 3520.078899 | L79: =+INDEX('NKFIA-havi'!$F$21:$Q$28,$H$29,L$70) -> 24618.28061 | M79: =+INDEX('NKFIA-havi'!$F$21:$Q$28,$H$29,M$70) -> 7784.37126 | N79: =+INDEX('NKFIA-havi'!$F$21:$Q$28,$H$29,N$70) -> 50389.6977 | O79: 0
B80: =IF(zászlók!$A$20=1,"teljesítési arány (%)","rate of facts (%)") -> teljesítési arány (%) | C80: =+INDEX('NKFIA-teljarány'!$C$21:$N$28,$H$29,C$70) -> 6.564841449 | D80: =+INDEX('NKFIA-teljarány'!$C$21:$N$28,$H$29,D$70) -> 9.060376004 | E80: =+INDEX('NKFIA-teljarány'!$C$21:$N$28,$H$29,E$70) -> 3.767461615 | F80: =+INDEX('NKFIA-teljarány'!$C$21:$N$28,$H$29,F$70) -> 8.297516325 | G80: =+INDEX('NKFIA-teljarány'!$C$21:$N$28,$H$29,G$70) -> 3.781917163 | H80: =+INDEX('NKFIA-teljarány'!$C$21:$N$28,$H$29,H$70) -> 2.527044116 | I80: =+INDEX('NKFIA-teljarány'!$C$21:$N$28,$H$29,I$70) -> 10.2001985 | J80: =+INDEX('NKFIA-teljarány'!$C$21:$N$28,$H$29,J$70) -> 2.458956106 | K80: =+INDEX('NKFIA-teljarány'!$C$21:$N$28,$H$29,K$70) -> 2.175341343 | L80: =+INDEX('NKFIA-teljarány'!$C$21:$N$28,$H$29,L$70) -> 15.21362593 | M80: =+INDEX('NKFIA-teljarány'!$C$21:$N$28,$H$29,M$70) -> 4.810592353 | N80: =+INDEX('NKFIA-teljarány'!$C$21:$N$28,$H$29,N$70) -> 31.13986812

Sheet ábra-BGA
B1: Bethlen Gábor Alap
B2: Bethlen Gábor Fund
D7: teljesítés %-a* | H7: =+CONCATENATE("teljesítés ",#REF!) ->  | I7: =+D7 -> teljesítés %-a*
D17: =+IF(zászlók!$A$20=1,"Adat jellege:","type of data") -> Adat jellege:
B29: 6 | E29: 1 | H29: 10
B30: =IF(zászlók!$A$20=1,'BGA-havi'!$B10,'BGA-havi'!$A10) -> Költségvetési támogatás | E30: =IF(zászlók!$A$20=1,"havi teljesítés (millió Ft)","monthly facts (Million HUF)") -> havi teljesítés (millió Ft) | H30: =IF(zászlók!$A$20=1,'BGA-havi'!$B21,'BGA-havi'!$A21) -> Nemzetpolitikai célú támogatások
B31: =IF(zászlók!$A$20=1,'BGA-havi'!$B11,'BGA-havi'!$A11) -> Egyéb bevétel | E31: =IF(zászlók!$A$20=1,"teljesítési arány (%)","rate of facts (%)") -> teljesítési arány (%) | H31: =IF(zászlók!$A$20=1,'BGA-havi'!$B22,'BGA-havi'!$A22) -> Működtetési célú kifizetések
B32: =IF(zászlók!$A$20=1,'BGA-havi'!$B12,'BGA-havi'!$A12) -> Költségvetési bevételek | H32: =IF(zászlók!$A$20=1,'BGA-havi'!$B23,'BGA-havi'!$A23) -> Rákóczi Szövetség támogatása
B33: =IF(zászlók!$A$20=1,'BGA-havi'!$B13,'BGA-havi'!$A13) -> Finanszírozási bevételek | H33: =IF(zászlók!$A$20=1,'BGA-havi'!$B24,'BGA-havi'!$A24) -> Tematikus programok támogatása
B34: =IF(zászlók!$A$20=1,'BGA-havi'!$B14,'BGA-havi'!$A14) -> Sajátos elszámolások bevétele | H34: =IF(zászlók!$A$20=1,'BGA-havi'!$B25,'BGA-havi'!$A25) -> Magyarság Háza program támogatása
B35: =IF(zászlók!$A$20=1,'BGA-havi'!$B15,'BGA-havi'!$A15) -> Bevételek összesen | H35: =IF(zászlók!$A$20=1,'BGA-havi'!$B26,'BGA-havi'!$A26) -> Határtalanul! program támogatása
H36: =IF(zászlók!$A$20=1,'BGA-havi'!$B27,'BGA-havi'!$A27) -> Egyéb kiadások
H37: =IF(zászlók!$A$20=1,'BGA-havi'!$B28,'BGA-havi'!$A28) -> Költségvetési kiadások
H38: =IF(zászlók!$A$20=1,'BGA-havi'!$B29,'BGA-havi'!$A29) -> Sajátos elszámolások kiadása
H39: =IF(zászlók!$A$20=1,'BGA-havi'!$B30,'BGA-havi'!$A30) -> Kiadások összesen
C65: 25. jan. | D65: febr. | E65: márc. | F65: ápr. | G65: máj. | H65: jún. | I65: júl. | J65: aug. | K65: szept. | L65: okt. | M65: nov. | N65: dec.
C66: 25. Jan | D66: Febr | E66: March | F66: April | G66: May | H66: June | I66: July | J66: August | K66: Sept | L66: Oct | M66: Nov | N66: Dec
C67: =+IF(zászlók!$A$20=1,C65,C66) -> 25. jan. | D67: =+IF(zászlók!$A$20=1,D65,D66) -> febr. | E67: =+IF(zászlók!$A$20=1,E65,E66) -> márc. | F67: =+IF(zászlók!$A$20=1,F65,F66) -> ápr. | G67: =+IF(zászlók!$A$20=1,G65,G66) -> máj. | H67: =+IF(zászlók!$A$20=1,H65,H66) -> jún. | I67: =+IF(zászlók!$A$20=1,I65,I66) -> júl. | J67: =+IF(zászlók!$A$20=1,J65,J66) -> aug. | K67: =+IF(zászlók!$A$20=1,K65,K66) -> szept. | L67: =+IF(zászlók!$A$20=1,L65,L66) -> okt. | M67: =+IF(zászlók!$A$20=1,M65,M66) -> nov. | N67: =+IF(zászlók!$A$20=1,N65,N66) -> dec.
B68: =+INDEX($B$74:$B$75,$E$29,1) -> havi teljesítés (millió Ft) | C68: =+INDEX($C$74:$N$75,$E$29,C$70) -> 6064.458187 | D68: =+INDEX($C$74:$N$75,$E$29,D$70) -> 10386.0874 | E68: 6884.845044 | F68: 15393.25205 | G68: 6976.237247 | H68: 5015.95583 | I68: 1771.206096 | J68: 25749.01496 | K68: 1769.248225 | L68: 2561.512329 | M68: 3382.906742 | N68: 10075.15832
B69: =+INDEX($B$79:$B$80,$E$29,1) -> havi teljesítés (millió Ft) | C69: =+INDEX($C$79:$N$80,$E$29,C70) -> 638.724428 | D69: 11916.40958 | E69: 7559.52994 | F69: 12908.76201 | G69: 8039.576623 | H69: 5579.455019 | I69: 4395.204226 | J69: 7779.176122 | K69: 19972.64399 | L69: 2625.462106 | M69: 1612.395076 | N69: 12821.19619
C70: 1 | D70: 2 | E70: 3 | F70: 4 | G70: 5 | H70: 6 | I70: 7 | J70: 8 | K70: 9 | L70: 10 | M70: 11 | N70: 12
B72: bevételek
B74: =IF(zászlók!$A$20=1,"havi teljesítés (millió Ft)","monthly facts (Million HUF)") -> havi teljesítés (millió Ft) | C74: =+INDEX('BGA-havi'!$F$10:$Q$15,$B$29,C$70) -> 6064.458187 | D74: =+INDEX('BGA-havi'!$F$10:$Q$15,$B$29,D$70) -> 10386.0874 | E74: =+INDEX('BGA-havi'!$F$10:$Q$15,$B$29,E$70) -> 6884.845044 | F74: =+INDEX('BGA-havi'!$F$10:$Q$15,$B$29,F$70) -> 15393.25205 | G74: =+INDEX('BGA-havi'!$F$10:$Q$15,$B$29,G$70) -> 6976.237247 | H74: =+INDEX('BGA-havi'!$F$10:$Q$15,$B$29,H$70) -> 5015.95583 | I74: =+INDEX('BGA-havi'!$F$10:$Q$15,$B$29,I$70) -> 1771.206096 | J74: =+INDEX('BGA-havi'!$F$10:$Q$15,$B$29,J$70) -> 25749.01496 | K74: =+INDEX('BGA-havi'!$F$10:$Q$15,$B$29,K$70) -> 1769.248225 | L74: =+INDEX('BGA-havi'!$F$10:$Q$15,$B$29,L$70) -> 2561.512329 | M74: =+INDEX('BGA-havi'!$F$10:$Q$15,$B$29,M$70) -> 3382.906742 | N74: =+INDEX('BGA-havi'!$F$10:$Q$15,$B$29,N$70) -> 10075.15832
B75: =IF(zászlók!$A$20=1,"teljesítési arány (%)","rate of facts (%)") -> teljesítési arány (%) | C75: =+INDEX('BGA-teljarány'!$C$10:$N$15,'ábra-BGA'!$B$29,'ábra-BGA'!C$70) -> 6.314825065 | D75: =+INDEX('BGA-teljarány'!$C$10:$N$15,'ábra-BGA'!$B$29,'ábra-BGA'!D$70) -> 10.8148697 | E75: =+INDEX('BGA-teljarány'!$C$10:$N$15,'ábra-BGA'!$B$29,'ábra-BGA'!E$70) -> 7.169081015 | F75: =+INDEX('BGA-teljarány'!$C$10:$N$15,'ábra-BGA'!$B$29,'ábra-BGA'!F$70) -> 16.0287516 | G75: =+INDEX('BGA-teljarány'!$C$10:$N$15,'ábra-BGA'!$B$29,'ábra-BGA'!G$70) -> 7.26424628 | H75: =+INDEX('BGA-teljarány'!$C$10:$N$15,'ábra-BGA'!$B$29,'ábra-BGA'!H$70) -> 5.223036028 | I75: =+INDEX('BGA-teljarány'!$C$10:$N$15,'ábra-BGA'!$B$29,'ábra-BGA'!I$70) -> 1.84432909 | J75: =+INDEX('BGA-teljarány'!$C$10:$N$15,'ábra-BGA'!$B$29,'ábra-BGA'!J$70) -> 26.81204488 | K75: =+INDEX('BGA-teljarány'!$C$10:$N$15,'ábra-BGA'!$B$29,'ábra-BGA'!K$70) -> 1.84229039 | L75: =+INDEX('BGA-teljarány'!$C$10:$N$15,'ábra-BGA'!$B$29,'ábra-BGA'!L$70) -> 2.667262558 | M75: =+INDEX('BGA-teljarány'!$C$10:$N$15,'ábra-BGA'!$B$29,'ábra-BGA'!M$70) -> 3.52256766 | N75: =+INDEX('BGA-teljarány'!$C$10:$N$15,'ábra-BGA'!$B$29,'ábra-BGA'!N$70) -> 10.49110412
B77: kiadások
B79: =IF(zászlók!$A$20=1,"havi teljesítés (millió Ft)","monthly facts (Million HUF)") -> havi teljesítés (millió Ft) | C79: =+INDEX('BGA-havi'!$F$21:$Q$30,$H$29,C$70) -> 638.724428 | D79: =+INDEX('BGA-havi'!$F$21:$Q$30,$H$29,D$70) -> 11916.40958 | E79: =+INDEX('BGA-havi'!$F$21:$Q$30,$H$29,E$70) -> 7559.52994 | F79: =+INDEX('BGA-havi'!$F$21:$Q$30,$H$29,F$70) -> 12908.76201 | G79: =+INDEX('BGA-havi'!$F$21:$Q$30,$H$29,G$70) -> 8039.576623 | H79: =+INDEX('BGA-havi'!$F$21:$Q$30,$H$29,H$70) -> 5579.455019 | I79: =+INDEX('BGA-havi'!$F$21:$Q$30,$H$29,I$70) -> 4395.204226 | J79: =+INDEX('BGA-havi'!$F$21:$Q$30,$H$29,J$70) -> 7779.176122 | K79: =+INDEX('BGA-havi'!$F$21:$Q$30,$H$29,K$70) -> 19972.64399 | L79: =+INDEX('BGA-havi'!$F$21:$Q$30,$H$29,L$70) -> 2625.462106 | M79: =+INDEX('BGA-havi'!$F$21:$Q$30,$H$29,M$70) -> 1612.395076 | N79: =+INDEX('BGA-havi'!$F$21:$Q$30,$H$29,N$70) -> 12821.19619
B80: =IF(zászlók!$A$20=1,"teljesítési arány (%)","rate of facts (%)") -> teljesítési arány (%) | C80: =+INDEX('BGA-teljarány'!$C$21:$N$230,$H$29,C$70) -> 0.6650937154 | D80: =+INDEX('BGA-teljarány'!$C$21:$N$230,$H$29,D$70) -> 12.40837015 | E80: =+INDEX('BGA-teljarány'!$C$21:$N$230,$H$29,E$70) -> 7.871619801 | F80: =+INDEX('BGA-teljarány'!$C$21:$N$230,$H$29,F$70) -> 13.44169114 | G80: =+INDEX('BGA-teljarány'!$C$21:$N$230,$H$29,G$70) -> 8.371484872 | H80: =+INDEX('BGA-teljarány'!$C$21:$N$230,$H$29,H$70) -> 5.809798883 | I80: =+INDEX('BGA-teljarány'!$C$21:$N$230,$H$29,I$70) -> 4.576657132 | J80: =+INDEX('BGA-teljarány'!$C$21:$N$230,$H$29,J$70) -> 8.10033392 | K80: =+INDEX('BGA-teljarány'!$C$21:$N$230,$H$29,K$70) -> 20.79720051 | L80: =+INDEX('BGA-teljarány'!$C$21:$N$230,$H$29,L$70) -> 2.733852457 | M80: =+INDEX('BGA-teljarány'!$C$21:$N$230,$H$29,M$70) -> 1.678961669 | N80: =+INDEX('BGA-teljarány'!$C$21:$N$230,$H$29,N$70) -> 13.35051023

Sheet ábra-NKA
B1: Nemzeti Kulturális Alap
B2: Budget of National Cultural Fund
D17: =+IF(zászlók!$A$20=1,"Adat jellege:","type of data") -> Adat jellege:
B29: 7 | E29: 1 | H29: 6
B30: =IF(zászlók!$A$20=1,'NKA-havi'!B10,'NKA-havi'!A10) -> Egyéb bevételek | E30: =IF(zászlók!$A$20=1,"havi teljesítés (millió Ft)","monthly facts (Million HUF)") -> havi teljesítés (millió Ft) | H30: =IF(zászlók!$A$20=1,'NKA-havi'!$B22,'NKA-havi'!$A22) -> Alapból nyújtott támogatások
B31: =IF(zászlók!$A$20=1,'NKA-havi'!B11,'NKA-havi'!A11) -> Játékadó NKA-t megillető része | E31: =IF(zászlók!$A$20=1,"teljesítési arány (%)","rate of facts (%)") -> teljesítési arány (%) | H31: =IF(zászlók!$A$20=1,'NKA-havi'!$B23,'NKA-havi'!$A23) -> Működési kiadások
B32: =IF(zászlók!$A$20=1,'NKA-havi'!B12,'NKA-havi'!A12) -> Szerzői jogi törvény alapján a közös jogkez. származó befiz. | H32: =IF(zászlók!$A$20=1,'NKA-havi'!$B24,'NKA-havi'!$A24) -> Kulturális célú kp. kv.-i szervek működési kiadásainak tám.
B33: =IF(zászlók!$A$20=1,'NKA-havi'!B13,'NKA-havi'!A13) -> Költségvetési bevételek | H33: =IF(zászlók!$A$20=1,'NKA-havi'!$B25,'NKA-havi'!$A25) -> Költségvetési kiadások
B34: =IF(zászlók!$A$20=1,'NKA-havi'!B14,'NKA-havi'!A14) -> Finanszírozási bevételek | H34: =IF(zászlók!$A$20=1,'NKA-havi'!$B26,'NKA-havi'!$A26) -> Sajátos elszámolások kiadása
B35: =IF(zászlók!$A$20=1,'NKA-havi'!B15,'NKA-havi'!A15) -> Sajátos elszámolások bevétele | H35: =IF(zászlók!$A$20=1,'NKA-havi'!$B27,'NKA-havi'!$A27) -> Kiadások összesen
B36: =IF(zászlók!$A$20=1,'NKA-havi'!B16,'NKA-havi'!A16) -> Bevételek összesen
B37: =IF(zászlók!$A$20=1,'NKA-havi'!B17,'NKA-havi'!A17) -> 0
H43: =IF(zászlók!$A$20=1,'NKA-havi'!$B25,'NKA-havi'!$A26) -> Költségvetési kiadások
H44: =IF(zászlók!$A$20=1,'NKA-havi'!$B26,'NKA-havi'!$A27) -> Sajátos elszámolások kiadása
H45: =IF(zászlók!$A$20=1,'NKA-havi'!$B27,'NKA-havi'!$A28) -> Kiadások összesen
C65: 25. jan. | D65: febr. | E65: márc. | F65: ápr. | G65: máj. | H65: jún. | I65: júl. | J65: aug. | K65: szept. | L65: okt. | M65: nov. | N65: dec.
C66: 25. Jan | D66: Febr | E66: March | F66: April | G66: May | H66: June | I66: July | J66: August | K66: Sept | L66: Oct | M66: Nov | N66: Dec
C67: =+IF(zászlók!$A$20=1,C65,C66) -> 25. jan. | D67: =+IF(zászlók!$A$20=1,D65,D66) -> febr. | E67: =+IF(zászlók!$A$20=1,E65,E66) -> márc. | F67: =+IF(zászlók!$A$20=1,F65,F66) -> ápr. | G67: =+IF(zászlók!$A$20=1,G65,G66) -> máj. | H67: =+IF(zászlók!$A$20=1,H65,H66) -> jún. | I67: =+IF(zászlók!$A$20=1,I65,I66) -> júl. | J67: =+IF(zászlók!$A$20=1,J65,J66) -> aug. | K67: =+IF(zászlók!$A$20=1,K65,K66) -> szept. | L67: =+IF(zászlók!$A$20=1,L65,L66) -> okt. | M67: =+IF(zászlók!$A$20=1,M65,M66) -> nov. | N67: =+IF(zászlók!$A$20=1,N65,N66) -> dec.
B68: =+INDEX($B$74:$B$75,$E$29,1) -> havi teljesítés (millió Ft) | C68: =+INDEX($C$74:$N$75,$E$29,C$70) -> 1046.943226 | D68: 1086.798032 | E68: 1196.090608 | F68: 1516.635228 | G68: 2399.102246 | H68: 1881.014541 | I68: 3632.993231 | J68: 1120.562359 | K68: 1136.597113 | L68: 1549.713496 | M68: 901.034626 | N68: 1242.770434
B69: =+INDEX($B$79:$B$80,$E$29,1) -> havi teljesítés (millió Ft) | C69: =+INDEX($C$79:$N$80,$E$29,C70) -> 3.074836 | D69: 243.3735 | E69: 921.722651 | F69: 727.685396 | G69: 839.461386 | H69: 567.820459 | I69: 409.889296 | J69: 530.117619 | K69: 923.791736 | L69: 1227.670692 | M69: 7894.983573 | N69: 4943.11099
C70: 1 | D70: 2 | E70: 3 | F70: 4 | G70: 5 | H70: 6 | I70: 7 | J70: 8 | K70: 9 | L70: 10 | M70: 11 | N70: 12
B72: bevételek
B74: =IF(zászlók!$A$20=1,"havi teljesítés (millió Ft)","monthly facts (Million HUF)") -> havi teljesítés (millió Ft) | C74: =+INDEX('NKA-havi'!$F$10:$Q$16,$B$29,C$70) -> 1046.943226 | D74: =+INDEX('NKA-havi'!$F$10:$Q$16,$B$29,D$70) -> 1086.798032 | E74: =+INDEX('NKA-havi'!$F$10:$Q$16,$B$29,E$70) -> 1196.090608 | F74: =+INDEX('NKA-havi'!$F$10:$Q$16,$B$29,F$70) -> 1516.635228 | G74: =+INDEX('NKA-havi'!$F$10:$Q$16,$B$29,G$70) -> 2399.102246 | H74: =+INDEX('NKA-havi'!$F$10:$Q$16,$B$29,H$70) -> 1881.014541 | I74: =+INDEX('NKA-havi'!$F$10:$Q$16,$B$29,I$70) -> 3632.993231 | J74: =+INDEX('NKA-havi'!$F$10:$Q$16,$B$29,J$70) -> 1120.562359 | K74: =+INDEX('NKA-havi'!$F$10:$Q$16,$B$29,K$70) -> 1136.597113 | L74: =+INDEX('NKA-havi'!$F$10:$Q$16,$B$29,L$70) -> 1549.713496 | M74: =+INDEX('NKA-havi'!$F$10:$Q$16,$B$29,M$70) -> 901.034626 | N74: =+INDEX('NKA-havi'!$F$10:$Q$16,$B$29,N$70) -> 1242.770434
B75: =IF(zászlók!$A$20=1,"teljesítési arány (%)","rate of facts (%)") -> teljesítési arány (%) | C75: =+INDEX('NKA-teljarány'!$C$10:$N$16,$B$29,C$70) -> 3.344411747 | D75: =+INDEX('NKA-teljarány'!$C$10:$N$16,$B$29,D$70) -> 3.471726082 | E75: =+INDEX('NKA-teljarány'!$C$10:$N$16,$B$29,E$70) -> 3.820856165 | F75: =+INDEX('NKA-teljarány'!$C$10:$N$16,$B$29,F$70) -> 4.844821138 | G75: =+INDEX('NKA-teljarány'!$C$10:$N$16,$B$29,G$70) -> 7.663821241 | H75: =+INDEX('NKA-teljarány'!$C$10:$N$16,$B$29,H$70) -> 6.008814013 | I75: =+INDEX('NKA-teljarány'!$C$10:$N$16,$B$29,I$70) -> 11.60542896 | J75: =+INDEX('NKA-teljarány'!$C$10:$N$16,$B$29,J$70) -> 3.579584665 | K75: =+INDEX('NKA-teljarány'!$C$10:$N$16,$B$29,K$70) -> 3.630806945 | L75: =+INDEX('NKA-teljarány'!$C$10:$N$16,$B$29,L$70) -> 4.950488137 | M75: =+INDEX('NKA-teljarány'!$C$10:$N$16,$B$29,M$70) -> 2.878313468 | N75: =+INDEX('NKA-teljarány'!$C$10:$N$16,$B$29,N$70) -> 3.969972712
B77: kiadások
B79: =IF(zászlók!$A$20=1,"havi teljesítés (millió Ft)","monthly facts (Million HUF)") -> havi teljesítés (millió Ft) | C79: =+INDEX('NKA-havi'!$F$22:$Q$33,$H$29,C$70) -> 3.074836 | D79: =+INDEX('NKA-havi'!$F$22:$Q$33,$H$29,D$70) -> 243.3735 | E79: =+INDEX('NKA-havi'!$F$22:$Q$33,$H$29,E$70) -> 921.722651 | F79: =+INDEX('NKA-havi'!$F$22:$Q$33,$H$29,F$70) -> 727.685396 | G79: =+INDEX('NKA-havi'!$F$22:$Q$33,$H$29,G$70) -> 839.461386 | H79: =+INDEX('NKA-havi'!$F$22:$Q$33,$H$29,H$70) -> 567.820459 | I79: =+INDEX('NKA-havi'!$F$22:$Q$33,$H$29,I$70) -> 409.889296 | J79: =+INDEX('NKA-havi'!$F$22:$Q$33,$H$29,J$70) -> 530.117619 | K79: =+INDEX('NKA-havi'!$F$22:$Q$33,$H$29,K$70) -> 923.791736 | L79: =+INDEX('NKA-havi'!$F$22:$Q$33,$H$29,L$70) -> 1227.670692 | M79: =+INDEX('NKA-havi'!$F$22:$Q$33,$H$29,M$70) -> 7894.983573 | N79: =+INDEX('NKA-havi'!$F$22:$Q$33,$H$29,N$70) -> 4943.11099
B80: =IF(zászlók!$A$20=1,"teljesítési arány (%)","rate of facts (%)") -> teljesítési arány (%) | C80: =+INDEX('NKA-teljarány'!$C$22:$N$32,$H$29,C$70) -> 0.01300045526 | D80: =+INDEX('NKA-teljarány'!$C$22:$N$32,$H$29,D$70) -> 1.028987009 | E80: =+INDEX('NKA-teljarány'!$C$22:$N$32,$H$29,E$70) -> 3.897057952 | F80: =+INDEX('NKA-teljarány'!$C$22:$N$32,$H$29,F$70) -> 3.076665368 | G80: =+INDEX('NKA-teljarány'!$C$22:$N$32,$H$29,G$70) -> 3.549256022 | H80: =+INDEX('NKA-teljarány'!$C$22:$N$32,$H$29,H$70) -> 2.400753885 | I80: =+INDEX('NKA-teljarány'!$C$22:$N$32,$H$29,I$70) -> 1.733018429 | J80: =+INDEX('NKA-teljarány'!$C$22:$N$32,$H$29,J$70) -> 2.241345681 | K80: =+INDEX('NKA-teljarány'!$C$22:$N$32,$H$29,K$70) -> 3.905806076 | L80: =+INDEX('NKA-teljarány'!$C$22:$N$32,$H$29,L$70) -> 5.190611111 | M80: =+INDEX('NKA-teljarány'!$C$22:$N$32,$H$29,M$70) -> 33.38011546 | N80: =+INDEX('NKA-teljarány'!$C$22:$N$32,$H$29,N$70) -> 20.89955148
